Workbook

Sheet 00 TABLE DES MATIERES
A1: 01 MASQUE vierge
A2: 01a INGREDIENTS
A3: 01b BOISSONS
A4: 01c #PACK
A5: 01c EMBALLAGE
A6: 01c SANS TRANSFORMATION
A7: 02a PASTA poulet (grd)
A8: 02a PASTA poulet (moyen)
A9: 02b PASTA mozza (grd)
A10: 02b PASTA mozza (moyen)
A11: 02c PASTA toscan (grd)
A12: 02c PASTA toscan (moyen)
A13: 03 MINI TOMATE
A14: 03 SALADE ice caesar
A15: 03 SALADE ice saumon concombre
A16: 04 CEREAL lentilles & boulgour
A17: 04 CEREALES riz niçois
A18: 05 FOCACCIA HAM & CHEDDAR
A19: 05 FOCACCIA parme
A20: 05 FOCACCIA POIVRON
A21: 05 FOCACCIA tomate mozza
A22: 06 CIAB CHEDDAR BACON
A23: 07 SAND BAGUETTE THONMAYO
A24: 07 SAND FLUTE brie
A25: 07 SAND PAIN LAIT cheddar
A26: 08 Cheesecake Phil spéculoos
A27: 08 FB nature
A28: 09 SOUPE CAROTTE
A29: 09 SOUPE CHICON
A30: 10 JUS cherry chérie
A31: 10 JUS dark side
A32: 12 Mélange mout mayo cum
A33: 12 PATE FEUILLETEE
A34: 15 SF 2 fromages
A101: 08 RIZ AU LAIT nature
A102: 08 TARTE BANANOFIE
A103: 08 TARTE POM SUCRE
A104: 08 YAOURT coulis
A105: 08 YAOURT fruits rouges
A106: 08 YAOURT miel graine de courge
A107: 08 YAOURT muesli choco
A108: 08 YAOURT muesli fruits
A109: 08 YAOURT nature
A110: 09 GASPACHO tomates
A111: 09 SOUPE CAROTTE
A112: 09 SOUPE CHICON
A113: 10 AUTRES bonbons et apéro
A114: 10 JUS cherry chérie
A115: 10 JUS dark side
A116: 10 JUS dingo mango
A117: 10 JUS funny kiwi
A118: 10 JUS ORANGE
A119: 10 JUS sweet lovers
A120: 10 JUS wake up
A121: 10 SANGRIA
A122: 101 JUS de carotte
A123: 11 QUICHE COURGETTE
A124: 12 Mélange chèvre
A125: 12 Mélange fêta
A126: 12 Mélange mout mayo cum
A127: 12 Mélange sal fêt
A128: 12 Mélange tapenade noire
A129: 12 Mélange thon mayo
A130: 12 PAIN DE VIANDE
A131: 12 PATE FEUILLETEE
A132: 13 ptit dej
A133: 15 SF jambon beurre
A134: 15 SF chorizo
A135: 15 SF thon mayo
A136: 15 SF poulet crudités
A137: 15 SF jambon crudités
A138: 15 SF tomate mozza
A139: 15 SF chèvre épinards
A140: 15 SF 2 fromages
A141: zz SANS TRANSFORMATION
A142: zzz EMBALLAGE (2)

Sheet 01a INGREDIENTS
A1: 0
A2: 0Nom d'aliment | B2: Unité | C2: Prix/kg HT | D2: 1 Protéines | E2: 2 Lipides | F2: 3 Glucides | G2: 4 Fibres | H2: FOURNISSEUR | I2: k/cal | J2: % DE PERTE | K2: perte | L2: -- POIDS NET | M2: ++ POIDS BRUT | N2: DATE | O2: QUOI | P2: NEGO A
A3: agar-agar | B3: kg | C3: 5 | H3: METRO | I3: =((D3*4)+(F3*4)+(E3*9)) -> 0 | J3: =K3/M3 -> 0 | K3: =M3-L3 -> 0 | L3: 100 | M3: 100 | N3: 2016-03-03 | O3: DIVERS
A4: Ail en poudre | B4: kg | C4: 5 | D4: 168 | E4: 8 | F4: 727 | H4: METRO | I4: 3652 | J4: 0 | K4: 0 | L4: 100 | M4: 100 | N4: 2016-03-03 | O4: ASSAISONNEMENT
A5: Ail frais | B5: kg | C5: 5 | D5: 60 | E5: 1 | F5: 280 | H5: JOSA | I5: 1369 | J5: 0.1 | K5: 10 | L5: 90 | M5: 100 | O5: ASSAISONNEMENT
A6: Amandes effilées | B6: kg | C6: 5 | D6: 211 | E6: 501 | F6: 69 | G6: 129 | H6: METRO | I6: 5629 | J6: 0 | K6: 0 | L6: 100 | M6: 100 | O6: FRUITS SECS
A7: Amandes émondées | B7: kg | C7: 5 | D7: 211 | E7: 501 | F7: 69 | G7: 129 | H7: METRO | I7: 5629 | J7: 0 | K7: 0 | L7: 100 | M7: 100 | O7: FRUITS SECS
A8: Amandes en poudre | B8: kg | C8: 5 | D8: 1 | E8: 1 | F8: 1 | G8: 1 | H8: METRO | I8: 17 | J8: 0 | K8: 0 | L8: 100 | M8: 100 | O8: FRUITS SECS
A9: Ananas au sirop del monte | B9: kg | C9: 5 | D9: 4 | E9: 1 | F9: 185 | G9: 7 | H9: METRO | I9: 765 | J9: 0.3928571429 | K9: 220 | L9: 340 | M9: 560 | N9: 2016-03-03 | O9: BOITE FRUITS
A10: Ananas frais | B10: kg | C10: 5 | D10: 6 | E10: 0 | F10: 116 | G10: 13 | H10: JOSA | I10: 488 | J10: 0.6 | K10: 60 | L10: 40 | M10: 100 | O10: FRUITS
A11: Anchois à l'huile 1 =4g | B11: kg | C11: 5 | D11: 201 | E11: 100 | F11: 0 | G11: 0 | H11: METRO | I11: 1704 | J11: 0.3 | K11: 30 | L11: 70 | M11: 100 | O11: POISSON
A12: Aneth | B12: kg | C12: 5 | D12: 1 | E12: 1 | F12: 1 | G12: 1 | H12: METRO | I12: 17 | J12: 0 | K12: 0 | L12: 100 | M12: 100 | N12: 2016-03-03 | O12: ASSAISONNEMENT
A13: Artichaud en quart | B13: kg | C13: 5 | H13: METRO | I13: 0 | J13: 0.225 | K13: 450 | L13: 1550 | M13: 2000 | O13: BOITES LEGUMES
A14: ARTIchaud en quart huile d'olive | B14: kg | C14: 5 | H14: METRO | I14: 0 | J14: 0.2 | K14: 200 | L14: 800 | M14: 1000 | O14: SACHET
A15: Aubergines (pour info 1 auberg=400g) | B15: kg | C15: 5 | D15: 10 | E15: 0 | F15: 30 | G15: 25 | H15: JOSA | I15: 160 | J15: 0.2 | K15: 20 | L15: 80 | M15: 100 | O15: LEGUMES
A16: Aubergines huile d'olive 1Tranche | B16: pièce | C16: 5 | H16: CIABATTA MANIA | I16: 0 | J16: 0 | K16: 0 | L16: 100 | M16: 100 | O16: PREPARATIONS
A17: Avocats | B17: pièce | C17: 5 | D17: 19 | E17: 195 | F17: 18 | G17: 43 | H17: JOSA | I17: 1903 | J17: 0.5 | K17: 50 | L17: 50 | M17: 100 | O17: LEGUMES
A18: Bacon | B18: kg | C18: 5 | D18: 176 | E18: 236 | F18: 6 | G18: 0 | H18: METRO | I18: 2852 | J18: 0.3 | K18: 30 | L18: 70 | M18: 100 | O18: CHARCUTERIE
A19: Bacon (lard fumé 2mm) tranché | B19: kg | C19: 5 | H19: VT FOOD | I19: 0 | J19: 0.3 | K19: 30 | L19: 70 | M19: 100 | N19: 2015-04-01 | O19: CHARCUTERIE | P19: 8.4
A20: BAGUETTE PARISIENNE | B20: pièce | C20: 5 | H20: FLEUR DE PAIN | I20: 0 | J20: 0 | K20: 0 | L20: 100 | M20: 100 | O20: BAGUETTE
A21: BAGUETTE PARISIENNE 1/2 | B21: pièce | C21: 5 | H21: FLEUR DE PAIN | I21: 0 | J21: 0 | K21: 0 | L21: 100 | M21: 100 | O21: BAGUETTE
A22: baie de genevrier | B22: kg | C22: 5 | H22: METRO | I22: 0 | J22: 0 | K22: 0 | L22: 100 | M22: 100 | N22: 2016-03-03 | O22: ASSAISONNEMENT
A23: Bananes | B23: kg | C23: 5 | D23: 11 | E23: 0 | F23: 196 | G23: 17 | H23: JOSA | I23: 828 | J23: 0.3 | K23: 30 | L23: 70 | M23: 100 | O23: FRUITS
A24: Bananes (1=177g) | B24: pièce | C24: 5 | D24: 11 | E24: 0 | F24: 196 | G24: 17 | H24: JOSA | I24: 828 | J24: 0 | K24: 0 | L24: 100 | M24: 100 | O24: FRUITS
A25: Basilic frais (1 brin = 0,005) | B25: unité | C25: 5 | D25: 1 | E25: 1 | F25: 1 | G25: 1 | H25: JOSA | I25: 17 | J25: 0 | K25: 0 | L25: 100 | M25: 100 | O25: HERBES
A26: Basilic frais (1bte = 0,040) | B26: Botte | C26: 5 | D26: 1 | E26: 1 | F26: 1 | G26: 1 | H26: JOSA | I26: 17 | J26: 0 | K26: 0 | L26: 100 | M26: 100 | O26: HERBES
A27: Basilic sec | B27: kg | C27: 5 | D27: 1 | E27: 1 | F27: 1 | G27: 1 | H27: METRO | I27: 17 | J27: 0 | K27: 0 | L27: 100 | M27: 100 | N27: 2016-03-03 | O27: ASSAISONNEMENT
A28: Betteraves rouges | B28: kg | C28: 5 | D28: 10 | E28: 1 | F28: 10 | G28: 7 | H28: JOSA | I28: 89 | J28: 0.2 | K28: 20 | L28: 80 | M28: 100 | O28: LEGUMES
A29: Beurre | B29: kg | C29: 5 | D29: 6 | E29: 821 | F29: 6 | G29: 0 | H29: LOBET | I29: 7437 | J29: 0 | K29: 0 | L29: 100 | M29: 100 | O29: BEURRE
A30: beurre dosette 10g | B30: pièce | C30: 5 | H30: LOBET | I30: 0 | J30: 0 | K30: 0 | L30: 100 | M30: 100 | O30: BEURRE
A31: Beurre par 5k | B31: kg | C31: 5 | H31: LOBET | I31: 0 | J31: 0 | K31: 0 | L31: 100 | M31: 100 | N31: 2015-04-01 | O31: BEURRE
A32: Billes crispy chocolat déco gateaux | B32: kg | C32: 5 | D32: 0 | E32: 0 | F32: 996 | G32: 0 | H32: METRO | I32: 3984 | J32: 0 | K32: 0 | L32: 100 | M32: 100 | N32: 2016-03-03 | O32: SUCRES
A33: Billes déco gateaux | B33: kg | C33: 5 | D33: 0 | E33: 0 | F33: 996 | G33: 0 | H33: METRO | I33: 3984 | J33: 0 | K33: 0 | L33: 100 | M33: 100 | N33: 2016-03-03 | O33: SUCRES
A34: Biscuit à la cuillère horeca | B34: kg | C34: 5 | H34: METRO | J34: 0 | K34: 0 | L34: 100 | M34: 100 | O34: SUCRES
A35: Bleu d'auvergne | B35: kg | C35: 5 | H35: LOBET | I35: =((D35*4)+(F35*4)+(E35*9)) -> 0 | J35: =K35/M35 -> 0 | K35: =M35-L35 -> 0 | L35: 100 | M35: 100 | O35: FROMAGE
A36: bonbon type haribo | B36: kg | C36: 5 | H36: METRO | I36: =((D36*4)+(F36*4)+(E36*9)) -> 0 | J36: 0 | K36: 0 | L36: 100 | M36: 100 | O36: DIVERS
A37: Bouillon de légumes en pâte 1,5 K | B37: kg | C37: 5 | H37: METRO | I37: =((D37*4)+(F37*4)+(E37*9)) -> 0 | J37: 0 | K37: 0 | L37: 100 | M37: 100 | N37: 2016-02-26 | O37: ASSAISONNEMENT
A38: Bouillon de POULE en pâte 1,5 K | B38: kg | C38: 5 | J38: 0 | K38: 0 | L38: 100 | M38: 100 | O38: ASSAISONNEMENT
A39: Boulgour | B39: kg | C39: 5 | D39: 130 | E39: 20 | F39: 610 | H39: METRO | I39: =((D39*4)+(F39*4)+(E39*9)) -> 3140 | J39: 0 | K39: 0 | L39: 100 | M39: 100 | O39: PATES & RIZ & FECULES
A40: Brie de Meaux | B40: kg | C40: 5 | D40: 226 | E40: 233 | F40: 0 | G40: 0 | H40: LOBET | I40: 3001 | J40: 0 | K40: 0 | L40: 100 | M40: 100 | N40: 2015-04-01 | O40: FROMAGE
A41: brie METRO | B41: kg | C41: 5 | H41: METRO | I41: 0 | J41: 0 | K41: 0 | L41: 100 | M41: 100 | O41: FROMAGE
A42: Brocolis | B42: kg | C42: 5 | D42: 30 | E42: 0 | F42: 20 | G42: 31 | H42: JOSA | I42: 200 | J42: 0 | K42: 0 | L42: 100 | M42: 100 | O42: LEGUMES
A43: cacahuettes | B43: kg | C43: 5 | H43: METRO | I43: 0 | J43: 0 | K43: 0 | L43: 100 | M43: 100 | O43: FRUITS SECS
A44: Cacao en poudre | B44: kg | C44: 5 | D44: 42 | E44: 25 | F44: 870 | G44: _ | H44: METRO | I44: 3873 | J44: 0 | K44: 0 | L44: 100 | M44: 100 | O44: CHOCO / SIROP
A45: café pantera | B45: kg | C45: 5 | H45: PONTI | I45: 0 | J45: 0 | K45: 0 | L45: 100 | M45: 100 | N45: 2015-04-01 | O45: CAFE & THE
A46: café pantera 0,007g | B46: pièce | C46: 5 | H46: PONTI | I46: 0 | J46: 0 | K46: 0 | L46: 100 | M46: 100 | N46: 2015-04-01 | O46: CAFE & THE
A47: café topping | B47: Litre | C47: 5 | H47: METRO | J47: 0 | K47: 0 | L47: 100 | M47: 100 | N47: 03/13/16 | O47: CHOCO / SIROP
A48: cannelle en baton | B48: kg | C48: 5 | H48: METRO | I48: =((D48*4)+(F48*4)+(E48*9)) -> 0 | J48: 0 | K48: 0 | L48: 100 | M48: 100 | N48: 2016-03-03 | O48: ASSAISONNEMENT
A49: Cannelle poudre horeca select 450g | B49: kg | C49: 5 | D49: 40 | E49: 30 | F49: 560 | G49: 244 | H49: METRO | I49: =((D49*4)+(F49*4)+(E49*9)) -> 2670 | J49: 0 | K49: 0 | L49: 100 | M49: 100 | O49: ASSAISONNEMENT
A50: Capres | B50: kg | C50: 5 | H50: METRO | I50: =((D50*4)+(F50*4)+(E50*9)) -> 0 | J50: 0.375 | K50: 270 | L50: 450 | M50: 720 | O50: BOITES LEGUMES
A51: capsule de lait ind | B51: pièce | C51: 5 | H51: PONTI | I51: =((D51*4)+(F51*4)+(E51*9)) -> 0 | J51: 0 | K51: 0 | L51: 100 | M51: 100 | N51: 2016-03-03 | O51: LAITAGE
A52: capsule de lait ind Nutroma 7,5g | B52: pièce | C52: 5 | H52: METRO | J52: 0 | K52: 0 | L52: 100 | M52: 100 | N52: 2016-03-03 | O52: LAITAGE
A53: capsule de lait ind Nutroma 9g | B53: pièce | C53: 5 | H53: METRO | J53: 0 | K53: 0 | L53: 100 | M53: 100 | N53: 2016-03-03 | O53: LAITAGE
A54: Caramel topping 1 l imperial | B54: Litre | C54: 5 | H54: METRO | I54: =((D54*4)+(F54*4)+(E54*9)) -> 0 | J54: 0.05 | K54: 5 | L54: 95 | M54: 100 | N54: 2016-03-03 | O54: CHOCO / SIROP
A55: Cardamome | B55: kg | C55: 5 | D55: 1 | E55: 1 | F55: 1 | G55: 1 | H55: METRO | I55: =((D55*4)+(F55*4)+(E55*9)) -> 17 | J55: 0 | K55: 0 | L55: 100 | M55: 100 | O55: ASSAISONNEMENT
A56: Carottes | B56: kg | C56: 5 | D56: 4 | E56: 0 | F56: 67 | G56: 32 | H56: JOSA | I56: =((D56*4)+(F56*4)+(E56*9)) -> 284 | J56: 0.2 | K56: 20 | L56: 80 | M56: 100 | O56: LEGUMES
A57: Carottes épice thai | B57: kg | C57: 5 | D57: 4 | E57: 0 | F57: 67 | G57: 32 | H57: CIABATTA MANIA | I57: =((D57*4)+(F57*4)+(E57*9)) -> 284 | J57: 0 | K57: 0 | L57: 100 | M57: 100 | O57: PREPARATIONS
A58: carottes rappées josa estimation | B58: kg | C58: 5 | H58: JOSA
A59: carottes surgelées (sac2,5k) | B59: kg | C59: 5 | H59: DAVIGEL | I59: =((D59*4)+(F59*4)+(E59*9)) -> 0 | J59: =K59/M59 -> 0 | K59: =M59-L59 -> 0 | L59: 100 | M59: 100 | O59: SURGELES
A60: Cassis congelés | B60: kg | C60: 5 | D60: 2 | E60: 0 | F60: 65 | G60: 87 | H60: DAVIGEL | I60: =((D60*4)+(F60*4)+(E60*9)) -> 268 | J60: 0 | K60: 0 | L60: 100 | M60: 100 | O60: SURGELES
A61: Cassonade (graeffe) | B61: kg | C61: 5 | D61: 0 | E61: 0 | F61: 950 | G61: 0 | H61: METRO | I61: =((D61*4)+(F61*4)+(E61*9)) -> 3800 | J61: 0 | K61: 0 | L61: 100 | M61: 100 | O61: SUCRES
A62: Céleri branche | B62: kg | C62: 5 | D62: 10 | E62: 0 | F62: 20 | G62: 18 | H62: JOSA | I62: =((D62*4)+(F62*4)+(E62*9)) -> 120 | J62: 0.3 | K62: 30 | L62: 70 | M62: 100 | O62: LEGUMES
A63: celeri en bocaux | B63: kg | C63: 5 | H63: METRO | J63: 0.3676470588 | K63: 250 | L63: 430 | M63: 680 | O63: BOITE FRUITS
A64: celeri rave | B64: kg | C64: 5 | H64: JOSA | I64: =((D64*4)+(F64*4)+(E64*9)) -> 0 | J64: 0.3 | K64: 30 | L64: 70 | M64: 100 | O64: LEGUMES
A65: Céleri vert | B65: kg | C65: 5 | D65: 10 | E65: 1 | F65: 33 | G65: 10 | H65: JOSA | I65: =((D65*4)+(F65*4)+(E65*9)) -> 181 | J65: 0.3 | K65: 30 | L65: 70 | M65: 100 | O65: LEGUMES
A66: Cerfeuil frais | B66: Botte | C66: 5 | D66: 36 | E66: 5 | F66: 62 | G66: 53 | H66: JOSA | I66: =((D66*4)+(F66*4)+(E66*9)) -> 437 | J66: 0.3 | K66: 30 | L66: 70 | M66: 100 | O66: HERBES
A67: Cerises en bocaux | B67: kg | C67: 5 | H67: METRO | O67: BOITE FRUITS
A68: Cerneaux de noix | B68: kg | C68: 5 | D68: 150 | E68: 670 | F68: 27 | G68: 67 | H68: METRO | I68: =((D68*4)+(F68*4)+(E68*9)) -> 6738 | J68: 0 | K68: =M68-L68 -> 0 | L68: 100 | M68: 100 | O68: FRUITS SECS
A69: chai tea spiced | B69: pièce | C69: 5 | H69: DELIDRINCKS | I69: 0 | J69: 0 | K69: 0 | L69: 100 | M69: 100 | O69: CAFE & THE
A70: Champignons de paris | B70: kg | C70: 5 | D70: 23 | E70: 0 | F70: 4 | G70: 15 | H70: JOSA | I70: 108 | J70: 0.2 | K70: 20 | L70: 80 | M70: 100 | O70: LEGUMES
A71: champignons en boite (soupe) | B71: kg | C71: 5 | H71: METRO | I71: 0 | J71: 0.5 | K71: 50 | L71: 50 | M71: 100 | O71: BOITES LEGUMES
A72: Chantilly bombe 700 ml | B72: Litre | C72: 5 | H72: METRO | I72: 0 | J72: 0 | K72: 0 | L72: 100 | M72: 100 | O72: LAITAGE
A73: Chantilly dose 30g | B73: pièce | C73: 5 | H73: METRO | I73: 0 | J73: 0 | K73: 0 | L73: 100 | M73: 100 | O73: LAITAGE
A74: chapelure 5kg | B74: kg | C74: 5 | H74: METRO | I74: 0 | J74: 0 | K74: 0 | L74: 100 | M74: 100 | N74: 2016-03-03 | O74: PATES & RIZ & FECULES
A75: Cheddar tranché | B75: kg | C75: 5 | D75: 259 | E75: 326 | F75: 4 | G75: 0 | H75: LOBET | I75: 3986 | J75: 0 | K75: 0 | L75: 100 | M75: 100 | N75: 2015-04-01 | O75: FROMAGE
A76: Cheddar tranché (dose : 2,5 demi T =25g) | B76: pièce | C76: 5 | H76: LOBET | J76: 0 | K76: 0 | L76: 100 | M76: 100 | N76: 2016-04-25 | O76: FROMAGE
A77: Cheddar tranché (dose : 3 demi T =30g) | B77: pièce | C77: 5 | H77: LOBET | J77: 0 | K77: 0 | L77: 100 | M77: 100 | N77: 2016-04-25 | O77: FROMAGE
A78: chèvre frais buche 1k | B78: kg | C78: 5 | D78: 156 | E78: 295 | F78: 40 | G78: _ | H78: LOBET | I78: =((D78*4)+(F78*4)+(E78*9)) -> 3439 | J78: 0 | K78: 0 | L78: 100 | M78: 100 | N78: 2015-04-01 | O78: FROMAGE
A79: chicon | B79: kg | C79: 5 | H79: JOSA | I79: 0 | J79: 0.2 | K79: 20 | L79: 80 | M79: 100 | O79: LEGUMES
A80: chocolat au lait | B80: kg | C80: 5 | H80: METRO | I80: 0 | J80: 0 | K80: 0 | L80: 100 | M80: 100 | N80: 2016-03-03 | O80: CHOCO / SIROP
A81: chocolat au lait ( dose de 35 g) | B81: pièce | C81: 5 | H81: METRO | I81: 0 | J81: 0 | K81: 0 | L81: 100 | M81: 100 | O81: CHOCO / SIROP
A82: chocolat noir ( dose de 35 g) | B82: kg | C82: 5 | H82: METRO | I82: 0 | J82: 0 | K82: 0 | L82: 100 | M82: 100 | O82: CHOCO / SIROP
A83: Chocolat noir pistolles | B83: kg | C83: 5 | D83: 54 | E83: 309 | F83: 531 | G83: 70 | H83: METRO | I83: 5121 | J83: 0 | K83: 0 | L83: 100 | M83: 100 | N83: 2016-03-03 | O83: CHOCO / SIROP
A84: Chocolat sirop/liquide | B84: Litre | C84: 5 | H84: METRO | I84: 0 | J84: 0 | K84: 0 | L84: 100 | M84: 100 | O84: CHOCO / SIROP
A85: chocolat Topping 1l impérial | B85: Litre | C85: 5 | H85: METRO | I85: 0 | J85: 0.05 | K85: 5 | L85: 95 | M85: 100 | N85: 2016-03-03 | O85: CHOCO / SIROP
A86: Chorizo | B86: kg | C86: 5 | D86: 211 | E86: 421 | F86: 35 | G86: 0 | H86: METRO | I86: 4773 | J86: 0 | K86: 0 | L86: 100 | M86: 100 | N86: 2016-03-03 | O86: CHARCUTERIE
A87: Chorizo SELECTION (125 T au kilo) | B87: kg | C87: 5 | D87: 211 | E87: 421 | F87: 35 | G87: 0 | H87: VT FOOD | I87: 4773 | J87: 0 | K87: 0 | L87: 100 | M87: 100 | N87: 2015-03-02 | O87: CHARCUTERIE
A88: Chorizo SELECTION LA TRANCHE | B88: kg | C88: 5 | D88: 211 | E88: 421 | F88: 35 | G88: 0 | H88: VT FOOD | I88: 4773 | J88: 0 | K88: 0 | L88: 100 | M88: 100 | N88: 2015-03-02 | O88: CHARCUTERIE
A89: Choux fleur congelé | B89: kg | C89: 5 | D89: 20 | E89: 0 | F89: 22 | G89: 29 | H89: DAVIGEL | I89: =((D89*4)+(F89*4)+(E89*9)) -> 168 | J89: =K89/M89 -> 0 | K89: =M89-L89 -> 0 | L89: 100 | M89: 100 | O89: SURGELES
A90: Ciboule fraiche | B90: botte | C90: 5 | D90: 1 | E90: 1 | F90: 1 | G90: 1 | H90: JOSA | I90: =((D90*4)+(F90*4)+(E90*9)) -> 17 | J90: 0.3 | K90: 30 | L90: 70 | M90: 100 | O90: HERBES
A91: ciboulette | B91: kg | C91: 5 | H91: METRO | I91: =((D91*4)+(F91*4)+(E91*9)) -> 0 | J91: 0 | K91: 0 | L91: 100 | M91: 100 | N91: 2016-03-03 | O91: ASSAISONNEMENT
A92: Ciboulette fraiche | B92: Botte | C92: 5 | D92: 1 | E92: 1 | F92: 1 | G92: 1 | H92: JOSA | I92: =((D92*4)+(F92*4)+(E92*9)) -> 17 | J92: 0 | K92: 0 | L92: 100 | M92: 100 | O92: HERBES
A93: citron (la tranche) | B93: pièce | C93: 5 | J93: 0 | K93: 0 | L93: 100 | M93: 100 | O93: FRUITS
A94: citron vert | B94: pièce | C94: 5 | D94: 2.5 | E94: 2.3 | F94: 14.9 | G94: 4 | H94: JOSA | I94: =((D94*4)+(F94*4)+(E94*9)) -> 90.3 | J94: 0 | K94: 0 | L94: 100 | M94: 100 | N94: 2016-03-03 | O94: FRUITS
A95: Citrons | B95: pièce | C95: 5 | D95: 8 | E95: 3 | F95: 24.5 | G95: 20 | H95: JOSA | I95: 157 | J95: 0 | K95: 0 | L95: 100 | M95: 100 | N95: 2016-03-03 | O95: FRUITS
A96: cocolito 1200g/85r/ | B96: pièce | C96: 5 | H96: METRO | I96: 0 | J96: 0 | K96: 0 | L96: 100 | M96: 100 | N96: 2016-03-03 | O96: LAITAGE
A97: Coeurs de céleri | B97: kg | C97: 5 | D97: 10 | E97: 1 | F97: 33 | G97: 10 | H97: METRO | I97: 181 | J97: 0.3 | K97: 30 | L97: 70 | M97: 100 | O97: BOITES LEGUMES
A98: Comté | B98: kg | C98: 5 | D98: 287 | E98: 298 | F98: 0 | G98: 0 | H98: LOBET | I98: 3830 | J98: 0 | K98: 0 | L98: 100 | M98: 100 | O98: FROMAGE
A99: Concombre | B99: kg | C99: 5 | D99: 8 | E99: 0 | F99: 12 | G99: 7 | H99: JOSA | I99: 80 | J99: 0.1 | K99: 10 | L99: 90 | M99: 100 | O99: LEGUMES
A100: Confiture d'abricots | B100: kg | C100: 5 | D100: 4 | E100: 2 | F100: 604 | G100: 14 | H100: METRO | I100: 2450 | J100: 0 | K100: 0 | L100: 100 | M100: 100 | O100: CONFITURE
A101: confiture d'airelles | B101: kg | C101: 5 | H101: METRO | I101: 0 | J101: 0 | K101: 0 | L101: 100 | M101: 100 | O101: CONFITURE
A102: confiture d'oignons | B102: kg | C102: 5 | H102: METRO | J102: 0 | K102: 0 | L102: 100 | M102: 100 | O102: CONFITURE
A103: Confiture figue au Porto | B103: kg | C103: 5 | D103: 4 | E103: 2 | F103: 604 | G103: 14 | H103: METRO | I103: =((D103*4)+(F103*4)+(E103*9)) -> 2450 | J103: 0 | K103: 0 | L103: 100 | M103: 100 | O103: CONFITURE
A104: Coppa ( 120 TRANCHES ) | B104: kg | C104: 5 | D104: 1 | E104: 1 | F104: 1 | G104: 1 | H104: METRO | I104: 17 | J104: 0 | K104: 0 | L104: 100 | M104: 100 | O104: CHARCUTERIE
A105: Coppa ( 120 TRANCHES ) | B105: kg | C105: 5 | D105: 1 | E105: 1 | F105: 1 | G105: 1 | H105: METRO | I105: =((D105*4)+(F105*4)+(E105*9)) -> 17 | J105: =K105/M105 -> 0 | K105: =M105-L105 -> 0 | L105: 100 | M105: 100 | O105: CHARCUTERIE
A106: Coppa LA TRANCHE | B106: kg | C106: 5 | D106: 1 | E106: 1 | F106: 1 | G106: 1 | H106: METRO | I106: 17 | J106: 0 | K106: 0 | L106: 100 | M106: 100 | O106: CHARCUTERIE
A107: Coppa LA TRANCHE | B107: kg | C107: 5 | D107: 1 | E107: 1 | F107: 1 | G107: 1 | H107: METRO | I107: =((D107*4)+(F107*4)+(E107*9)) -> 17 | J107: =K107/M107 -> 0 | K107: =M107-L107 -> 0 | L107: 100 | M107: 100 | O107: CHARCUTERIE
A108: coriandre fraiche | B108: botte | C108: 5 | H108: JOSA | I108: =((D108*4)+(F108*4)+(E108*9)) -> 0 | J108: 0.2 | K108: 20 | L108: 80 | M108: 100 | O108: HERBES
A109: Coriandre graine | B109: kg | C109: 5 | D109: 1 | E109: 1 | F109: 1 | G109: 1 | H109: METRO | I109: =((D109*4)+(F109*4)+(E109*9)) -> 17 | J109: 0 | K109: 0 | L109: 100 | M109: 100 | N109: 2016-03-03 | O109: ASSAISONNEMENT
A110: cornichon horeca select (bocal =2,300) | B110: kg | C110: 5 | H110: METRO | J110: 0.4260869565 | K110: 980 | L110: 1320 | M110: 2300 | N110: 2016-06-22 | O110: ASSAISONNEMENT
A111: cornichon horeca select La Pièce (= 6 grs) | B111: kg | C111: 5 | H111: METRO | J111: 0.4260869565 | K111: 980 | L111: 1320 | M111: 2300 | N111: 2016-06-22 | O111: ASSAISONNEMENT
A112: Courgette vapeur 1 Tranche | B112: pièce | C112: 5 | H112: CIABATTA MANIA | I112: =((D112*4)+(F112*4)+(E112*9)) -> 0 | J112: 0 | K112: 0 | L112: 100 | M112: 100 | O112: PREPARATIONS
A113: Courgettes | B113: kg | C113: 5 | D113: 12 | E113: 1 | F113: 18 | G113: 11 | H113: JOSA | I113: 129 | J113: 0.1 | K113: 10 | L113: 90 | M113: 100 | O113: LEGUMES
A114: Crème de balsamique | B114: Litre | C114: 5 | D114: 1 | E114: 1 | F114: 1 | G114: 1 | H114: METRO | I114: 17 | J114: 0.03 | K114: 3 | L114: 97 | M114: 100 | N114: 2016-03-03 | O114: ASSAISONNEMENT
A115: Crème fraiche | B115: Litre | C115: 5 | D115: 0 | E115: 350 | F115: 1 | G115: 0 | H115: LOBET | I115: 3154 | J115: 0 | K115: 0 | L115: 100 | M115: 100 | N115: 2015-04-01 | O115: LAITAGE
A116: Crème liquide | B116: Litre | C116: 5 | D116: 7 | E116: 250 | F116: 17 | G116: 4 | H116: LOBET | I116: 2346 | J116: 0 | K116: 0 | L116: 100 | M116: 100 | O116: LAITAGE
A117: Crème liquide DEBIC | B117: Litre | C117: 5 | D117: 7 | E117: 250 | F117: 17 | G117: 4 | H117: METRO | I117: 2346 | J117: 0 | K117: 0 | L117: 100 | M117: 100 | O117: LAITAGE
A118: Croûtons (pot) | B118: kg | C118: 5 | D118: 1 | E118: 1 | F118: 1 | G118: 1 | H118: METRO | I118: 17 | J118: 0 | K118: 0 | L118: 100 | M118: 100 | O118: PATES & RIZ & FECULES
A119: cumin | B119: kg | C119: 5 | H119: METRO | I119: 0 | J119: 0 | K119: 0 | L119: 100 | M119: 100 | N119: 2016-03-03 | O119: ASSAISONNEMENT
A120: cumin en graine | B120: kg | C120: 5 | H120: METRO | I120: 0 | J120: 0 | K120: 0 | L120: 100 | M120: 100 | N120: 2016-03-03 | O120: ASSAISONNEMENT
A121: curcuma | B121: kg | C121: 5 | H121: METRO | I121: 0 | J121: 0 | K121: 0 | L121: 100 | M121: 100 | N121: 2016-03-03 | O121: ASSAISONNEMENT
A122: Curry 450G | B122: kg | C122: 5 | D122: 1 | E122: 1 | F122: 1 | G122: 1 | H122: METRO | I122: 17 | J122: 0 | K122: 0 | L122: 100 | M122: 100 | N122: 2016-03-03 | O122: ASSAISONNEMENT
A123: décafé pantera | B123: kg | C123: 5 | H123: PONTI | I123: 0 | J123: 0 | K123: 0 | L123: 100 | M123: 100 | N123: 2015-04-01 | O123: CAFE & THE
A124: décafé pantera 0,007g | B124: pièce | C124: 5 | H124: PONTI | I124: 0 | J124: 0 | K124: 0 | L124: 100 | M124: 100 | N124: 2015-04-01 | O124: CAFE & THE
A125: Dragées colorées déco gateaux | B125: kg | C125: 5 | D125: 0 | E125: 0 | F125: 996 | G125: 0 | H125: METRO | I125: 3984 | J125: 0 | K125: 0 | L125: 100 | M125: 100 | N125: 2016-03-03 | O125: SUCRES
A126: Eau de fleur d'oranger | B126: Litre | C126: 5 | D126: 0 | E126: 0 | F126: 0 | G126: 0 | H126: METRO | I126: 0 | J126: 0 | K126: 0 | L126: 100 | M126: 100 | N126: 2016-03-03 | O126: ASSAISONNEMENT
A127: Echalotes | B127: kg | C127: 5 | D127: 1 | E127: 1 | F127: 1 | G127: 1 | H127: JOSA | I127: 17 | J127: 0.1 | K127: 10 | L127: 90 | M127: 100 | O127: CONDIMENTS
A128: écrevisse | B128: kg | C128: 5 | H128: METRO | J128: 0 | K128: 0 | L128: 100 | M128: 100 | O128: POISSON
A129: Emmental rappé | B129: kg | C129: 5 | D129: 287 | E129: 285 | F129: 0 | G129: 0 | H129: METRO | I129: =((D129*4)+(F129*4)+(E129*9)) -> 3713 | J129: 0 | K129: 0 | L129: 100 | M129: 100 | O129: FROMAGE
A130: Emmental tranché (dose : 2,5 demi T =25g) | B130: pièce | C130: 5 | H130: LOBET | J130: 0 | K130: 0 | L130: 100 | M130: 100 | N130: 2016-04-25 | O130: FROMAGE
A131: Emmental tranché (dose : 3 demi T =30g) | B131: pièce | C131: 5 | H131: LOBET | J131: 0 | K131: 0 | L131: 100 | M131: 100 | N131: 2016-04-25 | O131: FROMAGE
A132: Emmental tranche 1kg | B132: kg | C132: 5 | H132: LOBET | J132: 0 | K132: 0 | L132: 100 | M132: 100 | N132: 2016-04-25 | O132: FROMAGE
A133: Endives | B133: kg | C133: 5 | D133: 10 | E133: 0 | F133: 3 | G133: 15 | H133: JOSA | I133: =((D133*4)+(F133*4)+(E133*9)) -> 52 | J133: 0.2 | K133: 20 | L133: 80 | M133: 100 | O133: LEGUMES
A134: épice couscous | B134: kg | C134: 5 | H134: METRO | I134: 0 | J134: 0 | K134: 0 | L134: 100 | M134: 100 | N134: 2016-03-03 | O134: ASSAISONNEMENT | P134: boite =850g
A135: épice cumin 400g | B135: kg | C135: 5 | H135: METRO | I135: 0 | J135: 0 | K135: 0 | L135: 100 | M135: 100 | N135: 2016-02-26 | O135: ASSAISONNEMENT
A136: épice curcuma 500g | B136: kg | C136: 5 | H136: METRO | I136: 0 | J136: 0 | K136: 0 | L136: 100 | M136: 100 | N136: 2016-02-26 | O136: ASSAISONNEMENT
A137: épice Italien 200g | B137: kg | C137: 5 | H137: METRO | I137: 0 | J137: 0 | K137: 0 | L137: 100 | M137: 100 | N137: 2016-02-26 | O137: ASSAISONNEMENT
A138: épice poulet | B138: kg | C138: 5 | H138: METRO | I138: 0 | J138: 0 | K138: 0 | L138: 100 | M138: 100 | O138: ASSAISONNEMENT
A139: épice Thai 240g | B139: kg | C139: 5 | H139: METRO | I139: 0 | J139: =K139/M139 -> 0 | K139: =M139-L139 -> 0 | L139: 100 | M139: 100 | N139: 2016-02-26 | O139: ASSAISONNEMENT
A140: épices poulet Horeca | B140: kg | C140: 5 | H140: METRO | I140: 0 | J140: 0 | K140: 0 | L140: 100 | M140: 100 | N140: 2016-03-03 | O140: ASSAISONNEMENT | P140: boite =850g
A141: Epinards frais | B141: kg | C141: 5 | D141: 19 | E141: 5 | F141: 7 | G141: 13 | H141: JOSA | I141: 149 | J141: 0.2 | K141: 20 | L141: 80 | M141: 100 | O141: LEGUMES
A142: estragon | B142: kg | C142: 5 | H142: METRO | I142: 0 | J142: 0 | K142: 0 | L142: 100 | M142: 100 | N142: 2016-03-03 | O142: ASSAISONNEMENT
A143: Extrait de café | B143: Litre | C143: 5 | D143: 1 | E143: 1 | F143: 1 | G143: 1 | H143: METRO | I143: 17 | J143: 0 | K143: 0 | L143: 100 | M143: 100 | O143: ASSAISONNEMENT
A144: farine fementante | B144: kg | C144: 5 | H144: METRO | J144: 0 | K144: 0 | L144: 100 | M144: 100 | N144: 2016-03-03 | O144: PATES & RIZ & FECULES
A145: Farine t55 | B145: kg | C145: 5 | D145: 102 | E145: 12 | F145: 673 | G145: 61 | H145: METRO | I145: =((D145*4)+(F145*4)+(E145*9)) -> 3208 | J145: 0 | K145: 0 | L145: 100 | M145: 100 | O145: PATES & RIZ & FECULES
A146: Fécule de pomme de terre | B146: kg | C146: 5 | D146: 1 | E146: 0 | F146: 810 | G146: 0 | H146: METRO | I146: 3244 | J146: 0 | K146: 0 | L146: 100 | M146: 100 | O146: PATES & RIZ & FECULES
A147: fenouil en graines | B147: kg | C147: 5 | H147: METRO | I147: 0 | J147: 0 | K147: 0 | L147: 100 | M147: 100 | N147: 2016-06-03 | O147: ASSAISONNEMENT
A148: Fêta | B148: kg | C148: 5 | D148: 150 | E148: 221 | F148: 15 | G148: 0 | H148: LOBET | I148: 2649 | J148: 0.05 | K148: 5 | L148: 95 | M148: 100 | O148: FROMAGE
A149: feuille de gélatine pack 500g | B149: kg | C149: 5 | D149: 876 | E149: 10 | F149: 0 | G149: 0 | H149: METRO | I149: 3594 | J149: 0 | K149: 0 | L149: 100 | M149: 100 | N149: 2016-03-03 | O149: AUTRES
A150: feuille de menthe | B150: kg | C150: 5 | H150: METRO | I150: 0 | J150: 0 | K150: 0 | L150: 100 | M150: 100 | N150: 2016-03-03 | O150: ASSAISONNEMENT
A151: Figue fraiche | B151: pièce | C151: 5 | H151: JOSA | I151: 0 | J151: 0 | K151: 0 | L151: 100 | M151: 100 | O151: FRUITS
A152: flocons d'avoine | B152: kg | C152: 5 | H152: BIO | J152: 0 | K152: 0 | L152: 100 | M152: 100 | O152: PATES & RIZ & FECULES
A153: flocons d'avoine quaker oats | B153: kg | C153: 5 | H153: METRO | J153: 0 | K153: 0 | L153: 100 | M153: 100 | O153: PATES & RIZ & FECULES
A154: Fraises | B154: kg | C154: 5 | D154: 7 | E154: 0 | F154: 52 | G154: 13 | H154: JOSA | I154: =((D154*4)+(F154*4)+(E154*9)) -> 236 | J154: 0.1 | K154: 10 | L154: 90 | M154: 100 | O154: FRUITS
A155: Fraises (la pièce = 0,010g) | B155: pièce | C155: 5 | D155: 7 | E155: 0 | F155: 52 | G155: 13 | H155: JOSA | I155: 236 | J155: 0.1 | K155: 10 | L155: 90 | M155: 100 | O155: FRUITS
A156: Framboises | B156: kg | C156: 5 | D156: 10 | E156: 0 | F156: 70 | G156: 74 | H156: JOSA | I156: 320 | J156: 0 | K156: 0 | L156: 100 | M156: 100 | O156: FRUITS
A157: Framboises (la pièce = 0,0042g) | B157: pièce | C157: 5 | D157: 10 | E157: 0 | F157: 70 | G157: 74 | H157: JOSA | I157: 320 | J157: 0 | K157: 0 | L157: 100 | M157: 100 | O157: FRUITS
A158: Framboises congelées | B158: kg | C158: 5 | D158: 10 | E158: 0 | F158: 70 | G158: 74 | H158: DAVIGEL | I158: 320 | J158: 0.05 | K158: 5 | L158: 95 | M158: 100 | O158: SURGELES
A159: fromage à raclette | B159: kg | C159: 5 | D159: 245 | E159: 274 | F159: 3 | G159: 0 | H159: LOBET | I159: 3458 | J159: 0 | K159: 0 | L159: 100 | M159: 100 | O159: FROMAGE
A160: fromage à raclette METRO | B160: kg | C160: 5 | H160: METRO | I160: 0 | J160: 0 | K160: 0 | L160: 100 | M160: 100 | O160: FROMAGE
A161: Fromage blanc gras 3k | B161: kg | C161: 5 | D161: 80 | E161: 94 | F161: 51 | G161: 0 | H161: LOBET | I161: 1370 | J161: 0 | K161: 0 | L161: 100 | M161: 100 | N161: 2015-04-02 | O161: LAITAGE
A162: fruit sec : Pistaches | B162: kg | C162: 5 | D162: 206 | E162: 444 | F162: 93 | G162: 103 | H162: METRO | I162: 5192 | J162: 0 | K162: 0 | L162: 100 | M162: 100 | O162: FRUITS SECS
A163: fruit sec : Pruneaux | B163: kg | C163: 5 | D163: 22 | E163: 4 | F163: 450 | G163: 71 | H163: METRO | I163: 1924 | J163: 0 | K163: 0 | L163: 100 | M163: 100 | O163: FRUITS SECS
A164: fruits secs : abricot | B164: kg | C164: 5 | H164: METRO | J164: 0 | K164: 0 | L164: 100 | M164: 100 | N164: estim | O164: PATES & RIZ & FECULES
A165: Gélatine en feuille ( 1f=5g)/ 1k = 200f | B165: pièce | C165: 5 | D165: 876 | E165: 10 | F165: 0 | G165: 0 | H165: METRO | I165: =((D165*4)+(F165*4)+(E165*9)) -> 3594 | J165: 0 | K165: 0 | L165: 100 | M165: 100 | N165: 2016-03-03 | O165: AUTRES
A166: gingembre (lamelle sushi) | B166: kg | C166: 5 | H166: METRO | I166: 0 | J166: 0.5 | K166: 50 | L166: 50 | M166: 100 | N166: 2016-03-03 | O166: DIVERS
A167: Gingembre sec | B167: kg | C167: 5 | D167: 1 | E167: 1 | F167: 1 | G167: 1 | H167: METRO | I167: 17 | J167: 0 | K167: 0 | L167: 100 | M167: 100 | N167: 2016-03-03 | O167: ASSAISONNEMENT
A168: glaçon par 5 | B168: Unité | C168: 5 | H168: CIABATTA MANIA | I168: 0 | J168: 0 | K168: 0 | L168: 100 | M168: 100 | O168: DIVERS
A169: gorgonzola | B169: kg | C169: 5 | H169: LOBET | I169: 0 | J169: 0 | K169: 0 | L169: 100 | M169: 100 | O169: FROMAGE
A170: gorgonzola piquant | B170: kg | C170: 5 | H170: LOBET | I170: 0 | J170: 0 | K170: 0 | L170: 100 | M170: 100 | O170: FROMAGE
A171: gouda ss croute tranché | B171: kg | C171: 5 | D171: 253 | E171: 278 | F171: 0 | G171: 0 | H171: LOBET | I171: 3514 | J171: =K171/M171 -> 0 | K171: =M171-L171 -> 0 | L171: 100 | M171: 100 | N171: 2016-04-25 | O171: FROMAGE
A172: gouda ss croute tranché (dose : 2,5 demi T =25g) | B172: pièce | C172: 5 | H172: LOBET | J172: 0 | K172: 0 | L172: 100 | M172: 100 | N172: 2016-04-25 | O172: FROMAGE
A173: gouda ss croute tranché (dose : 3 demi T =30g) | B173: pièce | C173: 5 | D173: 253 | E173: 278 | F173: 0 | G173: 0 | H173: LOBET | I173: =((D173*4)+(F173*4)+(E173*9)) -> 3514 | J173: 0 | K173: 0 | L173: 100 | M173: 100 | N173: 2016-04-25 | O173: FROMAGE
A174: graines : Pignons de pins | B174: kg | C174: 5 | D174: 1 | E174: 1 | F174: 1 | G174: 1 | H174: METRO | I174: 17 | J174: 0 | K174: 0 | L174: 100 | M174: 100 | O174: FRUITS SECS
A175: Graines de courge | B175: kg | C175: 5 | D175: 244 | E175: 456 | F175: 152 | G175: 53 | H175: METRO | I175: 5688 | J175: 0 | K175: 0 | L175: 100 | M175: 100 | O175: FRUITS SECS
A176: Graines de sésame | B176: kg | C176: 5 | D176: 228 | E176: 535 | F176: 19 | G176: 30 | H176: METRO | I176: 5803 | J176: 0 | K176: 0 | L176: 100 | M176: 100 | O176: FRUITS SECS
A177: Gros sel | B177: kg | C177: 5 | D177: 1 | E177: 1 | F177: 1 | G177: 1 | H177: METRO | I177: 17 | J177: 0 | K177: 0 | L177: 100 | M177: 100 | N177: 2016-03-03 | O177: ASSAISONNEMENT
A178: Groseilles congelées | B178: kg | C178: 5 | D178: 10 | E178: 0 | F178: 50 | G178: 82 | H178: DAVIGEL | I178: 240 | J178: 0.05 | K178: 5 | L178: 95 | M178: 100 | O178: SURGELES
A179: haricot blanc | B179: kg | C179: 5 | H179: METRO | I179: 0 | J179: 0 | K179: 0 | L179: 100 | M179: 100 | O179: PATES & RIZ & FECULES
A180: herbe de provence | B180: kg | C180: 5 | H180: METRO | I180: 0 | J180: 0 | K180: 0 | L180: 100 | M180: 100 | N180: 2016-03-03 | O180: ASSAISONNEMENT
A181: houmous | C181: 5 | H181: METRO | I181: 0 | J181: 0 | K181: 0 | L181: 100 | M181: 100 | O181: PESTO
A182: huile de tournesol | B182: Litre | C182: 5 | H182: METRO | J182: 0 | K182: 0 | L182: 100 | M182: 100 | O182: ASSAISONNEMENT
A183: Huile d'olive | B183: Litre | C183: 5 | D183: 0 | E183: 998 | F183: 0 | G183: 0 | H183: METRO | I183: =((D183*4)+(F183*4)+(E183*9)) -> 8982 | J183: 0 | K183: 0 | L183: 100 | M183: 100 | O183: ASSAISONNEMENT
A184: Huile d'olive vinaigrette | B184: Litre | C184: 5 | H184: METRO | J184: 0 | K184: 0 | L184: 100 | M184: 100 | O184: ASSAISONNEMENT
A185: Jambon blanc COST (35T au k) | B185: kg | C185: 5 | H185: VT FOOD | I185: =((D185*4)+(F185*4)+(E185*9)) -> 0 | J185: 0 | K185: 0 | L185: 100 | M185: 100 | O185: CHARCUTERIE
A186: Jambon blanc COST / 3/4 Tranche | B186: pièce | C186: 5 | H186: VT FOOD | I186: 0 | J186: 0 | K186: 0 | L186: 100 | M186: 100 | O186: CHARCUTERIE
A187: Jambon blanc COST / La Tranche | B187: pièce | C187: 5 | H187: VT FOOD | I187: 0 | J187: 0 | K187: 0 | L187: 100 | M187: 100 | O187: CHARCUTERIE
A188: Jambon blanc METRO (26T au K) | B188: kg | C188: 5 | D188: 207 | E188: 29 | F188: 9 | G188: 0 | H188: METRO | I188: 1125 | J188: 0 | K188: 0 | L188: 100 | M188: 100 | O188: CHARCUTERIE
A189: Jambon blanc METRO la demi tranche | B189: pièce | C189: 5 | D189: 207 | E189: 29 | F189: 9 | G189: 0 | H189: METRO | I189: 1125 | J189: 0 | K189: 0 | L189: 100 | M189: 100 | O189: CHARCUTERIE
A190: Jambon blanc METRO la tranche | B190: pièce | C190: 5 | D190: 207 | E190: 29 | F190: 9 | G190: 0 | H190: METRO | I190: 1125 | J190: 0 | K190: 0 | L190: 100 | M190: 100 | O190: CHARCUTERIE
A191: Jambon blanc PICNIC (25T au k) | B191: kg | C191: 5 | H191: VT FOOD | I191: 0 | J191: 0 | K191: 0 | L191: 100 | M191: 100 | O191: CHARCUTERIE
A192: Jambon blanc PICNIC / la demi tranche | B192: pièce | C192: 5 | H192: VT FOOD | I192: 0 | J192: 0 | K192: 0 | L192: 100 | M192: 100 | O192: CHARCUTERIE
A193: Jambon blanc PICNIC / La Tranche | B193: pièce | C193: 5 | H193: VT FOOD | I193: 0 | J193: 0 | K193: 0 | L193: 100 | M193: 100 | O193: CHARCUTERIE
A194: Jambon blanc PICNIC/ la demi T + 1quart de T | B194: pièce | C194: 5 | H194: VT FOOD | I194: 0 | J194: 0 | K194: 0 | L194: 100 | M194: 100 | O194: CHARCUTERIE
A195: Jambon blanc SELECTION (26T au K) | B195: kg | C195: 5 | H195: VT FOOD | I195: 0 | J195: 0 | K195: 0 | L195: 100 | M195: 100 | O195: CHARCUTERIE
A196: Jambon blanc SELECTION (26T au K) | B196: kg | C196: 5 | H196: VT FOOD | I196: =((D196*4)+(F196*4)+(E196*9)) -> 0 | J196: =K196/M196 -> 0 | K196: =M196-L196 -> 0 | L196: 100 | M196: 100 | O196: CHARCUTERIE
A197: Jambon blanc SELECTION / La demi Tranche | B197: pièce | C197: 5 | H197: VT FOOD | I197: 0 | J197: 0 | K197: 0 | L197: 100 | M197: 100 | O197: CHARCUTERIE
A198: Jambon blanc SELECTION / La demi Tranche | B198: pièce | C198: 5 | H198: VT FOOD | I198: =((D198*4)+(F198*4)+(E198*9)) -> 0 | J198: =K198/M198 -> 0 | K198: =M198-L198 -> 0 | L198: 100 | M198: 100 | O198: CHARCUTERIE
A199: Jambon blanc SELECTION / La Tranche | B199: pièce | C199: 5 | H199: VT FOOD | I199: 0 | J199: 0 | K199: 0 | L199: 100 | M199: 100 | O199: CHARCUTERIE
A200: Jambon blanc SELECTION / La Tranche | B200: pièce | C200: 5 | H200: VT FOOD | I200: =((D200*4)+(F200*4)+(E200*9)) -> 0 | J200: =K200/M200 -> 0 | K200: =M200-L200 -> 0 | L200: 100 | M200: 100 | O200: CHARCUTERIE
... 354 more rows

Sheet 01b BOISSONS
A1: A LA CARTE | B1: TYPE | C1: UNIT2 | E1: ACHAT HT | F1: REMISE | G1: ACHAT HT | H1: COND | I1: ACHAT PU HT | J1: VENTE HT EMPORTE | K1: VENTE EMPORTE TTC | L1: COEF EMPORTE | M1: marge BRUTE en € EMPORTE | N1: emballage sur place | O1: ACHAT + emball PU HT | P1: VENTE HT | Q1: VENTE TTC | R1: COEF | S1: marge BRUTE en €
A2: A LA CARTE | B2: VIN | C2: 25 | D2: VERRE | E2: 5 | F2: 0 | G2: =+E2-((E2*F2)/100) -> 5 | H2: 6 | I2: =G2/H2 -> 0.8333333333 | J2: =+K2/1.21 -> 1.652892562 | K2: 2 | L2: =J2/I2 -> 1.983471074 | M2: =+J2-I2 -> 0.8195592287 | N2: 0.028 | O2: =I2+N2 -> 0.8613333333 | P2: =+Q2/1.21 -> 2.479338843 | Q2: 3 | R2: =+P2/O2 -> 2.878489369 | S2: =+P2-O2 -> 1.61800551
A3: EN SOMMEIL | B3: COCA DANOIS | C3: 33 | D3: CANS | E3: 11 | F3: 10 | G3: 9.9 | H3: 24 | I3: 0.4125 | J3: =+K3/1.06 -> 1.886792453 | K3: 2 | L3: 4.57404231 | M3: 1.474292453 | N3: 0.028 | O3: 0.4405 | P3: 1.652892562 | Q3: 2 | R3: 3.752310016 | S3: 1.212392562
A4: EN SOMMEIL | B4: COCA LIGHT DANOIS | C4: 33 | D4: CANS | E4: 11 | F4: 10 | G4: 9.9 | H4: 24 | I4: 0.4125 | J4: =+K4/1.06 -> 1.886792453 | K4: 2 | L4: 4.57404231 | M4: 1.474292453 | N4: 0.028 | O4: 0.4405 | P4: 1.652892562 | Q4: 2 | R4: 3.752310016 | S4: 1.212392562
A5: EN SOMMEIL | B5: COCA ZERO DANOIS | C5: 33 | D5: CANS | E5: 11 | F5: 10 | G5: 9.9 | H5: 24 | I5: 0.4125 | J5: =+K5/1.06 -> 1.886792453 | K5: 2 | L5: 4.57404231 | M5: 1.474292453 | N5: 0.028 | O5: 0.4405 | P5: 1.652892562 | Q5: 2 | R5: 3.752310016 | S5: 1.212392562
A6: EN SOMMEIL | B6: SPRITE DANOIS | C6: 33 | D6: CANS | E6: 11 | F6: 10 | G6: 9.9 | H6: 24 | I6: 0.4125 | J6: =+K6/1.06 -> 1.886792453 | K6: 2 | L6: 4.57404231 | M6: 1.474292453 | N6: 0.028 | O6: 0.4405 | P6: 1.652892562 | Q6: 2 | R6: 3.752310016 | S6: 1.212392562
A7: A LA CARTE | B7: BELVOIR VERRE | C7: 25 | D7: VERRE | E7: 5 | F7: 10 | G7: 4.5 | H7: 24 | I7: 0.1875 | J7: =+K7/1.06 -> 1.886792453 | K7: 2 | L7: 10.06289308 | M7: 1.699292453 | N7: 0.028 | O7: 0.2155 | P7: 2.479338843 | Q7: 3 | R7: 11.50505264 | S7: 2.263838843
A8: A LA CARTE | B8: PTIT CHARDONNAY | C8: 18.7 | D8: VERRE | E8: 5 | F8: 0 | G8: 5 | H8: 4 | I8: 1.25 | J8: =+K8/1.21 -> 1.652892562 | K8: 2 | L8: 1.32231405 | M8: 0.402892562 | N8: 0.028 | O8: 1.278 | P8: 2.479338843 | Q8: 3 | R8: 1.940014744 | S8: 1.201338843
A9: A LA CARTE | B9: PTIT MERLOT | C9: 18.7 | D9: VERRE | E9: 5 | F9: 0 | G9: 5 | H9: 4 | I9: 1.25 | J9: =+K9/1.21 -> 1.652892562 | K9: 2 | L9: 1.32231405 | M9: 0.402892562 | N9: 0.028 | O9: 1.278 | P9: 2.479338843 | Q9: 3 | R9: 1.940014744 | S9: 1.201338843
A10: A LA CARTE | B10: BIONINA | C10: 33 | D10: CANS | E10: 5 | F10: 10 | G10: 4.5 | H10: 24 | I10: 0.1875 | J10: =+K10/1.06 -> 1.886792453 | K10: 2 | L10: 10.06289308 | M10: 1.699292453 | N10: 0.028 | O10: 0.2155 | P10: 2.479338843 | Q10: 3 | R10: 11.50505264 | S10: 2.263838843
A11: EN SOMMEIL | B11: FANTA | C11: 33 | D11: CANS | E11: 12.75 | F11: 10 | G11: 11.475 | H11: 24 | I11: 0.478125 | J11: =+K11/1.06 -> 1.886792453 | K11: 2 | L11: 3.946232581 | M11: 1.408667453 | N11: 0.028 | O11: 0.506125 | P11: 1.652892562 | Q11: 2 | R11: 3.265779327 | S11: 1.146767562
A12: A LA CARTE | B12: ARIZONA | C12: 50 | D12: PET | E12: 5 | F12: 10 | G12: 4.5 | H12: 6 | I12: 0.75 | J12: =+K12/1.06 -> 1.886792453 | K12: 2 | L12: 2.51572327 | M12: 1.136792453 | N12: 0.028 | O12: 0.778 | P12: 2.479338843 | Q12: 3 | R12: 3.186810852 | S12: 1.701338843
A13: A LA CARTE | B13: MINUT MAID POMME | C13: 33 | D13: PET | E13: 5 | F13: 10 | G13: 4.5 | H13: 24 | I13: 0.1875 | J13: =+K13/1.06 -> 1.886792453 | K13: 2 | L13: 10.06289308 | M13: 1.699292453 | N13: 0.028 | O13: 0.2155 | P13: 2.479338843 | Q13: 3 | R13: 11.50505264 | S13: 2.263838843
A14: A LA CARTE | B14: MAES | C14: 33 | E14: 5 | F14: 0 | G14: 5 | H14: 24 | I14: 0.2083333333 | J14: =+K14/1.21 -> 1.652892562 | K14: 2 | L14: 7.933884298 | M14: 1.444559229 | N14: 0.028 | O14: 0.2363333333 | P14: 2.479338843 | Q14: 3 | R14: 10.49085547 | S14: 2.24300551
A15: EN SOMMEIL | B15: LIPTON ICE TEA | C15: 33 | D15: CANS | E15: 9.21 | F15: 10 | G15: 8.289 | H15: 16 | I15: 0.5180625 | J15: =+K15/1.06 -> 1.886792453 | K15: 2 | L15: 3.64201704 | M15: 1.368729953 | N15: 0.028 | O15: 0.5460625 | P15: 1.652892562 | Q15: 2 | R15: 3.026929265 | S15: 1.106830062
A16: A LA CARTE | B16: SAN PE ORANGE | C16: 33 | D16: CANS | E16: 5 | F16: 10 | G16: 4.5 | H16: 24 | I16: 0.1875 | J16: =+K16/1.06 -> 1.886792453 | K16: 2 | L16: 10.06289308 | M16: 1.699292453 | N16: 0.028 | O16: 0.2155 | P16: 2.479338843 | Q16: 3 | R16: 11.50505264 | S16: 2.263838843
A17: EN SOMMEIL | B17: V8 | C17: 25 | D17: PET | E17: 30.88 | F17: 10 | G17: 27.792 | H17: 24 | I17: 1.158 | J17: =+K17/1.06 -> 3.490566038 | K17: 3.7 | L17: 3.014305732 | M17: 2.332566038 | N17: 0.028 | O17: 1.186 | P17: 3.553719008 | Q17: 4.3 | R17: 2.996390395 | S17: 2.367719008
A18: A LA CARTE | B18: HOOGARDEN | C18: 33 | E18: 5 | F18: 0 | G18: 5 | H18: 24 | I18: 0.2083333333 | J18: =+K18/1.21 -> 1.652892562 | K18: 2 | L18: 7.933884298 | M18: 1.444559229 | N18: 0.028 | O18: 0.2363333333 | P18: 2.479338843 | Q18: 3 | R18: 10.49085547 | S18: 2.24300551
A19: EN SOMMEIL | B19: FIREFLY | C19: 40 | D19: VERRE | E19: 17.02 | F19: 10 | G19: 15.318 | H19: 12 | I19: 1.2765 | J19: =+K19/1.06 -> 3.867924528 | K19: 4.1 | L19: 3.030101471 | M19: 2.591424528 | N19: 0.028 | O19: 1.3045 | P19: 3.884297521 | Q19: 4.7 | R19: 2.977614044 | S19: 2.579797521
A20: A LA CARTE | B20: SPA REINE BLEU | C20: 50 | D20: PET | E20: 5 | F20: 10 | G20: 4.5 | H20: 24 | I20: 0.1875 | J20: 1.886792453 | K20: 2 | L20: 10.06289308 | M20: 1.699292453 | N20: 0.028 | O20: 0.2155 | P20: 2.479338843 | Q20: 3 | R20: 11.50505264 | S20: 2.263838843
A21: A LA CARTE | B21: COCA | C21: 33 | D21: CANS | E21: 5 | F21: 10 | G21: 4.5 | H21: 24 | I21: 0.1875 | J21: 1.886792453 | K21: 2 | L21: 10.06289308 | M21: 1.699292453 | N21: 0.028 | O21: 0.2155 | P21: 2.479338843 | Q21: 3 | R21: 11.50505264 | S21: 2.263838843
A22: EN SOMMEIL | B22: CHARLIES | C22: 33 | D22: CANS | E22: 19.36 | F22: 10 | G22: 17.424 | H22: 24 | I22: 0.726 | J22: 2.169811321 | K22: 2.3 | L22: 2.988720827 | M22: 1.443811321 | N22: 0.028 | O22: 0.754 | P22: 2.231404959 | Q22: 2.7 | R22: 2.959423022 | S22: 1.477404959
A23: A LA CARTE | B23: COCA LIGHT | C23: 33 | D23: CANS | E23: 5 | F23: 10 | G23: 4.5 | H23: 24 | I23: 0.1875 | J23: 1.886792453 | K23: 2 | L23: 10.06289308 | M23: 1.699292453 | N23: 0.028 | O23: 0.2155 | P23: 2.479338843 | Q23: 3 | R23: 11.50505264 | S23: 2.263838843
A24: A LA CARTE | B24: COCA ZERO | C24: 33 | D24: CANS | E24: 5 | F24: 10 | G24: 4.5 | H24: 24 | I24: 0.1875 | J24: 1.886792453 | K24: 2 | L24: 10.06289308 | M24: 1.699292453 | N24: 0.028 | O24: 0.2155 | P24: 2.479338843 | Q24: 3 | R24: 11.50505264 | S24: 2.263838843
A25: EN SOMMEIL | B25: CAWSTON RHUBARBE | C25: 33 | D25: CANS | E25: 24.04 | F25: 10 | G25: 21.636 | H25: 24 | I25: 0.9015 | J25: 2.735849057 | K25: 2.9 | L25: 3.034774328 | M25: 1.834349057 | N25: 0.028 | O25: 0.9295 | P25: 2.727272727 | Q25: 3.3 | R25: 2.934128808 | S25: 1.797772727
A26: EN SOMMEIL | B26: BELVOIR | C26: 25 | D26: CANS | E26: 13.9 | F26: 10 | G26: 12.51 | H26: 12 | I26: 1.0425 | J26: 3.20754717 | K26: 3.4 | L26: 3.076783856 | M26: 2.16504717 | N26: 0.028 | O26: 1.0705 | P26: 3.140495868 | Q26: 3.8 | R26: 2.933671992 | S26: 2.069995868
A27: A LA CARTE | B27: SPRITE | C27: 33 | D27: CANS | E27: 5 | F27: 10 | G27: 4.5 | H27: 24 | I27: 0.1875 | J27: 1.886792453 | K27: 2 | L27: 10.06289308 | M27: 1.699292453 | N27: 0.028 | O27: 0.2155 | P27: 2.479338843 | Q27: 3 | R27: 11.50505264 | S27: 2.263838843
A28: EN SOMMEIL | B28: TAO 25CL | C28: 25 | D28: CANS | E28: 23.31 | F28: 10 | G28: 20.979 | H28: 24 | I28: 0.874125 | J28: 2.641509434 | K28: 2.8 | L28: 3.021889814 | M28: 1.767384434 | N28: 0.028 | O28: 0.902125 | P28: 2.644628099 | Q28: 3.2 | R28: 2.931553941 | S28: 1.742503099
A29: EN SOMMEIL | B29: BERRY CIE 33CL | C29: 33 | D29: TETRA | E29: 12.79 | F29: 10 | G29: 11.511 | H29: 12 | I29: 0.95925 | J29: 2.924528302 | K29: 3.1 | L29: 3.048765496 | M29: 1.965278302 | N29: 0.028 | O29: 0.98725 | P29: 2.892561983 | Q29: 3.5 | R29: 2.929918444 | S29: 1.905311983
A30: A LA CARTE | B30: BRU 50CL | C30: 50 | D30: PET | E30: 5 | F30: 10 | G30: 4.5 | H30: 24 | I30: 0.1875 | J30: 1.886792453 | K30: 2 | L30: 10.06289308 | M30: 1.699292453 | N30: 0.028 | O30: 0.2155 | P30: 2.479338843 | Q30: 3 | R30: 11.50505264 | S30: 2.263838843
A31: EN SOMMEIL | B31: CANADA DRY | C31: 33 | D31: CANS | E31: 15.99 | F31: 10 | G31: 14.391 | H31: 24 | I31: 0.599625 | J31: 1.886792453 | K31: 2 | L31: 3.146620726 | M31: 1.287167453 | N31: 0.028 | O31: 0.627625 | P31: 1.818181818 | Q31: 2.2 | R31: 2.896923829 | S31: 1.190556818
A32: EN SOMMEIL | B32: SWEPPES AGRUM | C32: 33 | D32: CANS | E32: 15.99 | F32: 10 | G32: 14.391 | H32: 24 | I32: 0.599625 | J32: 1.886792453 | K32: 2 | L32: 3.146620726 | M32: 1.287167453 | N32: 0.028 | O32: 0.627625 | P32: 1.818181818 | Q32: 2.2 | R32: 2.896923829 | S32: 1.190556818
A33: EN SOMMEIL | B33: ORANGINA | C33: 33 | D33: CANS | E33: 16.81 | F33: 10 | G33: 15.129 | H33: 24 | I33: 0.630375 | J33: 1.886792453 | K33: 2 | L33: 2.993127032 | M33: 1.256417453 | N33: 0.028 | O33: 0.658375 | P33: 1.900826446 | Q33: 2.3 | R33: 2.88714858 | S33: 1.242451446
A34: A LA CARTE | B34: SPA BARISART ROUGE | C34: 50 | D34: PET | E34: 5 | F34: 10 | G34: 4.5 | H34: 24 | I34: 0.1875 | J34: 1.886792453 | K34: 2 | L34: 10.06289308 | M34: 1.699292453 | N34: 0.028 | O34: 0.2155 | P34: 2.479338843 | Q34: 3 | R34: 11.50505264 | S34: 2.263838843
A35: A LA CARTE | B35: LIPTON ICE TEA | C35: 33 | D35: CANS | E35: 5 | F35: 10 | G35: 4.5 | H35: 24 | I35: 0.1875 | J35: 1.886792453 | K35: 2 | L35: 10.06289308 | M35: 1.699292453 | N35: 0.028 | O35: 0.2155 | P35: 2.479338843 | Q35: 3 | R35: 11.50505264 | S35: 2.263838843
A36: A LA CARTE | B36: CAPRI SUN | C36: 20 | D36: TETRA | E36: 5 | F36: 10 | G36: 4.5 | H36: 40 | I36: 0.1125 | J36: 1.886792453 | K36: 2 | L36: 16.77148847 | M36: 1.774292453 | N36: 0 | O36: 0.1125 | P36: 2.479338843 | Q36: 3 | R36: 22.03856749 | S36: 2.366838843
N37: Gobelet
D39: MES BEST
B43: REGLE TVA BOISSONS - 6% -12% -21%

Sheet 01c #PACK
A1: #00 quoi | B1: prix remisé | C1: remise | D1: px u ht | E1: qte | F1: pxlot | G1: fournisseur | H1: REF COMPLEM
A2: 0 | B2: 0
A3: #pack BONBON | B3: 0.01 | H3: pot bonbon + couvercle bonbon + sticker rond
A4: #pack CEREALES Sp | B4: 0.01 | H4: DM12+ couvercle DM + fourchette + serviette + sticker rectangle + pain
A5: #pack CEREALES ToGo | B5: 0.01 | H5: DM12 + couvercle DM + fourchette + serviette + sticker rectangle + pain + sac transparent
A6: #pack COOKIE | B6: 0.01 | H6: sachet à cookie
A7: #pack CIAB Sp | B7: 0.01 | H7: serviette + frutella
A8: #pack CIAB ToGo | B8: 0.01 | H8: feuille kraft + serviette + napoléon + élastique
A9: #pack DWICH Sp | B9: 0.01 | H9: feuille 35*40 + serviette
A10: #pack DWICH ToGo | B10: 0.01 | H10: feuille 35*40 + serviette + sac transparent
A11: #pack FONDANT | B11: 0.01 | H11: petit sac à croissant + petite cuillère + serviette
A12: #pack GAUFRE SP | B12: 0.01 | H12: fourchette à gaufre + assiette 15 cm + serviette
A13: #pack JUS | B13: 0.01 | H13: TP12 + couvercle + paille
A14: #pack KFE MEDIUM ToGo | B14: 0.01 | H14: agitateur + couvercle + tasse + rocher coco+ sucre
A15: #pack KFE MEDIUM ToGo | B15: 0.01 | H15: agitateur + tasse + rocher coco + sucre
A16: #pack KFE GRAND ToGo | B16: 0.01 | H16: agitateur + couvercle + tasse + rocher coco + sucre
A17: #pack KFE GRAND SP | B17: 0.01 | H17: agitateur + tasse + rocher coco +sucre
A18: #pack PASTA GRANDE Sp | B18: 0.01 | H18: DM 24 + couvercle DM + fourchette + serviette + stickers rectangle + pain
A19: #pack PASTA GRANDE ToGo | B19: 0.01 | H19: DM24 + couv + fourchette + pain + serviette + sticker rectangle + pain + sac transparent
A20: #pack PASTA MEDIUM Sp | B20: 0.01 | H20: DM16 + couv + fourchette + pain + serviette + sticker rectangle + pain
A21: #pack PASTA MEDIUM ToGo | B21: 0.01 | H21: DM16 + couv + fourchette + pain + serviette + sticker rectangle + pain + sac transparent
A22: #pack SALADE SP | B22: 0.01 | H22: saladier + couvercle + couteau + fourchette + sticker rectangle + pain + serviette + pot sauce + couvercle sauce 60ml
A23: #pack SALADE ToGo | B23: 0.01 | H23: saladier + couvercle + couteau + fourchette + sticker rectangle + pain + serviette + pot sauce + couvercle sauce 60ml + sac transparent
A24: #pack SAUCE 30ml | B24: 0.01 | H24: pot + couvercle sauce 30ml
A25: #pack SAUCE 60 ml | B25: 0.01 | H25: pot + couvercle sauce 60 ml
A26: #pack SNACKS Sp | B26: 0.01 | H26: serviette
A27: #pack SNACKS ToGo | B27: 0.01 | H27: petit sac à croissant
A28: #pack SOUPE ToGo | B28: 0.01 | H28: pot + couvercle + pain + serviette + cuillère à soupe + elastique+sac transparent
A29: #pack SOUPE Sp | B29: 0.01 | H29: pot + pain + serviette + cuillère à soupe
A30: #pack TARTE SP | B30: 0.01 | H30: assiette 15 cm + serviette + cuillère petite
A31: #pack TARTE ToGo | B31: 0.01 | H31: boite à tarte plastique + serviette + cuillère petite
A32: #pack YAOURT | B32: 0.01 | H32: pot et couvercle + petite cuillère + serviette
A33: #pack POT ALU ToGo | B33: 0.01 | H33: pot + petite cuillère +serviette + sac à croissant
A34: #pack POT ALU Sp | B34: 0.01 | H34: pot + petite cuillère +serviette
A35: #pack VIN | B35: 0.01 | H35: verre à vin / ESTIMATION

Sheet 01c EMBALLAGE
A1: REF | B1: QUOI | C1: QUOIQUOI | D1: CATEGORIE | E1: QTE
B2: Boite à bonbon | C2: BOITE A BONBON | D2: BONBONS | E2: 100 | F2: 8.75 | G2: 5 | H2: =F2-((F2*G2)/100) -> 8.3125 | I2: 0.01 | J2: CANS
B3: bonbon frutella | C3: bonbon frutella | D3: BONBONS | I3: 0.01 | J3: METRO
B4: bonbon Napoleon | C4: bonbon Napoleon | D4: BONBONS | I4: 0.01 | J4: METRO
B5: couvercle boite à bonbon | C5: COUVERCLE BOITE A BONBON | D5: BONBONS | E5: 100 | F5: 4.4 | G5: 5 | H5: =F5-((F5*G5)/100) -> 4.18 | I5: 0.01 | J5: CANS
A6: CPCBIOPL | B6: couteaux bio "luxe" 17cm 100 pcs | C6: COUTEAUX | D6: COUVERTS | E6: 100 | F6: 3.45 | G6: 5 | H6: =F6-((F6*G6)/100) -> 3.2775 | I6: 0.01 | J6: CANS
A7: CPCRDBIOPL | B7: cuilléres dessert "luxe" bio 12,5cm 100pcs | C7: CUILLERE DESSERT | D7: COUVERTS | E7: 100 | F7: 2.3 | G7: 5 | H7: =F7-((F7*G7)/100) -> 2.185 | I7: 0.01 | J7: CANS
A8: CPCRBIOPL | B8: cuilléres bio "luxe" 17cm 100 pcs | C8: CUILLERE SOUPE | D8: COUVERTS | E8: 100 | F8: 3.45 | G8: 5 | H8: =F8-((F8*G8)/100) -> 3.2775 | I8: 0.01 | J8: CANS
A9: CPFBIOPL | B9: fourchettes bio "luxe" 17cm 100 pcs | C9: FOURCHETTE | D9: COUVERTS | E9: 100 | F9: 3.45 | G9: 5 | H9: =F9-((F9*G9)/100) -> 3.2775 | I9: 0.01 | J9: CANS
B10: fourchette coupante "gaufre" | C10: FOURCHETTE COUPANTE | D10: COUVERTS | I10: 0.01 | J10: METRO
B11: couvercle pot à dessert 5 et 7 oz | C11: couvercle pot à dessert 5 et 7 oz | D11: dessert | I11: 0.01 | J11: CANS
B12: pot à dessert 5 oz | C12: pot à dessert 5 oz | D12: dessert | I12: 0.01 | J12: CANS
B13: pot à dessert 7 oz | C13: pot à dessert 7 oz | D13: dessert | I13: 0.01 | J13: CANS
A14: CPV45PL | B14: film alimentaire en boite ind +cutter 45cmx300m | C14: FILM | D14: DIVERS | E14: 1 | F14: 6.9 | G14: 5 | H14: =F14-((F14*G14)/100) -> 6.555 | I14: 0.01 | J14: CANS
A15: CPGLMPL | B15: gants latex medium à usage unique 1x100pc | C15: GANTS | D15: DIVERS | E15: 100 | F15: 4.5 | G15: 5 | H15: 4.275 | I15: 0.01 | J15: CANS
A16: CPTO200PAP | B16: rouleaux papier toilette "mini jumbo" blanc 2plis | C16: PAPIER WAWA | D16: DIVERS | E16: 8 | F16: 18 | G16: 5 | H16: 17.1 | I16: 0.01 | J16: CANS
A17: CPE811PAP | B17: papier essui main mini 2plis ouate blanche 200m 1x12pc | C17: PAPIER Z MAIN | D17: DIVERS | E17: 12 | F17: 18 | G17: 5 | H17: 17.1 | I17: 0.01 | J17: CANS
A18: CPRCT8080PAP | B18: rouleaux caisse therm 80/80/12 5pc | C18: ROULEAU CAISSE | D18: DIVERS | E18: 5 | F18: 5.65 | G18: 5 | H18: 5.3675 | I18: 0.01 | J18: CANS
A19: CPLG8PL | B19: couvercles tout pots ronds transp "SOLO" 50pcs | C19: COUVERCLE DM | D19: DM | E19: 50 | F19: 2.35 | G19: 5 | H19: 2.2325 | I19: 0.01 | J19: CANS
A20: CPDM12PL | B20: pots ronds transp "SOLO" PET 355ml 50pcs | C20: POT DM BOULGOUR | D20: DM | E20: 50 | F20: 4.4 | G20: 5 | H20: 4.18 | I20: 0.01 | J20: CANS
A21: CPDM8PL | B21: pots ronds transp "SOLO" PET 237ml 50pcs | C21: POT DM DESSERT | D21: DM | E21: 50 | F21: 3.6 | G21: 5 | H21: 3.42 | I21: 0.01 | J21: CANS
A22: CPDM24PL | B22: pots ronds transp "SOLO" PET 710ml 50pcs | C22: POT DM PASTA GRANDE | D22: DM | E22: 50 | F22: 6.1 | G22: 5 | H22: 5.795 | I22: 0.01 | J22: CANS
A23: CPDM16PL | B23: pots ronds transp "SOLO" PET 500ml 50pcs | C23: POT DM PASTA MEDIUM | D23: DM | E23: 50 | F23: 5.3 | G23: 5 | H23: 5.035 | I23: 0.01 | J23: CANS
B24: assiettes 15cm | C24: ASSIETTE 15CM | D24: EMBAL | I24: 0.01 | J24: METRO
B25: assiettes 15cm 100pc: 2,50€ | C25: ASSIETTE 15CM | D25: EMBAL | E25: 100 | F25: 2.5 | G25: 5 | H25: =F25-((F25*G25)/100) -> 2.375 | I25: 0.01 | J25: CANS
B26: barquette à frite carton | C26: barquette à frite carton | D26: EMBAL | I26: 0.01 | J26: METRO
B27: boite à tarte plastique | C27: boite à tarte plastique | D27: EMBAL | I27: 0.01 | J27: CANS
B28: élastique | C28: élastique | D28: EMBAL | I28: 0.01 | J28: METRO
A29: CPDX3340BRPAP | B29: feuille duplex kraft brun ligné 60gr 32x40cm 15kg | C29: FEUILLE KRAFT | D29: EMBAL | E29: 1500 | F29: 29 | G29: 5 | H29: =F29-((F29*G29)/100) -> 27.55 | I29: 0.01 | J29: CANS
A30: CPPP3540PL | B30: feuilles en polypropylénes 35x40cm 1000 pcs | C30: FEUILLE TRANSPARANTE | D30: EMBAL | E30: 1000 | F30: 16.9 | G30: 5 | H30: 16.055 | I30: 0.01 | J30: CANS
A31: POT ALU | B31: pot en alu | C31: POT ALU | D31: EMBAL | E31: 100 | F31: 6.56 | G31: 0 | H31: 6.56 | I31: 0.01 | J31: CANS
A32: CROISSANT | B32: sac à croissant grand | C32: SAC A CROISSANT GRAND | D32: EMBAL | E32: 1000 | F32: 15.9 | H32: 15.9 | I32: 0.01 | J32: CANS
A33: CROISSANT | B33: sac à croissant petit | C33: SAC A CROISSANT PETIT | D33: EMBAL | E33: 1000 | F33: 19.9 | H33: 19.9 | I33: 0.01 | J33: CANS
A34: CPLD48TPL | B34: sacs transparents LDPE 21my 27x48cm 1000pc | C34: SAC TRANSPARENT | D34: EMBAL | E34: 1000 | F34: 26.9 | G34: 5 | H34: 25.555 | I34: 0.01 | J34: CANS
A35: CPSAPP1423PL | B35: sachets polyp 30my fond croisé 145X235mm 100pcs | C35: SACHET COOKIE | D35: EMBAL | E35: 100 | F35: 3.2 | G35: 5 | H35: 3.04 | I35: 0.01 | J35: CANS
A36: CPZIGBPAP | B36: papier bl enchevêtrés 2 plis 4000pcs | D36: EMBAL | E36: 4000 | F36: 29 | G36: 5 | H36: 27.55 | I36: 0.01 | J36: CANS
B37: gobelet à eau | C37: gobelet à eau | D37: gobelet | I37: 0.01 | J37: CANS
B38: agitateur à café en bois | C38: AGITATEUR | D38: KFE | I38: 0.01 | J38: METRO
A39: CP13994BOIS | B39: agitateur à café en bois 14cm "natural" 1000pcs | C39: AGITATEUR | D39: KFE | E39: 1000 | F39: 3.9 | G39: 5 | H39: =F39-((F39*G39)/100) -> 3.705 | I39: 0.01 | J39: CANS
B40: chocolat au lait dose de 35g | C40: chocolat au lait dose de 35g | D40: KFE | I40: 0.01 | J40: METRO
B41: chocolat noir dose de 35g | C41: chocolat noir dose de 35g | D41: KFE | I41: 0.01 | J41: METRO
A42: CPC378XPAP | B42: couv dome pour gob carton bl 250cc 50pc | C42: COUVERCLE KFE LONGO | D42: KFE | E42: 50 | F42: 1.5 | G42: 5 | H42: =F42-((F42*G42)/100) -> 1.425 | I42: 0.01 | J42: CANS
A43: CPC412XPAP | B43: couv dome pour gob carton bl 300cc 50pc | C43: COUVERCLE KFE THE &CHOCOLAT | D43: KFE | E43: 50 | F43: 1.6 | G43: 5 | H43: 1.52 | I43: 0.01 | J43: CANS
A44: CPC374XPAP | B44: couv dome pour gob carton bl 120cc 50pc | C44: COUVERCLE KFE EXPRESSO | D44: KFE | E44: 50 | F44: 0.85 | G44: 5 | H44: 0.8075 | I44: 0.01 | J44: CANS
A45: CP378XPAP | B45: gobelets à café carton blanc 237ML 50pc | C45: GOBELET KFE LONGO | D45: KFE | E45: 50 | F45: 2.2 | G45: 5 | H45: 2.09 | I45: 0.01 | J45: CANS
A46: CP412XPAP | B46: gobelets à café carton bl 355ML 50pc | C46: GOBELET KFE THE &CHOCOLAT | D46: KFE | E46: 50 | F46: 2.6 | G46: 5 | H46: 2.47 | I46: 0.01 | J46: CANS
A47: CPCSLR750PL | B47: couv pour saladier rond CPSLR750AMPL 50pc | C47: COUVERCLE SALADIER | D47: SALADE | E47: 50 | F47: 5.3 | G47: 5 | H47: 5.035 | I47: 0.01 | J47: CANS
A48: CPSLR750AMPL | B48: saladier rond cristal 750ml 50pc | C48: SALADIER | D48: SALADE | E48: 50 | F48: 6.9 | G48: 5 | H48: 6.555 | I48: 0.01 | J48: CANS
B49: tranche de pain | C49: tranche de pain | D49: SALADE | I49: 0.01 | J49: MA BAKER
A50: CPPL1PL | B50: couvercles pots à sauce SOLO CPT125PL 100pc | C50: COUVERCLE SAUCE 30ML | D50: SAUCE | E50: 100 | F50: 1.15 | G50: 5 | H50: =F50-((F50*G50)/100) -> 1.0925 | I50: 0.01 | J50: CANS
A51: CPPL2PL | B51: couv plats pots à sauce SOLO 60ml 100pc | C51: COUVERCLE SAUCE 60 ML | D51: SAUCE | E51: 100 | F51: 1.75 | G51: 5 | H51: 1.6625 | I51: 0.01 | J51: CANS
A52: CPT125PL | B52: pots à sauce SOLO transparent PET 30ml 250pc | C52: SAUCE 30 ML | D52: SAUCE | E52: 250 | F52: 3.65 | G52: 5 | H52: 3.4675 | I52: 0.01 | J52: CANS
A53: CPT200PL | B53: pots à sauce transparent SOLO 60ml 250pc | C53: SAUCE 60 ML | D53: SAUCE | E53: 250 | F53: 4.6 | G53: 5 | H53: 4.37 | I53: 0.01 | J53: CANS
A54: CP10230PAP | B54: serviettes 2plis blanc 25x25cm "tissue"100pcs | C54: SERVIETTE | D54: SERVIETTE | E54: 100 | F54: 0.9 | G54: 5 | H54: 0.855 | I54: 0.01 | J54: CANS
A55: CPVHL16PAP | B55: couv carton bl pour pots SOLO CPHD16PAP 25pc | C55: COUVERCLE A SOUPE | D55: SOUPE | E55: 25 | F55: 2.15 | G55: 5 | H55: 2.0425 | I55: 0.01 | J55: CANS
A56: CPHD16PAP | B56: pots carton bl SOLO micro-ondable 473ml 25pc | C56: POT A SOUPE | D56: SOUPE | E56: 25 | F56: 2.7 | G56: 5 | H56: 2.565 | I56: 0.01 | J56: CANS
A57: STICKERS ROND | B57: STICKERS CARRE | C57: STICKERS CARRE | D57: STICKERS | I57: 0.01 | J57: MAKRO
A58: STICKER RECTANGLE / GALLERY 21 26638 | B58: stickers RECTANGLE | C58: STICKERS RECTANGLE | D58: STICKERS | I58: 0.01 | J58: MAKRO
A59: STICKERS CARRE | B59: STIKERS ROND | C59: STIKERS ROND | D59: STICKERS | I59: 0.01 | J59: MAKRO
A60: CPDL662PL | B60: couvercles dome+ouverture SOLO pour CPTP9PL+CPTP12PL 100pc | C60: COUVERCLE DOME PERCE GOBELET JUS | D60: TP | E60: 100 | F60: 2.9 | G60: 5 | H60: =F60-((F60*G60)/100) -> 2.755 | I60: 0.01 | J60: CANS
A61: CPDN662PL | B61: couvercles dome SOLO pour CPTP9PL+CPTP12PL 100pc | C61: COUVERCLE DOME POT DESSERT | D61: TP | E61: 100 | F61: 2.9 | G61: 5 | H61: 2.755 | I61: 0.01 | J61: CANS
A62: CP662TPPL | B62: couvercles plats SOLO pour CPTP9PL+CPTP12PL 100pc | C62: COUVERCLE PLAT POT DESSERT | D62: TP | E62: 100 | F62: 3.6 | G62: 5 | H62: 3.42 | I62: 0.01 | J62: CANS
A63: CPTP12PL | B63: gobelets milk shake SOLO cristal PET 355ml / 50pc | C63: GOBELET TP12 JUS | D63: TP | E63: 50 | F63: 3.6 | G63: 5 | H63: 3.42 | I63: 0.01 | J63: CANS
A64: CPPLTRPL | B64: pailles transparents larges 25cm 100pc | C64: PAILLE | D64: TP | E64: 50 | F64: 0.95 | G64: 5 | H64: 0.9025 | I64: 0.01 | J64: CANS
A65: CPTP9PL | B65: coupe à dessert SOLO 270ml 50pc | C65: POT TP9 SALADE DE FRUIT | D65: TP | E65: 50 | F65: 3.6 | G65: 5 | H65: 3.42 | I65: 0.01 | J65: CANS
A66: GANT MENAGER JAUNE | B66: GANT MENAGER JAUNE | C66: GANT MENAGER JAUNE | D66: DIVERS | E66: 3 | F66: 1.36 | G66: 0 | H66: 1.36 | I66: 0.01 | J66: METRO
A67: SANYTOL | B67: SANYTOL | C67: SANYTOL | D67: DIVERS | E67: 1 | F67: 3.43 | G67: 0 | H67: 3.43 | I67: 0.01 | J67: METRO
A68: RAMETTE DE PAPIER | B68: RAMETTE DE PAPIER | C68: RAMETTE DE PAPIER | D68: DIVERS | E68: 5 | F68: =10.62/5 -> 2.124 | G68: 0 | H68: 2.124 | I68: 0.01 | J68: METRO
A69: FEUILLE DE PAPIER | B69: FEUILLE DE PAPIER | C69: FEUILLE DE PAPIER | D69: DIVERS | E69: 500 | F69: =2.2124/500 -> 0.0044248 | G69: 0 | H69: 0.0044248 | I69: 0.01 | J69: METRO
A70: RAPE A CAROTTE | B70: RAPE A CAROTTE | C70: RAPE A CAROTTE | D70: DIVERS | E70: 1 | F70: 6.6 | G70: 0 | H70: =F70-((F70*G70)/100) -> 6.6 | I70: 0.01 | J70: METRO
I71: 0.01
I72: 0.01
I73: 0.01
I74: 0.01
I75: 0.01

Sheet 01c SANS TRANSFORMATION
A1: à la carte | B1: Fournisseur | D1: TYPE | E1: DATE | F1: Ref | G1: poids | H1: nbre u par carton | I1: ACHAT HT | J1: ACHAT UHT | K1: REMISE | L1: ACHAT UHT remisé | M1: emballage emporté | N1: EMBALLAGE EMPORTE | O1: achat ht EMBALLAGE EMPORTE | P1: emballage sur place | Q1: EMBALLAGE SUR PLACE | R1: achat ht EMBALLAGESUR PLACE | S1: prix pratiqué | T1: TVA EMPORTE | U1: TVA SUR PLACE | V1: ht TO GO | W1: HT sur place | X1: COEFF EMPORTE | Y1: COEFF SUR PLACE | Z1: marge EMPORTE | AA1: marge SUR PLACE
A2: à la carte | B2: DAVIGEL | C2: actif | D2: TARTE NOIX DE PECAN | H2: 8 | I2: =17.9/2 -> 8.95 | J2: =I2/H2 -> 1.11875 | K2: 0 | L2: =J2-(J2*K2) -> 1.11875 | M2: TARTE TOGO | N2: 0.198 | O2: =+L2+N2 -> 1.31675 | P2: TARTE SP | Q2: 0.0814 | R2: =+L2+Q2 -> 1.20015 | S2: 3.5 | T2: 0.06 | U2: 0.12 | V2: =+S2/1.06 -> 3.301886792 | W2: =+S2/1.12 -> 3.125 | X2: =+V2/O2 -> 2.507603412 | Y2: =+W2/R2 -> 2.603841187 | Z2: =+V2-O2 -> 1.985136792 | AA2: =+W2-R2 -> 1.92485
A3: en sommeil | B3: DELIDRINCKS | C3: actif | D3: BARRE DE CHOCOLAT LOVE | J3: 1.66 | K3: 0 | L3: 1.66 | M3: RIEN | O3: =+L3+N3 -> 1.66 | R3: =L3+Q3 -> 1.66 | S3: 6 | T3: 0.06 | U3: 0.12 | V3: =S3/1.06 -> 5.660377358 | W3: =S3/1.21 -> 4.958677686 | X3: =V3/O3 -> 3.409865879 | Y3: =W3/R3 -> 2.987155233 | Z3: =V3-O3 -> 4.000377358 | AA3: =W3-R3 -> 3.298677686
A4: en sommeil | B4: INTER DRINKS | C4: inactif | D4: BERRY CIE 33CL | H4: 12 | I4: 12.08 | J4: =I4/H4 -> 1.006666667 | K4: 0 | L4: 1.006666667 | M4: DRINCK | N4: 0 | O4: =+L4+N4 -> 1.006666667 | P4: GOBELET | Q4: 0.028 | R4: =+L4+Q4 -> 1.034666667 | S4: 3.7 | T4: 0.06 | U4: 0.21 | V4: =+S4/1.06 -> 3.490566038 | W4: =+S4/1.21 -> 3.05785124 | X4: =+V4/O4 -> 3.467449706 | Y4: =+W4/R4 -> 2.955397461 | Z4: =+V4-O4 -> 2.483899371 | AA4: =+W4-R4 -> 2.023184573
A5: en sommeil | B5: sweetness heaven | C5: inactif | D5: brownie double choco 32/34 pièce | J5: 0.53 | K5: 0 | L5: 0.53 | S5: 2.2 | V5: =S5-(S5*#REF!) ->  | W5: =S5-(S5*#REF!) -> 
A6: à la carte | B6: DAVIGEL | C6: inactif | D6: GRAND MOELLEUX AU CITRON | H6: 8 | I6: =12/2 -> 6 | J6: =I6/H6 -> 0.75 | K6: 0 | L6: 0.75 | M6: SNACK TOGO | N6: 0.0199 | O6: =+L6+N6 -> 0.7699 | P6: SNACK SP | Q6: 0.0089 | R6: =+L6+Q6 -> 0.7589 | S6: 3.5 | T6: 0.06 | U6: 0.12 | V6: =+S6/1.06 -> 3.301886792 | W6: =+S6/1.12 -> 3.125 | X6: =+V6/O6 -> 4.288721642 | Y6: =+W6/R6 -> 4.117802082 | Z6: 2.531986792 | AA6: 2.3661
A7: à la carte | B7: DAVIGEL | C7: actif | D7: SHORT BREAD | H7: 12 | I7: 11.04 | J7: =I7/H7 -> 0.92 | K7: 0 | L7: 0.92 | M7: SNACK TOGO | N7: 0.0199 | O7: 0.9399 | P7: SNACK SP | Q7: 0.0089 | R7: 0.9289 | S7: 3.2 | T7: 0.06 | U7: 0.12 | V7: 3.018867925 | W7: =+S7/1.12 -> 2.857142857 | X7: 3.211903314 | Y7: 3.075834705 | Z7: 2.078967925 | AA7: 1.928242857
A8: à la carte | B8: DAVIGEL | C8: actif | D8: CRUMBLE POMME MYRTILLE | G8: 150 | H8: 12 | I8: 14.23 | J8: =+I8/H8 -> 1.185833333 | K8: 0 | L8: 1.185833333 | M8: CRUMBLE TOGO | N8: 0.0504 | O8: 1.236233333 | P8: CRUMBLE SP | Q8: 0.0305 | R8: 1.216333333 | S8: 3.5 | T8: 0.06 | U8: 0.12 | V8: 3.301886792 | W8: =+S8/1.12 -> 3.125 | X8: 2.670925224 | Y8: 2.56919704 | Z8: 2.065653459 | AA8: 1.908666667
A9: à la carte | B9: DAVIGEL | C9: actif | D9: BROWNIE NOIX | H9: 30 | I9: 19.1 | J9: =+I9/H9 -> 0.6366666667 | K9: 0 | L9: 0.6366666667 | M9: SNACK TOGO | N9: 0.0199 | O9: 0.6565666667 | P9: SNACK SP | Q9: 0.0089 | R9: 0.6455666667 | S9: 2.2 | T9: 0.06 | U9: 0.12 | V9: 2.075471698 | W9: =+S9/1.12 -> 1.964285714 | X9: 3.161098185 | Y9: 3.042731008 | Z9: 1.418905031 | AA9: 1.318719048
A10: à la carte | B10: DAVIGEL | C10: actif | D10: CHUNKY BROWNIE | H10: 30 | I10: 22.5 | J10: =+I10/H10 -> 0.75 | K10: 0 | L10: 0.75 | M10: SNACK TOGO | N10: 0.0199 | O10: 0.7699 | P10: SNACK SP | Q10: 0.0089 | R10: 0.7589 | S10: 2.5 | T10: 0.06 | U10: 0.12 | V10: 2.358490566 | W10: =+S10/1.12 -> 2.232142857 | X10: 3.063372602 | Y10: 2.941287201 | Z10: 1.588590566 | AA10: 1.473242857
A11: en sommeil | B11: INTER DRINKS | C11: inactif | D11: CANADA DRY | H11: 24 | I11: 14.53 | J11: =I11/H11 -> 0.6054166667 | K11: 0 | L11: 0.6054166667 | M11: DRINCK | N11: 0 | O11: 0.6054166667 | P11: GOBELET | Q11: 0.028 | R11: 0.6334166667 | S11: 2.3 | T11: 0.06 | U11: 0.21 | V11: 2.169811321 | W11: =+S11/1.21 -> 1.900826446 | X11: 3.583996676 | Y11: 3.000910059 | Z11: 1.564394654 | AA11: 1.26740978
A12: à la carte | B12: DAVIGEL | C12: actif | D12: MOELLEUX POIRE CARAMEL | G12: 130 | H12: 18 | I12: 28.24 | J12: =+I12/H12 -> 1.568888889 | K12: 0 | L12: 1.568888889 | M12: CRUMBLE TOGO | N12: 0.0504 | O12: 1.619288889 | P12: CRUMBLE SP | Q12: 0.0305 | R12: 1.599388889 | S12: 4.9 | T12: 0.06 | U12: 0.12 | V12: 4.622641509 | W12: =+S12/1.12 -> 4.375 | X12: 2.854735521 | Y12: 2.735419778 | Z12: 3.003352621 | AA12: 2.775611111
A13: en sommeil | B13: DELIDRINCKS | C13: actif | D13: CANDY CANNE | J13: 0.68 | K13: 0 | L13: 0.68 | M13: RIEN | O13: 0.68 | R13: =L13+Q13 -> 0.68 | S13: 3 | T13: 0.06 | U13: 0.12 | V13: =S13/1.06 -> 2.830188679 | W13: =S13/1.21 -> 2.479338843 | X13: =V13/O13 -> 4.162042175 | Y13: =W13/R13 -> 3.646086534 | Z13: =V13-O13 -> 2.150188679 | AA13: =W13-R13 -> 1.799338843
A14: à la carte | B14: DAVIGEL | C14: actif | D14: CRUMBLE FRAISE RHUBARBE | G14: 130 | H14: 18 | I14: 29.3 | J14: =+I14/H14 -> 1.627777778 | K14: 0 | L14: 1.627777778 | M14: CRUMBLE TOGO | N14: 0.0504 | O14: 1.678177778 | P14: CRUMBLE SP | Q14: 0.0305 | R14: =+L14+Q14 -> 1.658277778 | S14: 4.9 | T14: 0.06 | U14: 0.12 | V14: =+S14/1.06 -> 4.622641509 | W14: =+S14/1.12 -> 4.375 | X14: =+V14/O14 -> 2.754560077 | Y14: =+W14/R14 -> 2.638279339 | Z14: =+V14-O14 -> 2.944463732 | AA14: =+W14-R14 -> 2.716722222
A15: en sommeil | B15: INTER DRINKS | C15: inactif | D15: CAWSTON RHUBARBE | H15: 24 | I15: 22.24 | J15: =I15/H15 -> 0.9266666667 | K15: 0 | L15: 0.9266666667 | M15: DRINCK | N15: 0 | O15: 0.9266666667 | P15: GOBELET | Q15: 0.028 | R15: =+L15+Q15 -> 0.9546666667 | S15: 3.6 | T15: 0.06 | U15: 0.21 | V15: 3.396226415 | W15: =+S15/1.21 -> 2.975206612 | X15: 3.664992534 | Y15: 3.116487372 | Z15: 2.469559748 | AA15: 2.020539945
A16: à la carte | B16: DAVIGEL | C16: actif | D16: MACARON CARAMEL | H16: 24 | I16: 30.11 | J16: =+I16/H16 -> 1.254583333 | K16: 0 | L16: 1.254583333 | M16: SNACK TOGO | N16: 0.0199 | O16: 1.274483333 | P16: CRUMBLE SP | Q16: 0.0305 | R16: =+L16+Q16 -> 1.285083333 | S16: 3.9 | T16: 0.06 | U16: 0.12 | V16: 3.679245283 | W16: =+S16/1.12 -> 3.482142857 | X16: 2.886852411 | Y16: 2.709663075 | Z16: 2.40476195 | AA16: 2.197059524
A17: en sommeil | B17: LOBET | C17: inactif | D17: cheesecake framboise | E17: non | H17: 28 | I17: 37.3056 | J17: =+I17/H17 -> 1.332342857 | L17: 1.332342857 | T17: 0.06 | U17: 0.12 | V17: 0 | W17: =+S17/1.12 -> 0 | Z17: 0 | AA17: 0
A18: en sommeil | B18: LOBET | C18: inactif | D18: cheesecake new york | E18: non | H18: 28 | I18: 35.6842 | J18: =+I18/H18 -> 1.274435714 | L18: 1.274435714 | T18: 0.06 | U18: 0.12 | V18: 0 | W18: =+S18/1.12 -> 0 | Z18: 0 | AA18: 0
A19: à la carte | B19: DAVIGEL | C19: actif | D19: SABLE FRAISE | H19: 18 | I19: 24.92 | J19: =+I19/H19 -> 1.384444444 | K19: 0 | L19: 1.384444444 | M19: CRUMBLE TOGO | N19: 0.0504 | O19: =+L19+N19 -> 1.434844444 | P19: CRUMBLE SP | Q19: 0.0305 | R19: =+L19+Q19 -> 1.414944444 | S19: 4.9 | T19: 0.06 | U19: 0.12 | V19: 4.622641509 | W19: =+S19/1.12 -> 4.375 | X19: 3.221702204 | Y19: 3.091994189 | Z19: 3.187797065 | AA19: 2.960055556
A20: en sommeil | B20: sweetness heaven | C20: inactif | D20: chunky environ 32p | J20: 0.9375 | K20: 0 | L20: 0.9375 | S20: 2.5 | V20: =S20-(S20*#REF!) ->  | W20: =S20-(S20*#REF!) -> 
A21: en sommeil | B21: DAVIGEL | C21: inactif | D21: clafouti brioché aux abricots | K21: 0 | L21: 0 | T21: 0.06 | U21: 0.12 | V21: =+S21/1.06 -> 0 | W21: =+S21/1.12 -> 0 | X21: =+V21/O21 ->  | Y21: =+W21/R21 ->  | Z21: 0 | AA21: 0
A22: à la carte | B22: DAVIGEL | C22: inactif | D22: GRAND MOELLEUX AU CHOCOLAT | H22: 8 | I22: 10.85 | J22: =+I22/H22 -> 1.35625 | K22: 0 | L22: 1.35625 | M22: SNACK TOGO | N22: 0.0199 | O22: =+L22+N22 -> 1.37615 | P22: SNACK SP | Q22: 0.0089 | R22: =+L22+Q22 -> 1.36515 | S22: 3.5 | T22: 0.06 | U22: 0.12 | V22: 3.301886792 | W22: =+S22/1.12 -> 3.125 | X22: =+V22/O22 -> 2.399365471 | Y22: =+W22/R22 -> 2.289125737 | Z22: 1.925736792 | AA22: 1.75985
A23: à la carte | B23: DELIDRINCKS | C23: actif | D23: CHAI TEA | G23: 15/20 g | H23: 58 | I23: 16.06 | J23: =I23/H23 -> 0.2768965517 | K23: 0 | L23: 0.2768965517 | M23: GRAND KFE TOGO | N23: 0.1423 | O23: =+L23+N23 -> 0.4191965517 | P23: GRAND KFE SP | Q23: 0.1271 | R23: =L23+Q23 -> 0.4039965517 | S23: 3.2 | T23: 0.06 | U23: 0.21 | V23: 3.018867925 | W23: =+S23/1.21 -> 2.644628099 | X23: =V23/O23 -> 7.20155715 | Y23: =W23/R23 -> 6.54616503 | Z23: =V23-O23 -> 2.599671373 | AA23: =W23-R23 -> 2.240631547
A24: à la carte | B24: DELIDRINCKS | C24: actif | D24: ICE LATTE | G24: 15/20 g | H24: 79 | I24: 18.45 | J24: =I24/H24 -> 0.2335443038 | K24: 0 | L24: 0.2335443038 | M24: JUS | N24: 0.1141 | O24: =+L24+N24 -> 0.3476443038 | P24: JUS | Q24: 0.1141 | R24: =L24+Q24 -> 0.3476443038 | S24: 4 | T24: 0.06 | U24: 0.21 | V24: 3.773584906 | W24: =+S24/1.21 -> 3.305785124
A25: à la carte | B25: DELIDRINCKS | C25: actif | D25: LOVE CHOCO | K25: 0 | L25: 0 | M25: GRAND KFE TOGO | N25: 0.1423 | O25: =+L25+N25 -> 0.1423 | P25: GRAND KFE SP | Q25: 0.1271 | R25: =L25+Q25 -> 0.1271 | S25: 4.5 | T25: 0.06 | U25: 0.21 | V25: 4.245283019 | W25: =+S25/1.21 -> 3.719008264 | X25: =V25/O25 -> 29.83333112 | Y25: =W25/R25 -> 29.26048989 | Z25: =V25-O25 -> 4.102983019 | AA25: =W25-R25 -> 3.591908264
A26: à la carte | B26: DELIDRINCKS | C26: actif | D26: LOVE LATTE | K26: 0 | L26: 0 | M26: GRAND KFE TOGO | N26: 0.1423 | O26: 0.1423 | P26: GRAND KFE SP | Q26: 0.1271 | R26: 0.1271 | S26: 4.5 | T26: 0.06 | U26: 0.21 | V26: 4.245283019 | W26: =+S26/1.21 -> 3.719008264 | X26: =V26/O26 -> 29.83333112 | Y26: =W26/R26 -> 29.26048989 | Z26: =V26-O26 -> 4.102983019 | AA26: =W26-R26 -> 3.591908264
A27: à la carte | B27: LOBET | C27: inactif | D27: COOKIE CITRON AVOINE RAISiN | E27: non | F27: 963 | G27: 76 | H27: 30 | I27: 16.9912 | J27: =+I27/H27 -> 0.5663733333 | K27: 0 | L27: 0.5663733333 | M27: COOKIE | N27: 0.0304 | O27: =+L27+N27 -> 0.5967733333 | P27: COOKIE | Q27: 0.0304 | R27: =+L27+Q27 -> 0.5967733333 | S27: 2.9 | T27: 0.06 | U27: 0.12 | V27: 2.735849057 | W27: =+S27/1.12 -> 2.589285714 | X27: =+V27/O27 -> 4.584402325 | Y27: =+W27/R27 -> 4.338809343 | Z27: =+V27-O27 -> 2.139075723 | AA27: =+W27-R27 -> 1.992512381
A28: à la carte | B28: LOBET | C28: inactif | D28: COOKIE TRIPLE CHOCOLAT | E28: non | F28: 961 | G28: 76 | H28: 30 | I28: 17.8354 | J28: =+I28/H28 -> 0.5945133333 | K28: 0 | L28: 0.5945133333 | M28: COOKIE | N28: 0.0304 | O28: 0.6249133333 | P28: COOKIE | Q28: 0.0304 | R28: 0.6249133333 | S28: 2.9 | T28: 0.06 | U28: 0.12 | V28: 2.735849057 | W28: =+S28/1.12 -> 2.589285714 | X28: 4.377965568 | Y28: 4.143431699 | Z28: 2.110935723 | AA28: 1.964372381
A29: à la carte | B29: LOBET | C29: inactif | D29: COOKIE CHOCOLAT BLANC FRAMBOISE | E29: non | F29: 962 | G29: 76 | H29: 30 | I29: 18.0498 | J29: =+I29/H29 -> 0.60166 | K29: 0 | L29: 0.60166 | M29: COOKIE | N29: 0.0304 | O29: 0.63206 | P29: COOKIE | Q29: 0.0304 | R29: 0.63206 | S29: 2.9 | T29: 0.06 | U29: 0.12 | V29: 2.735849057 | W29: =+S29/1.12 -> 2.589285714 | X29: 4.328464159 | Y29: 4.096582151 | Z29: 2.103789057 | AA29: 1.957225714
A30: à la carte | B30: INTER DRINKS | C30: actif | D30: ARIZONA | G30: 50 | H30: 6 | I30: 6.3 | J30: =I30/H30 -> 1.05 | K30: 0 | L30: 1.05 | M30: DRINCK | N30: 0 | O30: 1.05 | P30: GOBELET | Q30: 0.028 | R30: 1.078 | S30: 3.8 | T30: 0.06 | U30: 0.21 | V30: 3.58490566 | W30: =+S30/1.21 -> 3.140495868 | X30: 3.414195867 | Y30: 2.913261473 | Z30: 2.53490566 | AA30: 2.062495868
A31: à la carte | B31: INTER DRINKS | C31: actif | D31: BRU 50CL | G31: 50 | H31: 24 | I31: 13.26 | J31: =I31/H31 -> 0.5525 | K31: 0 | L31: 0.5525 | M31: DRINCK | N31: 0 | O31: 0.5525 | P31: GOBELET | Q31: 0.028 | R31: 0.5805 | S31: 2 | T31: 0.06 | U31: 0.21 | V31: 1.886792453 | W31: =+S31/1.21 -> 1.652892562 | X31: 3.415008964 | Y31: 2.847360141 | Z31: 1.334292453 | AA31: 1.072392562
A32: à la carte | B32: INTER DRINKS | C32: actif | D32: CAPRI SUN | H32: 40 | I32: 12.5 | J32: =I32/H32 -> 0.3125 | K32: 0 | L32: 0.3125 | M32: DRINCK | N32: 0 | O32: 0.3125 | P32: GOBELET | Q32: 0.028 | R32: 0.3405 | S32: 1.5 | T32: 0.06 | U32: 0.21 | V32: 1.41509434 | W32: =+S32/1.21 -> 1.239669421 | X32: 4.528301887 | Y32: 3.640732515 | Z32: 1.10259434 | AA32: 0.8991694215
A33: à la carte | B33: INTER DRINKS | C33: actif | D33: COCA | G33: 33 | H33: 24 | I33: 12.73 | J33: =I33/H33 -> 0.5304166667 | K33: 0 | L33: 0.5304166667 | M33: DRINCK | N33: 0 | O33: 0.5304166667 | P33: GOBELET | Q33: 0.028 | R33: 0.5584166667 | S33: 2 | T33: 0.06 | U33: 0.21 | V33: 1.886792453 | W33: =+S33/1.21 -> 1.652892562 | X33: 3.557189228 | Y33: 2.959962803 | Z33: 1.356375786 | AA33: 1.094475895
A34: à la carte | B34: LOBET | C34: inactif | D34: COOKIE DOUBLE CHOCOLAT | E34: non | F34: 960 | G34: 76 | H34: 30 | I34: 18.1436 | J34: =+I34/H34 -> 0.6047866667 | K34: 0 | L34: =J34-(J34*K34) -> 0.6047866667 | M34: COOKIE | N34: 0.0304 | O34: 0.6351866667 | P34: COOKIE | Q34: 0.0304 | R34: 0.6351866667 | S34: 2.9 | T34: 0.06 | U34: 0.12 | V34: 2.735849057 | W34: =+S34/1.12 -> 2.589285714 | X34: 4.307157565 | Y34: 4.076416981 | Z34: 2.10066239 | AA34: 1.954099048
A35: à la carte | B35: LOBET | C35: actif | D35: PTIT COOKIE DOUBLE CHOCOLAT | E35: ok | F35: 9686 | G35: 55 | H35: 120 | I35: 45.0508 | J35: =+I35/H35 -> 0.3754233333 | K35: 0 | L35: 0.3754233333 | M35: COOKIE | N35: 0.0304 | O35: 0.4058233333 | P35: COOKIE | Q35: 0.0304 | R35: 0.4058233333 | S35: 2.2 | T35: 0.06 | U35: 0.12 | V35: 2.075471698 | W35: =+S35/1.12 -> 1.964285714 | X35: 5.114224658 | Y35: 4.840248337 | Z35: 1.669648365 | AA35: 1.558462381
A36: à la carte | B36: LOBET | C36: actif | D36: PTIT COOKIE CHOCOLAT LAIT | E36: ok | F36: 9688 | G36: 55 | H36: 120 | I36: 45.3456 | J36: =+I36/H36 -> 0.37788 | K36: 0 | L36: 0.37788 | M36: COOKIE | N36: 0.0304 | O36: 0.40828 | P36: COOKIE | Q36: 0.0304 | R36: 0.40828 | S36: 2.2 | T36: 0.06 | U36: 0.12 | V36: 2.075471698 | W36: =+S36/1.12 -> 1.964285714 | X36: 5.083451793 | Y36: 4.811124019 | Z36: 1.667191698 | AA36: 1.556005714
A37: à la carte | B37: LOBET | C37: actif | D37: PTIT COOKIE CHOCOLAT BLANC | E37: ok | F37: 9687 | G37: 55 | H37: 120 | I37: 46.3506 | J37: =+I37/H37 -> 0.386255 | K37: 0 | L37: 0.386255 | M37: COOKIE | N37: 0.0304 | O37: 0.416655 | P37: COOKIE | Q37: 0.0304 | R37: 0.416655 | S37: 2.2 | T37: 0.06 | U37: 0.12 | V37: 2.075471698 | W37: =+S37/1.12 -> 1.964285714 | X37: 4.981271551 | Y37: 4.714417718 | Z37: 1.658816698 | AA37: 1.547630714
A38: en sommeil | B38: DAVIGEL | C38: inactif | D38: ptit cookie 53g*54 | G38: 53 | H38: 54 | I38: 28.39 | J38: =+I38/H38 -> 0.5257407407 | K38: 0 | L38: 0.5257407407 | M38: COOKIE | N38: 0.0304 | O38: 0.5561407407 | P38: COOKIE | Q38: 0.0304 | R38: 0.5561407407 | S38: 2.2 | T38: 0.06 | U38: 0.12 | V38: 2.075471698 | W38: =+S38/1.12 -> 1.964285714 | X38: 3.731918103 | Y38: 3.531993919 | Z38: 1.519330957 | AA38: 1.408144974
A39: à la carte | B39: INTER DRINKS | C39: actif | D39: JUS DE POMME | H39: 24 | I39: 19.71 | J39: =I39/H39 -> 0.82125 | K39: 0 | L39: 0.82125 | M39: DRINCK | N39: 0 | O39: 0.82125 | P39: GOBELET | Q39: 0.028 | R39: 0.84925 | S39: 2.9 | T39: 0.06 | U39: 0.21 | V39: 2.735849057 | W39: =+S39/1.21 -> 2.396694215 | X39: 3.331323052 | Y39: 2.822130368 | Z39: 1.914599057 | AA39: 1.547444215
A40: à la carte | B40: INTER DRINKS | C40: actif | D40: LIPTON ICE TEA | G40: 33 | H40: 24 | I40: 14.39 | J40: =I40/H40 -> 0.5995833333 | K40: 0 | L40: 0.5995833333 | M40: DRINCK | N40: 0 | O40: 0.5995833333 | P40: GOBELET | Q40: 0.028 | R40: 0.6275833333 | S40: 2 | T40: 0.06 | U40: 0.21 | V40: 1.886792453 | W40: =+S40/1.21 -> 1.652892562 | X40: 3.146839393 | Y40: 2.633741966 | Z40: 1.287209119 | AA40: 1.025309229
A41: à la carte | B41: INTER DRINKS | C41: actif | D41: SAN PELLEGRINO | G41: 33 | H41: 24 | I41: 19.74 | J41: =I41/H41 -> 0.8225 | K41: 0 | L41: 0.8225 | M41: DRINCK | N41: 0 | O41: 0.8225 | P41: GOBELET | Q41: 0.028 | R41: 0.8505 | T41: 0.06 | U41: 0.21 | V41: 0 | W41: =+S41/1.21 -> 0
A42: en sommeil | B42: DAVIGEL | C42: inactif | D42: Maxi cookie 2 chocolats 75g*34 | G42: 75 | H42: 34 | I42: 22 | J42: =+I42/H42 -> 0.6470588235 | K42: 0 | L42: 0.6470588235 | S42: 2.9 | T42: 0.06 | U42: 0.12 | V42: 2.735849057 | W42: =+S42/1.12 -> 2.589285714 | X42: =+V42/O42 ->  | Y42: =+W42/R42 ->  | Z42: =+V42-O42 -> 2.735849057 | AA42: =+W42-R42 -> 2.589285714
A43: en sommeil | B43: DAVIGEL | C43: inactif | D43: maxi cookie 3 chocolats 75g*34 | G43: 75 | H43: 34 | I43: 22 | J43: =+I43/H43 -> 0.6470588235 | K43: 0 | L43: 0.6470588235 | S43: 2.9 | T43: 0.06 | U43: 0.12 | V43: 2.735849057 | W43: =+S43/1.12 -> 2.589285714 | X43: =+V43/O43 ->  | Y43: =+W43/R43 ->  | Z43: 2.735849057 | AA43: 2.589285714
A44: à la carte | B44: INTER DRINKS | C44: actif | D44: SPA REINE BLEU | G44: 50 | H44: 24 | I44: 12.82 | J44: =I44/H44 -> 0.5341666667 | K44: 0 | L44: 0.5341666667 | M44: DRINCK | N44: 0 | O44: =+L44+N44 -> 0.5341666667 | P44: GOBELET | Q44: 0.028 | R44: =+L44+Q44 -> 0.5621666667 | S44: 2 | T44: 0.06 | U44: 0.21 | V44: 1.886792453 | W44: =+S44/1.21 -> 1.652892562 | X44: =+V44/O44 -> 3.53221676 | Y44: =+W44/R44 -> 2.940218017 | Z44: 1.352625786 | AA44: 1.090725895
A45: à la carte | B45: INTER DRINKS | C45: actif | D45: SPA BARISART ROUGE | G45: 50 | H45: 24 | I45: 14.25 | J45: =I45/H45 -> 0.59375 | K45: 0 | L45: 0.59375 | M45: DRINCK | N45: 0 | O45: =+L45+N45 -> 0.59375 | P45: GOBELET | Q45: 0.028 | R45: =+L45+Q45 -> 0.62175 | S45: 2 | T45: 0.06 | U45: 0.21 | V45: 1.886792453 | W45: =+S45/1.21 -> 1.652892562 | X45: =+V45/O45 -> 3.17775571 | Y45: =+W45/R45 -> 2.65845205 | Z45: 1.293042453 | AA45: 1.031142562
A46: en sommeil | B46: cook & co | C46: inactif | D46: crumble pomme | G46: 110 | H46: 18 | I46: 27.18 | J46: =I46/H46 -> 1.51 | K46: 0.1 | L46: 1.359 | S46: 4.5 | V46: =S46-(S46*#REF!) ->  | W46: =S46-(S46*#REF!) -> 
A47: à la carte | B47: JOSA | C47: actif | D47: POMME /BANANE / OU KIWI | J47: =2.24*0.15 -> 0.336 | K47: 0 | L47: 0.336 | M47: RIEN | N47: 0 | O47: =+L47+N47 -> 0.336 | P47: RIEN | Q47: 0 | R47: =+L47+Q47 -> 0.336 | S47: 1 | T47: 0.06 | U47: 0.12 | V47: =+S47/1.06 -> 0.9433962264 | W47: =+S47/1.12 -> 0.8928571429 | X47: =+V47/O47 -> 2.807726864 | Y47: =+W47/R47 -> 2.657312925 | Z47: 0.6073962264 | AA47: 0.5568571429
A48: à la carte | B48: LOBET | C48: inactif | D48: brownie pepite choco | E48: non | F48: 9701 | G48: 76 | H48: 36 | I48: 29.7748 | J48: =+I48/H48 -> 0.8270777778 | K48: 0 | L48: 0.8270777778 | M48: SNACK TOGO | N48: 0.0199 | O48: =+L48+N48 -> 0.8469777778 | P48: SNACK SP | Q48: 0.0089 | R48: =+L48+Q48 -> 0.8359777778 | S48: 2.5 | T48: 0.06 | U48: 0.12 | V48: =+S48/1.06 -> 2.358490566 | W48: =+S48/1.12 -> 2.232142857 | X48: =+V48/O48 -> 2.784595568 | Y48: =+W48/R48 -> 2.670098317 | Z48: 1.511512788 | AA48: 1.396165079
A49: à la carte | B49: LOBET | C49: inactif | D49: COOKIE NC AVOINE CITRON RAISIN | E49: NC | F49: 9684 | G49: 80 | H49: 90 | I49: 44.4612 | J49: =+I49/H49 -> 0.4940133333 | K49: 0 | L49: 0.4940133333 | M49: COOKIE | N49: 0.0304 | O49: =+L49+N49 -> 0.5244133333 | P49: COOKIE | Q49: 0.0304 | R49: =+L49+Q49 -> 0.5244133333 | S49: 2.9 | T49: 0.06 | U49: 0.12 | V49: =+S49/1.06 -> 2.735849057 | W49: =+S49/1.12 -> 2.589285714 | X49: =+V49/O49 -> 5.216970818 | Y49: =+W49/R49 -> 4.937490239 | Z49: 2.211435723 | AA49: 2.064872381
A50: à la carte | B50: LOBET | C50: inactif | D50: COOKIE NC TRIPLE CHOCOLAT | E50: NC | F50: 9682 | G50: 80 | H50: 90 | I50: 46.2568 | J50: =+I50/H50 -> 0.5139644444 | K50: 0 | L50: 0.5139644444 | M50: COOKIE | N50: 0.0304 | O50: =+L50+N50 -> 0.5443644444 | P50: COOKIE | Q50: 0.0304 | R50: =+L50+Q50 -> 0.5443644444 | S50: 2.9 | T50: 0.06 | U50: 0.12 | V50: =+S50/1.06 -> 2.735849057 | W50: =+S50/1.12 -> 2.589285714 | X50: =+V50/O50 -> 5.02576736 | Y50: =+W50/R50 -> 4.756529822 | Z50: 2.191484612 | AA50: 2.04492127
A51: en sommeil | B51: CIE DES DESSERTS | C51: inactif | D51: financier pistache framboise 45g*66 | H51: 66 | J51: 0.693 | K51: 0 | L51: 0.693 | S51: 2.6 | V51: =S51-(S51*#REF!) ->  | W51: =S51-(S51*#REF!) -> 
A52: en sommeil | B52: INTER DRINKS | C52: inactif | D52: FIREFLY | H52: 12 | I52: 16.15 | J52: =I52/H52 -> 1.345833333 | K52: 0 | L52: 1.345833333 | M52: DRINCK | N52: 0 | O52: =+L52+N52 -> 1.345833333 | P52: GOBELET | Q52: 0.028 | R52: =+L52+Q52 -> 1.373833333 | S52: 5 | T52: 0.06 | U52: 0.21 | V52: =+S52/1.06 -> 4.716981132 | W52: =+S52/1.21 -> 4.132231405 | X52: =+V52/O52 -> 3.504877621 | Y52: =+W52/R52 -> 3.007811286 | Z52: 3.371147799 | AA52: 2.758398072
A53: à la carte | B53: LOBET | C53: inactif | D53: COOKIE NC CHOCOLAT BLANC FRAMBOISE | E53: NC | F53: 9683 | G53: 80 | H53: 90 | I53: 47.2082 | J53: =+I53/H53 -> 0.5245355556 | K53: 0 | L53: 0.5245355556 | M53: COOKIE | N53: 0.0304 | O53: 0.5549355556 | P53: COOKIE | Q53: 0.0304 | R53: 0.5549355556 | S53: 2.9 | T53: 0.06 | U53: 0.12 | V53: 2.735849057 | W53: =+S53/1.12 -> 2.589285714 | X53: 4.930030216 | Y53: 4.665921454 | Z53: 2.180913501 | AA53: 2.034350159
A54: à la carte | B54: LOBET | C54: inactif | D54: COOKIE NC CHOCOLAT | E54: NC | F54: 9681 | G54: 80 | H54: 90 | I54: 47.235 | J54: 0.5248333333 | K54: 0 | L54: 0.5248333333 | M54: COOKIE | N54: 0.0304 | O54: 0.5552333333 | P54: COOKIE | Q54: 0.0304 | R54: 0.5552333333 | S54: 2.9 | T54: 0.06 | U54: 0.12 | V54: 2.735849057 | W54: 2.589285714 | X54: 4.927386186 | Y54: 4.663419069 | Z54: 2.180615723 | AA54: 2.034052381
A55: à la carte | B55: LOBET | C55: actif | D55: BIG COOKIE NC CHOCOLAT LAIT | E55: NC | F55: 9671 | G55: 107 | H55: 40 | I55: 24.6962 | J55: 0.617405 | K55: 0 | L55: 0.617405 | M55: COOKIE | N55: 0.0304 | O55: 0.647805 | P55: COOKIE | Q55: 0.0304 | R55: 0.647805 | S55: 3 | T55: 0.06 | U55: 0.12 | V55: 2.830188679 | W55: 2.678571429 | X55: 4.368889835 | Y55: 4.134842165 | Z55: 2.182383679 | AA55: 2.030766429
A56: à la carte | B56: LOBET | C56: actif | D56: BIG COOKIE NC CHOCOLAT BLANC | E56: NC | F56: 967 | G56: 107 | H56: 40 | I56: 24.8034 | J56: 0.620085 | K56: 0 | L56: 0.620085 | M56: COOKIE | N56: 0.0304 | O56: 0.650485 | P56: COOKIE | Q56: 0.0304 | R56: 0.650485 | S56: 3 | T56: 0.06 | U56: 0.12 | V56: 2.830188679 | W56: 2.678571429 | X56: 4.350889996 | Y56: 4.117806604 | Z56: 2.179703679 | AA56: 2.028086429
A57: à la carte | B57: LOBET | C57: actif | D57: BIG COOKIE NC DOUBLE CHOC | E57: NC | F57: 968 | G57: 107 | H57: 40 | I57: 24.924 | J57: 0.6231 | K57: 0 | L57: 0.6231 | M57: COOKIE | N57: 0.0304 | O57: 0.6535 | P57: COOKIE | Q57: 0.0304 | R57: 0.6535 | S57: 3 | T57: 0.06 | U57: 0.12 | V57: 2.830188679 | W57: 2.678571429 | X57: 4.330816648 | Y57: 4.098808613 | Z57: 2.176688679 | AA57: 2.025071429
A58: à la carte | B58: LOBET | C58: inactif | D58: PTIT COOKIE CHOCOLAT AU LAIT | E58: non | F58: 965 | G58: 50 | H58: 54 | I58: 25.1518 | J58: 0.4657740741 | K58: 0 | L58: 0.4657740741 | M58: COOKIE | N58: 0.0304 | O58: 0.4961740741 | P58: COOKIE | Q58: 0.0304 | R58: 0.4961740741 | S58: 2.2 | T58: 0.06 | U58: 0.12 | V58: 2.075471698 | W58: 1.964285714 | X58: 4.182950715 | Y58: 3.95886407 | Z58: 1.579297624 | AA58: 1.46811164
A59: à la carte | B59: LOBET | C59: inactif | D59: PTIT COOKIE CHOCOLAT BLANC | E59: non | F59: 966 | G59: 50 | H59: 54 | I59: 25.1518 | J59: 0.4657740741 | K59: 0 | L59: 0.4657740741 | M59: COOKIE | N59: 0.0304 | O59: 0.4961740741 | P59: COOKIE | Q59: 0.0304 | R59: 0.4961740741 | S59: 2.2 | T59: 0.06 | U59: 0.12 | V59: 2.075471698 | W59: 1.964285714 | X59: 4.182950715 | Y59: 3.95886407 | Z59: 1.579297624 | AA59: 1.46811164
A60: à la carte | B60: LOBET | C60: inactif | D60: PTIT COOKIE DOUBLE CHOCOLAT | E60: non | F60: 964 | G60: 50 | H60: 54 | I60: 25.2322 | J60: 0.467262963 | K60: 0 | L60: 0.467262963 | M60: COOKIE | N60: 0.0304 | O60: 0.497662963 | P60: COOKIE | Q60: 0.0304 | R60: 0.497662963 | S60: 2.2 | T60: 0.06 | U60: 0.12 | V60: 2.075471698 | W60: 1.964285714 | X60: 4.170436325 | Y60: 3.947020093 | Z60: 1.577808735 | AA60: 1.466622751
A61: à la carte | B61: LOBET | C61: actif | D61: BIG COOKIE AVOINE RAISIN | E61: ok | F61: 9672 | G61: 103 | H61: 36 | I61: 24.6828 | J61: 0.6856333333 | K61: 0 | L61: 0.6856333333 | M61: COOKIE | N61: 0.0304 | O61: 0.7160333333 | P61: COOKIE | Q61: 0.0304 | R61: 0.7160333333 | S61: 3 | T61: 0.06 | U61: 0.12 | V61: 2.830188679 | W61: 2.678571429 | X61: 3.952593472 | Y61: 3.740847393 | Z61: 2.114155346 | AA61: 1.962538095
A62: à la carte | B62: LOBET | C62: actif | D62: BIG COOKIE DOUBLE CHOCOLAT | E62: non | F62: 9673 | G62: 103 | H62: 36 | I62: 25.3126 | J62: 0.7031277778 | K62: 0 | L62: 0.7031277778 | M62: COOKIE | N62: 0.0304 | O62: 0.7335277778 | P62: COOKIE | Q62: 0.0304 | R62: 0.7335277778 | S62: 3 | T62: 0.06 | U62: 0.12 | V62: 2.830188679 | W62: 2.678571429 | X62: 3.858325158 | Y62: 3.651629168 | Z62: 2.096660901 | AA62: 1.945043651
A63: à la carte | B63: LOBET | C63: actif | D63: BIG COOKIE CHOCOLAT BLANC | E63: non | F63: 9675 | G63: 103 | H63: 36 | I63: 26.2372 | J63: 0.7288111111 | K63: 0 | L63: 0.7288111111 | M63: COOKIE | N63: 0.0304 | O63: 0.7592111111 | P63: COOKIE | Q63: 0.0304 | R63: 0.7592111111 | S63: 3 | T63: 0.06 | U63: 0.12 | V63: 2.830188679 | W63: 2.678571429 | X63: 3.727801975 | Y63: 3.528098298 | Z63: 2.070977568 | AA63: 1.919360317
A64: à la carte | B64: LOBET | C64: actif | D64: MUFFIN CARAMEL CHOCOLAT | E64: non | F64: 913 | G64: 113 | H64: 24 | I64: 20.8102 | J64: 0.8670916667 | K64: 0 | L64: 0.8670916667 | M64: SNACK TOGO | N64: 0.0199 | O64: 0.8869916667 | P64: SERVIETTE | Q64: 0.0086 | R64: 0.8756916667 | S64: 3.5 | T64: 0.06 | U64: 0.12 | V64: 3.301886792 | W64: 3.125 | X64: 3.722567998 | Y64: 3.568607672 | Z64: 2.414895126 | AA64: 2.249308333
A65: à la carte | B65: LOBET | C65: actif | D65: MUFFIN FRUITS ROUGES | E65: non | F65: 912 | G65: 113 | H65: 24 | I65: 21.2792 | J65: 0.8866333333 | K65: 0 | L65: 0.8866333333 | M65: SNACK TOGO | N65: 0.0199 | O65: 0.9065333333 | P65: SERVIETTE | Q65: 0.0086 | R65: 0.8952333333 | S65: 3.5 | T65: 0.06 | U65: 0.12 | V65: 3.301886792 | W65: 3.125 | X65: 3.642322539 | Y65: 3.490710057 | Z65: 2.395353459 | AA65: 2.229766667
C66: actif | D66: MACARON CHOCOLAT | H66: 24 | I66: 30.43 | J66: 1.267916667 | K66: 0 | L66: =J66-(J66*K66) -> 1.267916667
A67: à la carte | B67: LOBET | C67: actif | D67: MUFFIN CITRON | E67: ok | F67: 911 | G67: 113 | H67: 24 | I67: 21.4266 | J67: 0.892775 | K67: 0 | L67: 0.892775 | M67: SNACK TOGO | N67: 0.0199 | O67: =+L67+N67 -> 0.912675 | P67: SERVIETTE | Q67: 0.0086 | R67: =+L67+Q67 -> 0.901375 | S67: 3.5 | T67: 0.06 | U67: 0.12 | V67: =+S67/1.06 -> 3.301886792 | W67: =+S67/1.12 -> 3.125 | X67: =+V67/O67 -> 3.617812247 | Y67: =+W67/R67 -> 3.46692553 | Z67: =+V67-O67 -> 2.389211792 | AA67: =+W67-R67 -> 2.223625
A68: à la carte | B68: LOBET | C68: actif | D68: MUFFIN POMME CANELLE | E68: non | F68: 905 | G68: 100 | H68: 32 | I68: 19.6846 | J68: 0.61514375 | K68: 0 | L68: 0.61514375 | M68: SNACK TOGO | N68: 0.0199 | O68: 0.63504375 | P68: SERVIETTE | Q68: 0.0086 | R68: =+L68+Q68 -> 0.62374375 | S68: 3.5 | T68: 0.06 | U68: 0.12 | V68: 3.301886792 | W68: =+S68/1.12 -> 3.125 | X68: =+V68/O68 -> 5.19946349 | Y68: =+W68/R68 -> 5.010070241 | Z68: =+V68-O68 -> 2.666843042 | AA68: =+W68-R68 -> 2.50125625
A69: à la carte | B69: LOBET | C69: actif | D69: MUFFIN MYRTILLE | E69: non | F69: 903 | G69: 100 | H69: 32 | I69: 18.9342 | J69: 0.59169375 | K69: 0 | L69: 0.59169375 | M69: SNACK TOGO | N69: 0.0199 | O69: 0.61159375 | P69: SERVIETTE | Q69: 0.0086 | R69: =+L69+Q69 -> 0.60029375 | S69: 3.5 | T69: 0.06 | U69: 0.12 | V69: 3.301886792 | W69: =+S69/1.12 -> 3.125 | X69: =+V69/O69 -> 5.398823635 | Y69: =+W69/R69 -> 5.205784668 | Z69: =+V69-O69 -> 2.690293042 | AA69: =+W69-R69 -> 2.52470625
A70: à la carte | B70: LOBET | C70: actif | D70: MUFFIN VANILLE | E70: non | F70: 902 | G70: 100 | H70: 32 | I70: 16.8706 | J70: 0.52720625 | K70: 0 | L70: 0.52720625 | M70: SNACK TOGO | N70: 0.0199 | O70: 0.54710625 | P70: SERVIETTE | Q70: 0.0086 | R70: =+L70+Q70 -> 0.53580625 | S70: 3.5 | T70: 0.06 | U70: 0.12 | V70: 3.301886792 | W70: =+S70/1.12 -> 3.125 | X70: =+V70/O70 -> 6.035183828 | Y70: =+W70/R70 -> 5.832332116 | Z70: =+V70-O70 -> 2.754780542 | AA70: =+W70-R70 -> 2.58919375
A71: à la carte | B71: DELIDRINCKS | D71: MILK SHAKE | G71: 15/20 g | H71: 49 | I71: 12.99 | J71: =I71/H71 -> 0.2651020408 | K71: 0 | L71: 0.2651020408 | M71: JUS | N71: 0.1141 | O71: 0.3792020408 | P71: JUS | Q71: 0.1141 | R71: =L71+Q71 -> 0.3792020408 | S71: 4.8 | T71: 0.06 | U71: 0.21 | V71: 4.528301887 | W71: =+S71/1.21 -> 3.966942149 | X71: =V71/O71 -> 11.94166012 | Y71: =W71/R71 -> 10.46128903 | Z71: =V71-O71 -> 4.149099846 | AA71: =W71-R71 -> 3.587740108
A72: à la carte | B72: LOBET | C72: actif | D72: MUFFIN DOUBLE CHOCOLAT | E72: non | F72: 901 | G72: 100 | H72: 32 | I72: 19.3496 | J72: =+I72/H72 -> 0.604675 | K72: 0 | L72: 0.604675 | M72: SNACK TOGO | N72: 0.0199 | O72: 0.624575 | P72: SERVIETTE | Q72: 0.0086 | R72: =+L72+Q72 -> 0.613275 | S72: 3.5 | T72: 0.06 | U72: 0.12 | V72: 3.301886792 | W72: =+S72/1.12 -> 3.125 | X72: =+V72/O72 -> 5.286613765 | Y72: =+W72/R72 -> 5.095593331 | Z72: =+V72-O72 -> 2.677311792 | AA72: =+W72-R72 -> 2.511725
A73: en sommeil | B73: DAVIGEL | C73: inactif | D73: muffin double choco 100g*33 | H73: 33 | J73: =18.17/32 -> 0.5678125 | K73: 0 | L73: 0.5678125 | S73: 3 | T73: 0.06 | U73: 0.12 | V73: 2.830188679 | W73: =+S73/1.12 -> 2.678571429 | X73: =+V73/O73 ->  | Y73: =+W73/R73 ->  | Z73: 2.830188679 | AA73: 2.678571429
A74: en sommeil | B74: DAVIGEL | C74: inactif | D74: muffin myrtille 100g*32 | H74: 32 | J74: =18.17/32 -> 0.5678125 | K74: 0 | L74: 0.5678125 | S74: 3 | T74: 0.06 | U74: 0.12 | V74: 2.830188679 | W74: =+S74/1.12 -> 2.678571429 | X74: =+V74/O74 ->  | Y74: =+W74/R74 ->  | Z74: 2.830188679 | AA74: 2.678571429
A75: en sommeil | B75: sweetness heaven | C75: inactif | D75: muffins | J75: 0.7 | K75: 0 | L75: 0.7 | S75: 3 | V75: =S75-(S75*#REF!) ->  | W75: =S75-(S75*#REF!) -> 
A76: en sommeil | B76: LOBET | C76: actif | D76: MUFFIN CITRON | E76: bof | F76: 9332 | G76: 132 | H76: 20 | I76: 23.7314 | J76: =+I76/H76 -> 1.18657 | K76: 0 | L76: 1.18657 | M76: SNACK TOGO | N76: 0.0199 | O76: =+L76+N76 -> 1.20647 | P76: SERVIETTE | Q76: 0.0086 | R76: =+L76+Q76 -> 1.19517 | S76: 3.5 | T76: 0.06 | U76: 0.12 | V76: =+S76/1.06 -> 3.301886792 | W76: =+S76/1.12 -> 3.125 | X76: =+V76/O76 -> 2.736816326 | Y76: =+W76/R76 -> 2.614690797 | Z76: 2.095416792 | AA76: 1.92983
A77: en sommeil | B77: LOBET | C77: actif | D77: MUFFIN TRIPLE CHOCOLAT | E77: non | F77: 935 | G77: 123 | H77: 20 | I77: 20.5556 | J77: 1.02778 | K77: 0 | L77: 1.02778 | M77: SNACK TOGO | N77: 0.0199 | O77: 1.04768 | P77: SERVIETTE | Q77: 0.0086 | R77: 1.03638 | S77: 3.5 | T77: 0.06 | U77: 0.12 | V77: 3.301886792 | W77: 3.125 | X77: 3.151617662 | Y77: 3.015303267 | Z77: 2.254206792 | AA77: 2.08862
A78: en sommeil | B78: LOBET | C78: actif | D78: MUFFIN POMME CARAMEL | E78: ok | F78: 934 | G78: 134 | H78: 20 | I78: 20.033 | J78: 1.00165 | K78: 0 | L78: 1.00165 | M78: SNACK TOGO | N78: 0.0199 | O78: 1.02155 | P78: SERVIETTE | Q78: 0.0086 | R78: 1.01025 | S78: 3.5 | T78: 0.06 | U78: 0.12 | V78: 3.301886792 | W78: 3.125 | X78: 3.232232189 | Y78: 3.093293739 | Z78: 2.280336792 | AA78: 2.11475
A79: en sommeil | B79: LOBET | C79: actif | D79: MUFFIN CAPPUCINO | E79: ok | F79: 933 | G79: 138 | H79: 20 | I79: 27.3226 | J79: 1.36613 | K79: 0 | L79: 1.36613 | M79: SNACK TOGO | N79: 0.0199 | O79: 1.38603 | P79: SERVIETTE | Q79: 0.0086 | R79: 1.37473 | S79: 3.5 | T79: 0.06 | U79: 0.12 | V79: 3.301886792 | W79: 3.125 | X79: 2.382262139 | Y79: 2.273173641 | Z79: 1.915856792 | AA79: 1.75027
A80: en sommeil | B80: LOBET | C80: actif | D80: MUFFIN MYRTILLE CRUMBLE | E80: ok | F80: 9331 | G80: 124 | H80: 24 | I80: 18.5322 | J80: 0.772175 | K80: 0 | L80: 0.772175 | M80: SNACK TOGO | N80: 0.0199 | O80: 0.792075 | P80: SERVIETTE | Q80: 0.0086 | R80: 0.780775 | S80: 3.5 | T80: 0.06 | U80: 0.12 | V80: 3.301886792 | W80: 3.125 | X80: 4.168654221 | Y80: 4.00243348 | Z80: 2.509811792 | AA80: 2.344225
A81: en sommeil | B81: LOBET | C81: actif | D81: MUFFIN ABRICOT | E81: ok | F81: 9310 | G81: 133 | H81: 24 | I81: 23.4634 | J81: 0.9776416667 | K81: 0 | L81: 0.9776416667 | M81: SNACK TOGO | N81: 0.0199 | O81: 0.9975416667 | P81: SERVIETTE | Q81: 0.0086 | R81: 0.9862416667 | S81: 3.5 | T81: 0.06 | U81: 0.12 | V81: 3.301886792 | W81: 3.125 | X81: 3.310023935 | Y81: 3.16859458 | Z81: 2.304345126 | AA81: 2.138758333
A82: en sommeil | B82: LOBET | C82: actif | D82: MUFFIN TRIPLE CHOCOLAT | E82: bof | F82: 9300 | G82: 133 | H82: 24 | I82: 21.4668 | J82: 0.89445 | K82: 0 | L82: 0.89445 | M82: SNACK TOGO | N82: 0.0199 | O82: 0.91435 | P82: SERVIETTE | Q82: 0.0086 | R82: 0.90305 | S82: 3.5 | T82: 0.06 | U82: 0.12 | V82: 3.301886792 | W82: 3.125 | X82: 3.611184768 | Y82: 3.460494989 | Z82: 2.387536792 | AA82: 2.22195
A83: en sommeil | B83: LOBET | C83: actif | D83: MUFFIN MYRTILLE | E83: non | F83: 9210 | G83: 126 | H83: 24 | I83: 20.167 | J83: 0.8402916667 | K83: 0 | L83: 0.8402916667 | M83: SNACK TOGO | N83: 0.0199 | O83: 0.8601916667 | P83: SERVIETTE | Q83: 0.0086 | R83: 0.8488916667 | S83: 3.5 | T83: 0.06 | U83: 0.12 | V83: 3.301886792 | W83: 3.125 | X83: 3.838547757 | Y83: 3.681270676 | Z83: 2.441695126 | AA83: 2.276108333
A84: en sommeil | B84: LOBET | C84: actif | D84: MUFFIN FRUITY CARROT | E84: non | F84: 936 | G84: 140 | H84: 15 | I84: 17.1386 | J84: 1.142573333 | K84: 0 | L84: 1.142573333 | M84: SNACK TOGO | N84: 0.0199 | O84: 1.162473333 | P84: SERVIETTE | Q84: 0.0086 | R84: 1.151173333 | S84: 3.5 | T84: 0.06 | U84: 0.12 | V84: 3.301886792 | W84: 3.125 | X84: 2.840397881 | Y84: 2.714621603 | Z84: 2.139413459 | AA84: 1.973826667
A85: en sommeil | B85: LOBET | C85: actif | D85: MUFFIN CARAMEL | E85: non | F85: 932 | G85: 137 | H85: 15 | I85: 16.4954 | J85: 1.099693333 | K85: 0 | L85: 1.099693333 | M85: SNACK TOGO | N85: 0.0199 | O85: 1.119593333 | P85: SERVIETTE | Q85: 0.0086 | R85: 1.108293333 | S85: 3.5 | T85: 0.06 | U85: 0.12 | V85: 3.301886792 | W85: 3.125 | X85: 2.949184042 | Y85: 2.819650634 | Z85: 2.182293459 | AA85: 2.016706667
A86: en sommeil | B86: LOBET | C86: actif | D86: MUFFIN CHOCOLAT | E86: ok | F86: 920 | G86: 123 | H86: 15 | I86: 12.2074 | J86: 0.8138266667 | K86: 0 | L86: 0.8138266667 | M86: SNACK TOGO | N86: 0.0199 | O86: 0.8337266667 | P86: SERVIETTE | Q86: 0.0086 | R86: 0.8224266667 | S86: 3.5 | T86: 0.06 | U86: 0.12 | V86: 3.301886792 | W86: 3.125 | X86: 3.960394845 | Y86: 3.799730878 | Z86: 2.468160126 | AA86: 2.302573333
A87: à la carte | B87: LOBET | C87: actif | D87: BIG COOKIE CHOCOLAT LAIT | E87: non | F87: 9674 | G87: 103 | H87: 36 | I87: 26.2774 | J87: 0.7299277778 | K87: 0 | L87: 0.7299277778 | M87: COOKIE | N87: 0.0304 | O87: 0.7603277778 | P87: COOKIE | Q87: 0.0304 | R87: 0.7603277778 | S87: 3 | T87: 0.06 | U87: 0.12 | V87: 2.830188679 | W87: 2.678571429 | X87: 3.722327083 | Y87: 3.522916704 | Z87: 2.069860901 | AA87: 1.918243651
A88: à la carte | B88: METRO | C88: actif | D88: CAMOMILLE | H88: 10 | I88: 5 | J88: =7.321/100 -> 0.07321 | K88: 0 | L88: 0.07321 | M88: HOT DRINK | O88: 0.07321 | P88: GRAND KFE | R88: 0.07321 | S88: 2.6 | T88: 0.06 | U88: 0.21 | V88: 2.452830189 | W88: =+S88/1.21 -> 2.148760331 | X88: 33.50403208 | Y88: 29.35063967 | Z88: 2.379620189 | AA88: 2.075550331
A89: à la carte | B89: METRO | C89: actif | D89: CANDEREL | H89: 10 | I89: 5 | J89: =+I89/H89 -> 0.5 | K89: 0 | L89: 0.5 | M89: accompagnement | N89: rien | O89: rien | P89: RIEN | Q89: rien | R89: rien | S89: rien | T89: rien | U89: rien | V89: rien | W89: rien | X89: rien | Y89: rien | Z89: rien | AA89: rien
A90: à la carte | B90: METRO | C90: actif | D90: FONDANT CHOCOLAT | G90: 110 | H90: 10 | I90: 5 | J90: =+I90/H90 -> 0.5 | K90: 0 | L90: 0.5 | M90: SNACK TOGO | N90: 0.0199 | O90: =+L90+N90 -> 0.5199 | P90: CRUMBLE SP | Q90: 0.0305 | R90: =+L90+Q90 -> 0.5305 | S90: 3.2 | T90: 0.06 | U90: 0.12 | V90: =+S90/1.06 -> 3.018867925 | W90: =+S90/1.12 -> 2.857142857 | X90: =+V90/O90 -> 5.806631899 | Y90: =+W90/R90 -> 5.385754679 | Z90: =+V90-O90 -> 2.498967925 | AA90: =+W90-R90 -> 2.326642857
A91: en sommeil | B91: LOBET | C91: actif | D91: MUFFIN CAPPUCINO CHOCOLAT | E91: non | F91: 904 | G91: 100 | H91: 32 | I91: 20.3412 | J91: =+I91/H91 -> 0.6356625 | K91: 0 | L91: 0.6356625 | M91: SNACK TOGO | N91: 0.0199 | O91: 0.6555625 | P91: SERVIETTE | Q91: 0.0086 | R91: 0.6442625 | S91: 3.5 | T91: 0.06 | U91: 0.12 | V91: 3.301886792 | W91: 3.125 | X91: 5.036723108 | Y91: 4.850507363 | Z91: 2.646324292 | AA91: 2.4807375
A92: à la carte | B92: METRO | C92: actif | D92: GAUFRE CHOCO CHANT | H92: 10 | I92: 5 | J92: =0.37+0.025+0.3 -> 0.695 | K92: 0 | L92: 0.695 | M92: GAUFRE | N92: 0.0836 | O92: 0.7786 | P92: GAUFRE | Q92: 0.0836 | R92: 0.7786 | S92: 3.5 | T92: 0.06 | U92: 0.12 | V92: 3.301886792 | W92: 3.125 | X92: 4.240799888 | Y92: 4.013614179 | Z92: 2.523286792 | AA92: 2.3464
A93: à la carte | B93: METRO | C93: actif | D93: GAUFRE DE BRUXELLES | G93: 80 | H93: 10 | I93: 5 | J93: =+I93/H93 -> 0.5 | K93: 0 | L93: 0.5 | M93: GAUFRE TOGO | N93: 0.0836 | O93: 0.5836 | P93: GAUFRE | Q93: 0.0836 | R93: 0.5836 | S93: 3 | T93: 0.06 | U93: 0.12 | V93: 2.830188679 | W93: 2.678571429 | X93: 4.849535091 | Y93: 4.589738568 | Z93: 2.246588679 | AA93: 2.094971429
A94: à la carte | B94: METRO | C94: actif | D94: GAUFRE DE LIEGE | G94: 90 | H94: 10 | I94: 5 | J94: =+I94/H94 -> 0.5 | K94: 0 | L94: 0.5 | M94: GAUFRE TOGO | N94: 0.0836 | O94: 0.5836 | P94: GAUFRE | Q94: 0.0836 | R94: 0.5836 | S94: 3 | T94: 0.06 | U94: 0.12 | V94: 2.830188679 | W94: 2.678571429 | X94: 4.849535091 | Y94: 4.589738568 | Z94: 2.246588679 | AA94: 2.094971429
A95: en sommeil | B95: LOBET | C95: actif | D95: MUFFINS VANILLE CHOCOLAT | E95: non | F95: 900 | G95: 100 | H95: 32 | I95: 19.2022 | J95: =+I95/H95 -> 0.60006875 | K95: 0 | L95: 0.60006875 | M95: SNACK TOGO | N95: 0.0199 | O95: 0.61996875 | P95: SERVIETTE | Q95: 0.0086 | R95: 0.60866875 | S95: 3.5 | T95: 0.06 | U95: 0.12 | V95: 3.301886792 | W95: 3.125 | X95: 5.325892301 | Y95: 5.134155483 | Z95: 2.681918042 | AA95: 2.51633125
A96: en sommeil | B96: METRO | C96: inactif | D96: ŒUF CHOCO RIOBA | H96: 10 | I96: 5 | J96: 5.98 | K96: 0 | L96: 5.98 | M96: DIVERS | S96: 4.5 | T96: 0.06 | U96: 0.12 | V96: 4.245283019 | W96: 4.017857143 | Z96: 4.245283019 | AA96: 4.017857143
A97: en sommeil | B97: METRO | C97: inactif | D97: ŒUF CHOCO RIOBA 100g | H97: 10 | I97: 5 | J97: =(J96/2)+0.15 -> 3.14 | K97: 0 | L97: 3.14 | M97: DIVERS | S97: 3.5 | T97: 0.06 | U97: 0.12 | V97: 3.301886792 | W97: 3.125 | Z97: 3.301886792 | AA97: 3.125
A98: en sommeil | B98: METRO | C98: inactif | D98: ŒUF CHOCO RIOBA 200g | H98: 10 | I98: 5 | J98: =((J97*200)/1000) -> 0.628 | K98: 0 | L98: =J98-(J98*K98) -> 0.628 | M98: DIVERS | S98: 6 | T98: 0.06 | U98: 0.12 | V98: 5.660377358 | W98: 5.357142857 | Z98: 5.660377358 | AA98: 5.357142857
A99: en sommeil | B99: INTER DRINKS | C99: inactif | D99: ORANGINA | H99: 24 | I99: 15.26 | J99: =I99/H99 -> 0.6358333333 | K99: 0 | L99: 0.6358333333 | M99: DRINCK | N99: 0 | O99: =+L99+N99 -> 0.6358333333 | P99: GOBELET | Q99: 0.028 | R99: =+L99+Q99 -> 0.6638333333 | S99: 2.3 | T99: 0.06 | U99: 0.21 | V99: 2.169811321 | W99: =+S99/1.21 -> 1.900826446 | X99: 3.412547293 | Y99: 2.863409158 | Z99: 1.533977987 | AA99: 1.236993113
A100: en sommeil | B100: CIE DES DESSERTS | C100: inactif | D100: pecan pie carée 90g *40 Gorgeous pecan | H100: 40 | J100: 1.386 | K100: 0 | L100: 1.386 | S100: 4 | V100: =S100-(S100*#REF!) ->  | W100: =S100-(S100*#REF!) -> 
A101: en sommeil | B101: ART ET GOUT | C101: inactif | D101: petit pot de crème (pistache praliné,,, | J101: 1 | K101: 0 | L101: 1 | S101: 3.5 | V101: =S101-(S101*#REF!) ->  | W101: =S101-(S101*#REF!) -> 
A102: à la carte | B102: METRO | C102: actif | D102: HOOGARDEEN | H102: 10 | I102: 5 | J102: 0.72 | K102: 0 | L102: 0.72 | M102: DRINCK | N102: 0 | O102: =+L102+N102 -> 0.72 | P102: GOBELET | Q102: 0.028 | R102: =+L102+Q102 -> 0.748 | S102: 2.7 | T102: 0.21 | U102: 0.21 | V102: =+S102/1.21 -> 2.231404959 | W102: =+S102/1.21 -> 2.231404959 | X102: =+V102/O102 -> 3.099173554 | Y102: =+W102/R102 -> 2.983161709 | Z102: 1.511404959 | AA102: 1.483404959
A103: à la carte | B103: METRO | C103: actif | D103: HOT CECEMEL | G103: 30G | H103: 10 | I103: 5 | J103: =+I103/H103 -> 0.5 | K103: 0 | L103: 0.5 | M103: ICE DRINK | N103: 0.1423 | O103: =+L103+N103 -> 0.6423 | P103: GRAND KFE | Q103: 0.127 | R103: =+L103+Q103 -> 0.627 | S103: 4 | T103: 0.06 | U103: 0.21 | V103: =+S103/1.06 -> 3.773584906 | W103: =+S103/1.21 -> 3.305785124 | X103: =+V103/O103 -> 5.875112729 | Y103: =+W103/R103 -> 5.272384568 | Z103: 3.131284906 | AA103: 2.678785124
A104: à la carte | B104: METRO | C104: actif | D104: MAES | H104: 10 | I104: 5 | J104: 0.769 | K104: 0 | L104: 0.769 | M104: DRINCK | N104: 0 | O104: =+L104+N104 -> 0.769 | P104: GOBELET | Q104: 0.028 | R104: =+L104+Q104 -> 0.797 | S104: 2.7 | T104: 0.21 | U104: 0.21 | V104: =+S104/1.21 -> 2.231404959 | W104: =+S104/1.21 -> 2.231404959 | X104: =+V104/O104 -> 2.901696955 | Y104: =+W104/R104 -> 2.799755281 | Z104: 1.462404959 | AA104: 1.434404959
A105: à la carte | B105: METRO | C105: actif | D105: POPPIES CHOCOLAT | E105: 2016-04-22 | G105: 1 | H105: 10 | I105: 5 | J105: =+I105/H105 -> 0.5 | K105: 0 | L105: 0.5 | M105: accompagnement | N105: rien | O105: rien | P105: rien | Q105: rien | R105: rien | S105: rien | T105: rien | U105: rien | V105: rien | W105: rien | X105: rien | Y105: rien | Z105: rien | AA105: rien
A106: en sommeil | B106: CIE DES DESSERTS | C106: inactif | D106: sablé figue roties 100g*24 | H106: 24 | J106: 1.18 | K106: 0 | L106: 1.18 | S106: 4.5 | V106: =S106-(S106*#REF!) ->  | W106: =S106-(S106*#REF!) ->  | Z106: =+V106-O106 ->  | AA106: =+W106-R106 -> 
A107: à la carte | B107: METRO | C107: actif | D107: POPPIES COCO | E107: ref stoppée | G107: 1.2 | H107: 10 | I107: 5 | J107: =+I107/H107 -> 0.5 | K107: 0 | L107: 0.5 | M107: accompagnement | N107: rien | O107: rien | P107: rien | Q107: rien | R107: rien | S107: rien | T107: rien | U107: rien | V107: rien | W107: rien | X107: rien | Y107: rien | Z107: rien | AA107: rien
A108: à la carte | B108: METRO | C108: actif | D108: SHIPS LAYS bicky | E108: 2016-03-03 | G108: 45G | H108: 10 | I108: 5 | J108: 0.5 | K108: 0 | L108: 0.5 | M108: RIEN | N108: 0 | O108: =+L108+N108 -> 0.5 | P108: RIEN | Q108: 0 | R108: =+L108+Q108 -> 0.5 | S108: 1.6 | T108: 0.06 | U108: 0.12 | V108: =+S108/1.06 -> 1.509433962 | W108: =+S108/1.12 -> 1.428571429 | X108: =+V108/O108 -> 3.018867925 | Y108: =+W108/R108 -> 2.857142857 | Z108: =+V108-O108 -> 1.009433962 | AA108: =+W108-R108 -> 0.9285714286
A109: en sommeil | B109: LOBET | C109: inactif | D109: scoop&bake banane caramel | E109: non | G109: 2k | H109: 4 | I109: 40.1464 | J109: 10.0366 | L109: 10.0366 | T109: 0.06 | U109: 0.12 | V109: 0 | W109: 0 | Z109: 0 | AA109: 0
A110: en sommeil | B110: LOBET | C110: inactif | D110: scoop&bake double choco | E110: non | G110: 2k | H110: 4 | I110: 39.1146 | J110: 9.77865 | L110: 9.77865 | T110: 0.06 | U110: 0.12 | V110: 0 | W110: 0 | Z110: 0 | AA110: 0
A111: en sommeil | B111: LOBET | C111: inactif | D111: scoop&bake myrtille | E111: non | G111: 2k | H111: 4 | I111: 37.2654 | J111: 9.31635 | L111: 9.31635 | T111: 0.06 | U111: 0.12 | V111: 0 | W111: 0 | Z111: 0 | AA111: 0
A112: en sommeil | B112: LOBET | C112: inactif | D112: scoop&bake pomme cannelle | E112: non | G112: 2k | H112: 4 | I112: 36.9572 | J112: 9.2393 | L112: 9.2393 | T112: 0.06 | U112: 0.12 | V112: 0 | W112: 0 | Z112: 0 | AA112: 0
A113: en sommeil | B113: LOBET | C113: inactif | D113: scoop&bake vanille | E113: non | G113: 2k | H113: 4 | I113: 32.361 | J113: 8.09025 | L113: 8.09025 | T113: 0.06 | U113: 0.12 | V113: 0 | W113: 0 | Z113: 0 | AA113: 0
A114: en sommeil | B114: DELIDRINCKS | C114: actif | D114: SHIPS KETTLE | J114: 0.525 | K114: 0 | L114: 0.525 | M114: rien | O114: =+L114+N114 -> 0.525 | R114: =L114+Q114 -> 0.525 | S114: 2.5 | T114: 0.06 | U114: 0.12 | V114: =S114/1.06 -> 2.358490566 | W114: =S114/1.21 -> 2.066115702 | X114: =V114/O114 -> 4.492362983 | Y114: =W114/R114 -> 3.935458481 | Z114: =V114-O114 -> 1.833490566 | AA114: =W114-R114 -> 1.541115702
A115: à la carte | B115: METRO | C115: actif | D115: SHIPS LAYS NATURE | E115: 2016-03-03 | G115: 45G | H115: 10 | I115: 5 | J115: =+I115/H115 -> 0.5 | K115: 0 | L115: 0.5 | M115: RIEN | N115: 0 | O115: 0.5 | P115: RIEN | Q115: 0 | R115: =+L115+Q115 -> 0.5 | S115: 1.6 | T115: 0.06 | U115: 0.12 | V115: =+S115/1.06 -> 1.509433962 | W115: =+S115/1.12 -> 1.428571429 | X115: =+V115/O115 -> 3.018867925 | Y115: =+W115/R115 -> 2.857142857 | Z115: =+V115-O115 -> 1.009433962 | AA115: =+W115-R115 -> 0.9285714286
A116: à la carte | B116: METRO | C116: actif | D116: SHIPS LAYS PAPRIKA | E116: 2016-03-03 | G116: 45G | H116: 10 | I116: 5 | J116: =+I116/H116 -> 0.5 | K116: 0 | L116: 0.5 | M116: RIEN | N116: 0 | O116: 0.5 | P116: RIEN | Q116: 0 | R116: 0.5 | S116: 1.6 | T116: 0.06 | U116: 0.12 | V116: 1.509433962 | W116: 1.428571429 | X116: 3.018867925 | Y116: 2.857142857 | Z116: 1.009433962 | AA116: 0.9285714286
A117: à la carte | B117: METRO | C117: actif | D117: SHIPS LAYS sel&poivre | E117: 2016-04-26 | G117: 45G | H117: 10 | I117: 5 | J117: =+I117/H117 -> 0.5 | K117: 0 | L117: 0.5 | M117: RIEN | N117: 0 | O117: 0.5 | P117: RIEN | Q117: 0 | R117: 0.5 | S117: 1.6 | T117: 0.06 | U117: 0.12 | V117: 1.509433962 | W117: 1.428571429 | X117: 3.018867925 | Y117: 2.857142857 | Z117: 1.009433962 | AA117: 0.9285714286
A118: à la carte | B118: METRO | C118: actif | D118: SUCETTE | H118: 10 | I118: 5 | J118: =+I118/H118 -> 0.5 | K118: 0 | L118: 0.5 | M118: RIEN | N118: 0 | O118: 0.5 | P118: RIEN | Q118: 0 | R118: 0.5 | S118: 0.8 | T118: 0.06 | U118: 0.12 | V118: 0.7547169811 | W118: 0.7142857143 | X118: 1.509433962 | Y118: 1.428571429 | Z118: 0.2547169811 | AA118: 0.2142857143
A119: en sommeil | B119: DAVIGEL | C119: actif | D119: CLAFOUTI GRIOTTES | H119: 30 | I119: 33 | J119: =+I119/H119 -> 1.1 | K119: 0 | L119: 1.1 | M119: CRUMBLE TOGO | N119: 0.0504 | O119: 1.1504 | P119: CRUMBLE SP | Q119: 0.0305 | R119: 1.1305 | S119: 4.9 | T119: 0.06 | U119: 0.12 | V119: 4.622641509 | W119: 4.375 | X119: 4.018290603 | Y119: 3.86996904 | Z119: 3.472241509 | AA119: 3.2445
A120: à la carte | B120: METRO | C120: actif | D120: TARTE CHOCOLAT | H120: 10 | I120: 5 | J120: =5.14/8 -> 0.6425 | K120: 0 | L120: 0.6425 | M120: TARTE TOGO | N120: 0.198 | O120: 0.8405 | P120: TARTE SP | Q120: 0.0814 | R120: 0.7239 | S120: 3.5 | T120: 0.06 | U120: 0.12 | V120: 3.301886792 | W120: 3.125 | X120: 3.92847923 | Y120: 4.316894599 | Z120: 2.461386792 | AA120: 2.4011
A121: à la carte | B121: METRO | C121: actif | D121: TARTE TATIN | E121: 2016-06-12 | G121: 90G | H121: 10 | I121: 5 | J121: =5.14/8 -> 0.6425 | K121: 0 | L121: =J121-(J121*K121) -> 0.6425 | M121: TARTE TOGO | N121: 0.198 | O121: 0.8405 | P121: TARTE SP | Q121: 0.0814 | R121: =+L121+Q121 -> 0.7239 | S121: 3.5 | T121: 0.06 | U121: 0.12 | V121: =+S121/1.06 -> 3.301886792 | W121: =+S121/1.12 -> 3.125 | X121: =+V121/O121 -> 3.92847923 | Y121: =+W121/R121 -> 4.316894599 | Z121: =+V121-O121 -> 2.461386792 | AA121: =+W121-R121 -> 2.4011
A122: à la carte | B122: METRO | C122: actif | D122: TYRELLS | H122: 10 | I122: 5 | J122: 0.81 | K122: 0 | L122: 0.81 | M122: RIEN | N122: 0 | O122: 0.81 | P122: RIEN | Q122: 0 | R122: 0.81 | S122: 3 | T122: 0.06 | U122: 0.12 | V122: 2.830188679 | W122: 2.678571429 | X122: 3.494060098 | Y122: 3.306878307 | Z122: 2.020188679 | AA122: 1.868571429
A123: à la carte | B123: PALAIS DES THE | C123: actif | D123: Thé mousseline (100p) | J123: =30.21/100 -> 0.3021 | K123: 0 | L123: 0.033 | M123: HOT DRINK | N123: 0.1423 | O123: 0.1753 | P123: GRAND KFE | Q123: 0.1271 | R123: 0.1601 | S123: 2.4 | T123: 0.06 | U123: 0.21 | V123: 2.264150943 | W123: =+S123/1.21 -> 1.983471074 | X123: 12.91586391 | Y123: 12.38895112 | Z123: 2.088850943 | AA123: 1.823371074
A124: en sommeil | B124: INTER DRINKS | C124: inactif | D124: SWEPPES AGRUM | H124: 24 | I124: 14.53 | J124: =I124/H124 -> 0.6054166667 | K124: 0 | L124: =J124-(J124*K124) -> 0.6054166667 | M124: DRINCK | N124: 0 | O124: 0.6054166667 | P124: GOBELET | Q124: 0.028 | R124: 0.6334166667 | S124: 2.3 | T124: 0.06 | U124: 0.21 | V124: 2.169811321 | W124: =+S124/1.21 -> 1.900826446 | X124: 3.583996676 | Y124: 3.000910059 | Z124: 1.564394654 | AA124: 1.26740978
A125: en sommeil | B125: INTER DRINKS | C125: inactif | D125: TAO 25CL | H125: 24 | I125: 21.6 | J125: =I125/H125 -> 0.9 | K125: 0 | L125: 0.9 | M125: DRINCK | N125: 0 | O125: 0.9 | P125: GOBELET | Q125: 0.028 | R125: 0.928 | S125: 3.4 | T125: 0.06 | U125: 0.21 | V125: 3.20754717 | W125: =+S125/1.21 -> 2.809917355 | X125: 3.5639413 | Y125: 3.027928185 | Z125: 2.30754717 | AA125: 1.881917355
A126: en sommeil | B126: CIE DES DESSERTS | C126: inactif | D126: tarte choco framboise 67g*24 | H126: 24 | J126: 1.088 | K126: 0 | L126: 1.088 | S126: 4.4 | V126: =S126-(S126*#REF!) ->  | W126: =S126-(S126*#REF!) -> 
A127: à la carte | B127: PONTI | C127: actif | D127: CAFE pantera 0,007g / 0,010 G | G127: 1000 | H127: =+G127/10 -> 100 | I127: 21 | J127: =+I127/H127 -> 0.21 | K127: 0 | L127: 0.21 | M127: HOT DRINK | N127: =0.0037+0.0285+0.0418+0.074+0.017 -> 0.165 | O127: =+L127+N127 -> 0.375 | P127: MEDIUM KFE | Q127: =0.0037+0.0418+0.074+0.017 -> 0.1365 | R127: =+L127+Q127 -> 0.3465 | S127: 2.2 | T127: 0.06 | U127: 0.21 | V127: =+S127/1.06 -> 2.075471698 | W127: =+S127/1.21 -> 1.818181818 | X127: =+V127/O127 -> 5.534591195 | Y127: =+W127/R127 -> 5.247277975 | Z127: 1.700471698 | AA127: 1.471681818
A128: à la carte | B128: PONTI | C128: actif | D128: SUCRE DOSETTE | H128: 1000 | I128: 17 | J128: =+I128/H128 -> 0.017 | K128: 0 | L128: 0.017 | M128: accompagnement | N128: rien | O128: rien | P128: RIEN | Q128: rien | R128: rien | S128: rien | T128: rien | U128: rien | V128: rien | W128: rien | X128: rien | Y128: rien | Z128: rien | AA128: rien
A129: en sommeil | B129: CIE DES DESSERTS | C129: inactif | D129: Tartelette abricot 130g | J129: 1.432 | K129: 0 | L129: 1.432 | S129: 4.9 | V129: =S129-(S129*#REF!) ->  | W129: =S129-(S129*#REF!) ->  | Z129: =+V129-O129 ->  | AA129: =+W129-R129 -> 
A130: en sommeil | B130: CIE DES DESSERTS | C130: inactif | D130: tartelette citron 90g*24 | H130: 24 | J130: =1.31-((1.31*10)/100) -> 1.179 | K130: 0 | L130: 1.179 | S130: 4.3 | V130: =S130-(S130*#REF!) ->  | W130: =S130-(S130*#REF!) ->  | Z130: =+V130-O130 ->  | AA130: =+W130-R130 -> 
A131: en sommeil | B131: DAVIGEL | C131: inactif | D131: TARTELETTE POMME NORMANDE | J131: 1.16 | K131: 0 | L131: 1.16 | S131: 4.9 | T131: 0.06 | U131: 0.12 | V131: =+S131/1.06 -> 4.622641509 | W131: =+S131/1.12 -> 4.375 | X131: =+V131/O131 ->  | Y131: =+W131/R131 ->  | Z131: =+V131-O131 -> 4.622641509 | AA131: =+W131-R131 -> 4.375
A132: à la carte | B132: PONTI | C132: actif | D132: CREME DOSETTE | H132: 240 | I132: 13 | J132: =+I132/H132 -> 0.05416666667 | K132: 0 | L132: 0.05416666667 | M132: accompagnement | N132: rien | O132: rien | P132: rien | Q132: rien | R132: rien | S132: rien | T132: rien | U132: rien | V132: rien | W132: rien | X132: rien | Y132: rien | Z132: rien | AA132: rien
A133: à la carte | B133: PONTI | C133: actif | D133: DECA pantera 0,007g / 0,010 G | G133: 250 | H133: =+G133/10 -> 25 | I133: 5.5 | J133: =+I133/H133 -> 0.22 | K133: 0 | L133: 0.22 | M133: HOT DRINK | N133: =0.0037+0.0285+0.0418+0.074+0.017 -> 0.165 | O133: =+L133+N133 -> 0.385 | P133: MEDIUM KFE | Q133: =0.0037+0.0418+0.074+0.017 -> 0.1365 | R133: =+L133+Q133 -> 0.3565 | S133: 2.2 | T133: 0.06 | U133: 0.21 | V133: =+S133/1.06 -> 2.075471698 | W133: =+S133/1.21 -> 1.818181818 | X133: =+V133/O133 -> 5.39083558 | Y133: =+W133/R133 -> 5.100089252 | Z133: =+V133-O133 -> 1.690471698 | AA133: =+W133-R133 -> 1.461681818
A134: en sommeil | B134: ART ET GOUT | C134: inactif | D134: yaourt fruits | J134: =1.91/2 -> 0.955 | K134: 0 | L134: 0.955 | S134: 3.3 | V134: =S134-(S134*#REF!) ->  | W134: =S134-(S134*#REF!) ->  | Z134: =+V134-O134 ->  | AA134: =+W134-R134 -> 
A135: en sommeil | B135: ART ET GOUT | C135: inactif | D135: yaourt nature 0% | J135: =1.7/2 -> 0.85 | K135: 0 | L135: 0.85 | S135: 3 | V135: =S135-(S135*#REF!) ->  | W135: =S135-(S135*#REF!) -> 
A136: à la carte | B136: LOBET | C136: actif | D136: yaourt pur bio 150g | J136: 0.79 | K136: 0 | L136: 0.79 | S136: 2.9 | T136: 0.06 | U136: 0.12 | V136: =+S136/1.06 -> 2.735849057 | W136: =+S136/1.12 -> 2.589285714 | X136: =+V136/O136 ->  | Y136: =+W136/R136 ->  | Z136: =+V136-O136 -> 2.735849057 | AA136: =+W136-R136 -> 2.589285714

Sheet 02a PASTA poulet (grd)
A1: PASTA GRANDE | F1: : | G1: Fusilli Poulet | N1: 330-340g
A3: RECETTE PREVUE POUR : | C3: 1 | E3: Vous la dupliquez pour : | H3: 2
A5: Prix de revient unitaire : | C5: =K12 -> 1.245 | F5: marge | G5: coef | H5: tva | I5: ht | K5: ttc
K6: 5.8
A7: avec emballage : | C7: =C5+C9 -> 1.255 | D7: =C5+C11 -> 1.255 | F7: =I7-C7 -> 4.216698113 | G7: =I7/C7 -> 4.359918815 | H7: ES 6 | I7: =K6/1.06 -> 5.471698113 | J7: ToGo
K8: 5.8
A9: Emballage ToGo : | C9: =G31+G32 -> 0.01 | D9: =C9/C7 -> 0.00796812749 | F9: =I9-D7 -> 3.923571429 | G9: =I9/D7 -> 4.126351736 | H9: ES 12 | I9: =K8/1.12 -> 5.178571429 | J9: Sp
A11: Emballage Sp : | C11: =O31+O32 -> 0.01 | D11: =C11/D7 -> 0.00796812749 | F11: Prix kg/l / unité | G11: Poids brut recette | H11: Unité | I11: % perte | J11: brut 1 part | K11: Cout 1 part | L11: prix de revient | M11: brut à faire | N11: prix de revient
A12: 0 | B12: Produits | F12: ht | K12: =SUM(K14:K29) -> 1.245 | L12: =K12*H3 -> 2.49 | N12: =SUM(N14:O29) -> 2.55 | P12: FOURNISSEUR
A14: Pate fusilli | F14: =VLOOKUP(A14,PRIXINGRE,3,0) -> 5 | G14: 0.085 | H14: =IFERROR(VLOOKUP(A14,UNITINGRE,2,0),"") -> kg | I14: =IFERROR(VLOOKUP(A14,UNITINGRE,10,0),"") -> 0 | J14: =IFERROR((G14/$C$3)+(((G14/$C$3)*I14)),"") -> 0.085 | K14: =IFERROR((J14*F14),"") -> 0.425 | M14: =IFERROR((ROUNDUP((J14*$H$3),2)),"") -> 0.17 | N14: =IFERROR((M14*F14),"") -> 0.85 | P14: =VLOOKUP(A14,GDEBASE,8,0) -> METRO
A15: Huile d'olive | F15: =VLOOKUP(A15,PRIXINGRE,3,0) -> 5 | G15: 0.01 | H15: Litre | I15: 0 | J15: 0.01 | K15: =IFERROR((J15*F15),"") -> 0.05 | M15: =IFERROR((ROUNDUP((J15*$H$3),2)),"") -> 0.02 | N15: =IFERROR((M15*F15),"") -> 0.1 | P15: METRO
A16: Carottes | F16: 5 | G16: 0.06 | H16: kg | I16: 0.2 | J16: 0.072 | K16: =IFERROR((J16*F16),"") -> 0.36 | M16: 0.15 | N16: 0.75 | P16: JOSA
A17: épice Thai 240g | F17: 5 | G17: 0.002 | H17: kg | I17: 0 | J17: 0.002 | K17: =IFERROR((J17*F17),"") -> 0.01 | M17: 0.01 | N17: 0.05 | P17: METRO
A18: poulet en filet surgelé DAVIGEL | F18: 5 | G18: 0.05 | H18: kg | I18: 0 | J18: 0.05 | K18: 0.25 | M18: 0.1 | N18: 0.5 | P18: DAVIGEL
A19: coriandre fraiche | F19: 5 | G19: 0.025 | H19: botte | I19: 0.2 | J19: 0.03 | K19: =IFERROR((J19*F19),"") -> 0.15 | M19: 0.06 | N19: 0.3 | P19: JOSA
F20: 0 | P20: 0
F21: 0 | P21: 0
F22: 0 | P22: 0
F23: 0 | P23: 0
F24: 0 | P24: 0
F25: 0 | P25: 0
F26: 0 | P26: 0
F27: 0 | P27: 0
F28: 0 | P28: 0
F29: 0 | P29: 0
B30: Emballage out | E30: Qte | F30: price | G30: prix U | H30: Emballage in | M30: Qte | N30: price | O30: prix U
A31: 1 | B31: #pack PASTA GRANDE ToGo | E31: 1 | F31: =VLOOKUP(B31,PRIXE,2,0) -> 0.01 | G31: =E31*F31 -> 0.01 | H31: 3 | I31: #pack PASTA GRANDE Sp | M31: 1 | N31: =VLOOKUP(I31,PRIXE,2,0) -> 0.01 | O31: =M31*N31 -> 0.01
A32: 2 | F32: =VLOOKUP(B32,PRIXE,2,0) -> 0 | G32: =E32*F32 -> 0 | H32: 4 | N32: =VLOOKUP(I32,PRIXE,2,0) -> 0 | O32: =M32*N32 -> 0
A33: Etape de la recette
A34: 1 | B34: Faire bouillir une grande quantité d'eau salée | G34: 11
A35: 2 | B35: Cuire les pâtes 14 minutes | G35: 12
A36: 3 | B36: Egouttez-les et les rincer à l'eau chaude | G36: 13
A37: 4 | B37: Ajoutez 1 cas d'huile d'olive | G37: 14
A38: 5 | B38: Cuire les carottes avec des épices thaï au four à mico-ondes | G38: 15
A39: 6 | B39: Coupez le poulet en cubes | G39: 16
A40: 7 | B40: Assaisonnez d'épices pour poulet | G40: CALORIES (kcal) | J40: =#REF! ->  | L40: POUR UNE PORTION
A41: 8 | B41: Garnir de coriandre(ou de persil) | G41: Protéines (g) | L41: Fibres (g)
A42: 9 | G42: Lipides (g) | L42: AGSaturés (g)
A43: 10 | G43: Glucides (g)
A44: Forme & Dimension :
A46: Cuisson & dressage :
A48: Liste des allergènes :
B49: GLUTEN | D49: GLUCOSE | G49: GRAINES | J49: CÉLERI | M49: CRUSTACÉS
B50: LACTOSE / DAIRY | D50: ARACHIDE | G50: FRUITS À COQUE | J50: SULFITES | M50: POISSON
B51: OEUF | D51: MOUTARDE | G51: SOJA | J51: PORC | M51: VIANDE
B53: COMMANDE | D53: pour | F53: =H3 -> 2 | G53: =CONCATENATE(A1, F1,G1) -> PASTA GRANDE : Fusilli Poulet
B55: qte | C55: unité | D55: liste | I55: price | M55: Total
B56: =M14 -> 0.17 | C56: =H14 -> kg | D56: =A14 -> Pate fusilli | I56: =F14 -> 5 | M56: =N14 -> 0.85
B57: 0.02 | C57: Litre | D57: =A15 -> Huile d'olive | I57: =F15 -> 5 | M57: 0.1
B58: 0.15 | C58: kg | D58: Carottes | I58: 5 | M58: 0.75
B59: 0.01 | C59: kg | D59: épice Thai 240g | I59: 5 | M59: 0.05
B60: 0.1 | C60: kg | D60: poulet en filet surgelé DAVIGEL | I60: 5 | M60: 0.5
B61: 0.06 | C61: botte | D61: coriandre fraiche | I61: 5 | M61: 0.3
D62: 0 | I62: 0
D63: 0 | I63: 0
D64: 0 | I64: 0
D65: 0 | I65: 0
D66: 0 | I66: 0
D67: 0 | I67: 0
D68: 0 | I68: 0
D69: 0 | I69: 0
D70: 0 | I70: 0
D71: =B29 -> 0 | I71: 0
M72: =SUM(M56:M71) -> 2.55

Sheet 02a PASTA poulet (moyen)
A1: PASTA MEDIUM | F1: : | G1: Fusilli Poulet | N1: 250g
A3: RECETTE PREVUE POUR : | C3: 1 | E3: Vous la dupliquez pour : | H3: 2
A5: Prix de revient unitaire : | C5: =K12 -> 0.985 | F5: marge | G5: coef | H5: tva | I5: ht | K5: ttc
K6: 4.5
A7: avec emballage : | C7: =C5+C9 -> 0.995 | D7: =C5+C11 -> 0.995 | F7: =I7-C7 -> 3.250283019 | G7: =I7/C7 -> 4.266616099 | H7: ES 6 | I7: =K6/1.06 -> 4.245283019 | J7: ToGo
K8: 4.5
A9: Emballage ToGo : | C9: =G31+G32 -> 0.01 | D9: =C9/C7 -> 0.01005025126 | F9: =I9-D7 -> 3.022857143 | G9: =I9/D7 -> 4.03804738 | H9: ES 12 | I9: =K8/1.12 -> 4.017857143 | J9: Sp
A11: Emballage Sp : | C11: =O31+O32 -> 0.01 | D11: =C11/D7 -> 0.01005025126 | F11: Prix kg/l / unité | G11: Poids brut recette | H11: Unité | I11: % perte | J11: brut 1 part | K11: Cout 1 part | L11: prix de revient | M11: brut à faire | N11: prix de revient
A12: 0 | B12: Produits | F12: ht | K12: =SUM(K14:K29) -> 0.985 | L12: =K12*H3 -> 1.97 | N12: =SUM(N14:O29) -> 2.05 | P12: FOURNISSEUR
A14: Pate fusilli | F14: =VLOOKUP(A14,PRIXINGRE,3,0) -> 5 | G14: 0.06 | H14: =IFERROR(VLOOKUP(A14,UNITINGRE,2,0),"") -> kg | I14: =IFERROR(VLOOKUP(A14,UNITINGRE,10,0),"") -> 0 | J14: =IFERROR((G14/$C$3)+(((G14/$C$3)*I14)),"") -> 0.06 | K14: =IFERROR((J14*F14),"") -> 0.3 | M14: =IFERROR((ROUNDUP((J14*$H$3),2)),"") -> 0.12 | N14: =IFERROR((M14*F14),"") -> 0.6 | P14: =VLOOKUP(A14,GDEBASE,8,0) -> METRO
A15: Huile d'olive | F15: =VLOOKUP(A15,PRIXINGRE,3,0) -> 5 | G15: 0.006 | H15: Litre | I15: 0 | J15: 0.006 | K15: =IFERROR((J15*F15),"") -> 0.03 | M15: =IFERROR((ROUNDUP((J15*$H$3),2)),"") -> 0.02 | N15: =IFERROR((M15*F15),"") -> 0.1 | P15: METRO
A16: Carottes | F16: 5 | G16: 0.05 | H16: kg | I16: 0.2 | J16: 0.06 | K16: =IFERROR((J16*F16),"") -> 0.3 | M16: 0.12 | N16: 0.6 | P16: JOSA
A17: épice Thai 240g | F17: 5 | G17: 0.001 | H17: kg | I17: 0 | J17: 0.001 | K17: =IFERROR((J17*F17),"") -> 0.005 | M17: 0.01 | N17: 0.05 | P17: METRO
A18: poulet en filet surgelé DAVIGEL | F18: 5 | G18: 0.04 | H18: kg | I18: 0 | J18: 0.04 | K18: 0.2 | M18: 0.08 | N18: 0.4 | P18: DAVIGEL
A19: Coriandre fraiche | F19: 5 | G19: 0.025 | H19: botte | I19: 0.2 | J19: 0.03 | K19: =IFERROR((J19*F19),"") -> 0.15 | M19: 0.06 | N19: 0.3 | P19: JOSA
F20: 0 | P20: 0
F21: 0 | P21: 0
F22: 0 | P22: 0
F23: 0 | P23: 0
F24: 0 | P24: 0
F25: 0 | P25: 0
F26: 0 | P26: 0
F27: 0 | P27: 0
F28: 0 | P28: 0
F29: 0 | P29: 0
B30: Emballage ToGo | E30: Qte | F30: price | G30: prix U | H30: Emballage in | M30: Qte | N30: price | O30: prix U
A31: 1 | B31: #pack PASTA MEDIUM ToGo | E31: 1 | F31: =VLOOKUP(B31,PRIXE,2,0) -> 0.01 | G31: =E31*F31 -> 0.01 | H31: 3 | I31: #pack PASTA MEDIUM Sp | M31: 1 | N31: =VLOOKUP(I31,PRIXE,2,0) -> 0.01 | O31: =M31*N31 -> 0.01
A32: 2 | E32: 1 | F32: =VLOOKUP(B32,PRIXE,2,0) -> 0 | G32: =E32*F32 -> 0 | H32: 4 | M32: 1 | N32: =VLOOKUP(I32,PRIXE,2,0) -> 0 | O32: =M32*N32 -> 0
A33: Etape de la recette
A34: 1 | B34: Faire bouillir une grande quantité d'eau salée | G34: 11
A35: 2 | B35: Cuire les pâtes 14 minutes | G35: 12
A36: 3 | B36: Egouttez-les et les rincer à l'eau chaude | G36: 13
A37: 4 | B37: Ajoutez 1 cas d'huile d'olive | G37: 14
A38: 5 | B38: Cuire les carottes avec des épices thaï au four à mico-ondes | G38: 15
A39: 6 | B39: Coupez le poulet en cubes | G39: 16
A40: 7 | B40: Assaisonnez d'épices pour poulet | G40: CALORIES (kcal) | J40: =#REF! ->  | L40: POUR UNE PORTION
A41: 8 | B41: Garnir de coriandre(ou de persil) | G41: Protéines (g) | K41: =J41*4 -> 0 | L41: Fibres (g) | O41: =N41*2 -> 0
A42: 9 | G42: Lipides (g) | K42: =J42*9 -> 0 | L42: AGSaturés (g)
A43: 10 | G43: Glucides (g) | K43: =J43*4 -> 0
A44: Forme & Dimension :
A46: Cuisson & dressage :
A50: Liste des allergènes :
B53: COMMANDE | D53: pour | F53: =H3 -> 2 | G53: =CONCATENATE(A1, F1,G1) -> PASTA MEDIUM : Fusilli Poulet
B55: qte | C55: unité | D55: liste | I55: price | M55: Total
B56: =M14 -> 0.12 | C56: =H14 -> kg | D56: =A14 -> Pate fusilli | I56: =F14 -> 5 | M56: =N14 -> 0.6
B57: 0.02 | C57: Litre | D57: =A15 -> Huile d'olive | I57: =F15 -> 5 | M57: 0.1
B58: 0.12 | C58: kg | D58: Carottes | I58: 5 | M58: 0.6
B59: 0.01 | C59: kg | D59: épice Thai 240g | I59: 5 | M59: 0.05
B60: 0.08 | C60: kg | D60: poulet en filet surgelé DAVIGEL | I60: 5 | M60: 0.4
B61: 0.06 | C61: botte | D61: Coriandre fraiche | I61: 5 | M61: 0.3
D62: 0 | I62: 0
D63: 0 | I63: 0
D64: 0 | I64: 0
D65: 0 | I65: 0
D66: 0 | I66: 0
D67: 0 | I67: 0
D68: 0 | I68: 0
D69: 0 | I69: 0
D70: 0 | I70: 0
D71: =B29 -> 0 | I71: 0
M72: =SUM(M56:M71) -> 2.05

Sheet 02b PASTA mozza (grd)
A1: PASTA GRANDE | F1: : | G1: Liguine Mozzarella | N1: 330-340g
A3: RECETTE PREVUE POUR : | C3: 1 | E3: Vous la dupliquez pour : | H3: 2
A5: Prix de revient unitaire : | C5: =K12 -> 3.4964 | F5: marge | G5: coef | H5: tva | I5: ht | K5: ttc
K6: 5.8
A7: avec emballage : | C7: =C5+C9 -> 3.5064 | D7: =C5+C11 -> 3.5064 | F7: =I7-C7 -> 1.965298113 | G7: =I7/C7 -> 1.560488853 | H7: ES 6 | I7: =K6/1.06 -> 5.471698113 | J7: ToGo
K8: 5.8
A9: Emballage ToGo : | C9: =G31+G32 -> 0.01 | D9: =C9/C7 -> 0.002851927903 | F9: =I9-D7 -> 1.672171429 | G9: =I9/D7 -> 1.476891236 | H9: ES 12 | I9: =K8/1.12 -> 5.178571429 | J9: Sp
A11: Emballage Sp : | C11: =O31+O32 -> 0.01 | D11: =C11/D7 -> 0.002851927903 | F11: Prix kg/l / unité | G11: Poids brut recette | H11: Unité | I11: % perte | J11: brut 1 part | K11: Cout 1 part | L11: prix de revient | M11: brut à faire | N11: prix de revient
A12: 0 | B12: Produits | F12: ht | K12: =SUM(K14:K29) -> 3.4964 | L12: =K12*H3 -> 6.9928 | N12: =SUM(N14:O29) -> 7.05 | P12: FOURNISSEUR
A14: Pate linguini | F14: =VLOOKUP(A14,PRIXINGRE,3,0) -> 5 | G14: 0.085 | H14: =IFERROR(VLOOKUP(A14,UNITINGRE,2,0),"") -> kg | I14: =IFERROR(VLOOKUP(A14,UNITINGRE,10,0),"") -> 0 | J14: =IFERROR((G14/$C$3)+(((G14/$C$3)*I14)),"") -> 0.085 | K14: =IFERROR((J14*F14),"") -> 0.425 | M14: =IFERROR((ROUNDUP((J14*$H$3),2)),"") -> 0.17 | N14: =IFERROR((M14*F14),"") -> 0.85 | P14: =VLOOKUP(A14,GDEBASE,8,0) -> METRO
A15: Pesto verde | F15: 5 | G15: 0.026 | H15: kg | I15: 0.03 | J15: 0.02678 | K15: =IFERROR((J15*F15),"") -> 0.1339 | M15: =IFERROR((ROUNDUP((J15*$H$3),2)),"") -> 0.06 | N15: =IFERROR((M15*F15),"") -> 0.3 | P15: VT FOOD
A16: Mozzarella galbani (pain de 1kg) | F16: 5 | G16: 0.065 | H16: kg | I16: 0 | J16: 0.065 | K16: =IFERROR((J16*F16),"") -> 0.325 | M16: 0.13 | N16: 0.65 | P16: LOBET
A17: Olives noires dénoyautées | F17: 5 | G17: 0.015 | H17: kg | I17: 0.5 | J17: 0.0225 | K17: =IFERROR((J17*F17),"") -> 0.1125 | M17: 0.05 | N17: 0.25 | P17: METRO
A18: Basilic frais (1 brin = 0,005) | F18: 5 | G18: 0.5 | H18: unité | I18: 0 | J18: 0.5 | K18: 2.5 | M18: 1 | N18: 5 | P18: JOSA
F19: 0 | K19: =IFERROR((J19*F19),"") ->  | P19: 0
F20: 0 | P20: 0
F21: 0 | P21: 0
F22: 0 | P22: 0
F23: 0 | P23: 0
F24: 0 | P24: 0
F25: 0 | P25: 0
F26: 0 | P26: 0
F27: 0 | P27: 0
F28: 0 | P28: 0
F29: 0 | P29: 0
B30: Emballage out | E30: Qte | F30: price | G30: prix U | H30: Emballage in | M30: Qte | N30: price | O30: prix U
A31: 1 | B31: #pack PASTA GRANDE ToGo | E31: 1 | F31: =VLOOKUP(B31,PRIXE,2,0) -> 0.01 | G31: =E31*F31 -> 0.01 | H31: 3 | I31: #pack PASTA GRANDE Sp | M31: 1 | N31: =VLOOKUP(I31,PRIXE,2,0) -> 0.01 | O31: =M31*N31 -> 0.01
A32: 2 | B32: 0 | E32: 1 | F32: =VLOOKUP(B32,PRIXE,2,0) -> 0 | G32: =E32*F32 -> 0 | H32: 4 | I32: 0 | N32: =VLOOKUP(I32,PRIXE,2,0) -> 0 | O32: =M32*N32 -> 0
A33: Etape de la recette
A34: 1 | B34: Faire bouillir une grande quantité d'eau salée | G34: 11
A35: 2 | B35: Cuire les pâtes | G35: 12
A36: 3 | B36: Egouttez-les et les rincer à l'eau chaude | G36: 13
A37: 4 | B37: Coupez la mozzarella en cubes | G37: 14
A38: 5 | B38: La mélanger dans un saladier avec 4 olives noires | G38: 15
A39: 6 | B39: Ajoutez 1 càc d'huile d'olive | G39: 16
A40: 7 | B40: Salez et poivrez | G40: Lipides (g) | J40: =K41+K42+K43+O41 -> 0
A41: 8 | B41: Parsemez de basilic | G41: Protéines (g) | K41: =J41*4 -> 0 | L41: Fibres (g) | O41: =N41*2 -> 0
A42: 9 | G42: Lipides (g) | K42: =J42*9 -> 0 | L42: AGSaturés (g)
A43: 10 | G43: Glucides (g) | K43: =J43*4 -> 0
A44: Forme & Dimension :
A46: Cuisson & dressage :
A50: Liste des allergènes :
B53: COMMANDE | D53: pour | F53: =H3 -> 2 | G53: =CONCATENATE(A1, F1,G1) -> PASTA GRANDE : Liguine Mozzarella
B55: qte | C55: unité | D55: liste | I55: price | M55: Total
B56: =M14 -> 0.17 | C56: =H14 -> kg | D56: =A14 -> Pate linguini | I56: =F14 -> 5 | M56: =N14 -> 0.85
B57: 0.06 | C57: kg | D57: =A15 -> Pesto verde | I57: =F15 -> 5 | M57: 0.3
B58: 0.13 | C58: kg | D58: Mozzarella galbani (pain de 1kg) | I58: 5 | M58: 0.65
B59: 0.05 | C59: kg | D59: Olives noires dénoyautées | I59: 5 | M59: 0.25
B60: 1 | C60: unité | D60: Basilic frais (1 brin = 0,005) | I60: 5 | M60: 5
D61: 0 | I61: 0
D62: 0 | I62: 0
D63: 0 | I63: 0
D64: 0 | I64: 0
D65: 0 | I65: 0
D66: 0 | I66: 0
D67: 0 | I67: 0
D68: 0 | I68: 0
D69: 0 | I69: 0
D70: 0 | I70: 0
D71: =B29 -> 0 | I71: 0
M72: =SUM(M56:M71) -> 7.05

Sheet 02b PASTA mozza (moyen)
A1: PASTA MEDIUM | F1: : | G1: Liguine Mozzarella | N1: 250g
A3: RECETTE PREVUE POUR : | C3: 1 | E3: Vous la dupliquez pour : | H3: 2
A5: Prix de revient unitaire : | C5: =K12 -> 3.2074 | F5: marge | G5: coef | H5: tva | I5: ht | K5: ttc
K6: 4.5
A7: avec emballage : | C7: =C5+C9 -> 3.2174 | D7: =C5+C11 -> 3.2174 | F7: =I7-C7 -> 1.027883019 | G7: =I7/C7 -> 1.319476291 | H7: ES 6 | I7: =K6/1.06 -> 4.245283019 | J7: ToGo
K8: 4.5
A9: Emballage ToGo : | C9: =G31+G32 -> 0.01 | D9: =C9/C7 -> 0.003108099708 | F9: =I9-D7 -> 0.8004571429 | G9: =I9/D7 -> 1.248790061 | H9: ES 12 | I9: =K8/1.12 -> 4.017857143 | J9: Sp
A11: Emballage Sp : | C11: =O31+O32 -> 0.01 | D11: =C11/D7 -> 0.003108099708 | F11: Prix kg/l / unité | G11: Poids brut recette | H11: Unité | I11: % perte | J11: brut 1 part | K11: Cout 1 part | L11: prix de revient | M11: brut à faire | N11: prix de revient
A12: 0 | B12: Produits | F12: ht | K12: =SUM(K14:K29) -> 3.2074 | L12: =K12*H3 -> 6.4148 | N12: =SUM(N14:O29) -> 6.45 | P12: FOURNISSEUR
A14: Pate linguini | F14: =VLOOKUP(A14,PRIXINGRE,3,0) -> 5 | G14: 0.06 | H14: =IFERROR(VLOOKUP(A14,UNITINGRE,2,0),"") -> kg | I14: =IFERROR(VLOOKUP(A14,UNITINGRE,10,0),"") -> 0 | J14: =IFERROR((G14/$C$3)+(((G14/$C$3)*I14)),"") -> 0.06 | K14: =IFERROR((J14*F14),"") -> 0.3 | M14: =IFERROR((ROUNDUP((J14*$H$3),2)),"") -> 0.12 | N14: =IFERROR((M14*F14),"") -> 0.6 | P14: =VLOOKUP(A14,GDEBASE,8,0) -> METRO
A15: Pesto verde | F15: 5 | G15: 0.016 | H15: kg | I15: 0.03 | J15: 0.01648 | K15: =IFERROR((J15*F15),"") -> 0.0824 | M15: =IFERROR((ROUNDUP((J15*$H$3),2)),"") -> 0.04 | N15: =IFERROR((M15*F15),"") -> 0.2 | P15: VT FOOD
A16: Mozzarella galbani (pain de 1kg) | F16: 5 | G16: 0.05 | H16: kg | I16: 0 | J16: 0.05 | K16: =IFERROR((J16*F16),"") -> 0.25 | M16: 0.1 | N16: 0.5 | P16: LOBET
A17: Olives noires dénoyautées | F17: 5 | G17: 0.01 | H17: kg | I17: 0.5 | J17: 0.015 | K17: =IFERROR((J17*F17),"") -> 0.075 | M17: 0.03 | N17: 0.15 | P17: METRO
A18: Basilic frais (1 brin = 0,005) | F18: 5 | G18: 0.5 | H18: unité | I18: 0 | J18: 0.5 | K18: 2.5 | M18: 1 | N18: 5 | P18: JOSA
F19: 0 | K19: =IFERROR((J19*F19),"") ->  | P19: 0
F20: 0 | P20: 0
F21: 0 | P21: 0
F22: 0 | P22: 0
F23: 0 | P23: 0
F24: 0 | P24: 0
F25: 0 | P25: 0
F26: 0 | P26: 0
F27: 0 | P27: 0
F28: 0 | P28: 0
F29: 0 | P29: 0
B30: Emballage ToGo | E30: Qte | F30: price | G30: prix U | H30: Emballage Sp | M30: Qte | N30: price | O30: prix U
A31: 1 | B31: #pack PASTA MEDIUM ToGo | E31: 1 | F31: =VLOOKUP(B31,PRIXE,2,0) -> 0.01 | G31: =E31*F31 -> 0.01 | H31: 3 | I31: #pack PASTA MEDIUM Sp | M31: 1 | N31: =VLOOKUP(I31,PRIXE,2,0) -> 0.01 | O31: =M31*N31 -> 0.01
A32: 2 | E32: 1 | F32: =VLOOKUP(B32,PRIXE,2,0) -> 0 | G32: =E32*F32 -> 0 | H32: 4 | M32: 1 | N32: =VLOOKUP(I32,PRIXE,2,0) -> 0 | O32: =M32*N32 -> 0
A33: Etape de la recette
A34: 1 | B34: Faire bouillir une grande quantité d'eau salée | G34: 11
A35: 2 | B35: Cuire les pâtes | G35: 12
A36: 3 | B36: Egouttez-les et les rincer à l'eau chaude | G36: 13
A37: 4 | B37: Coupez la mozzarella en cubes | G37: 14
A38: 5 | B38: La mélanger dans un saladier avec 2 olives noires | G38: 15
A39: 6 | B39: Ajoutez 1 càc d'huile d'olive | G39: 16
A40: 7 | B40: Salez et poivrez | G40: Lipides (g) | J40: =K41+K42+K43+O41 -> 0
A41: 8 | B41: Parsemez de basilic | G41: Protéines (g) | K41: =J41*4 -> 0 | L41: Fibres (g) | O41: =N41*2 -> 0
A42: 9 | G42: Lipides (g) | K42: =J42*9 -> 0 | L42: AGSaturés (g)
A43: 10 | G43: Glucides (g) | K43: =J43*4 -> 0
A44: Forme & Dimension :
A46: Cuisson & dressage :
A50: Liste des allergènes :
B53: COMMANDE | D53: pour | F53: =H3 -> 2 | G53: =CONCATENATE(A1, F1,G1) -> PASTA MEDIUM : Liguine Mozzarella
B55: qte | C55: unité | D55: liste | I55: price | M55: Total
B56: =M14 -> 0.12 | C56: =H14 -> kg | D56: =A14 -> Pate linguini | I56: =F14 -> 5 | M56: =N14 -> 0.6
B57: 0.04 | C57: kg | D57: =A15 -> Pesto verde | I57: =F15 -> 5 | M57: 0.2
B58: 0.1 | C58: kg | D58: Mozzarella galbani (pain de 1kg) | I58: 5 | M58: 0.5
B59: 0.03 | C59: kg | D59: Olives noires dénoyautées | I59: 5 | M59: 0.15
B60: 1 | C60: unité | D60: Basilic frais (1 brin = 0,005) | I60: 5 | M60: 5
D61: 0 | I61: 0
D62: 0 | I62: 0
D63: 0 | I63: 0
D64: 0 | I64: 0
D65: 0 | I65: 0
D66: 0 | I66: 0
D67: 0 | I67: 0
D68: 0 | I68: 0
D69: 0 | I69: 0
D70: 0 | I70: 0
D71: =B29 -> 0 | I71: 0
M72: =SUM(M56:M71) -> 6.45

Sheet 02c PASTA toscan (grd)
A1: PASTA GRANDE | F1: : | G1: penne toscan | N1: 330-340g
A3: RECETTE PREVUE POUR : | C3: 1 | E3: Vous la dupliquez pour : | H3: 2
A5: Prix de revient unitaire : | C5: =K12 -> 6.257 | F5: marge | G5: coef | H5: tva | I5: ht | K5: ttc
K6: 5.8
A7: avec emballage : | C7: =C5+C9 -> 6.267 | D7: =C5+C11 -> 6.267 | F7: =I7-C7 -> -0.7953018868 | G7: =I7/C7 -> 0.8730968746 | H7: ES 6 | I7: =K6/1.06 -> 5.471698113 | J7: ToGo
K8: 5.8
A9: Emballage ToGo : | C9: =G31+G32 -> 0.01 | D9: =C9/C7 -> 0.001595659805 | F9: =I9-D7 -> -1.088428571 | G9: =I9/D7 -> 0.8263238278 | H9: ES 12 | I9: =K8/1.12 -> 5.178571429 | J9: Sp
A11: Emballage Sp : | C11: =O31+O32 -> 0.01 | D11: =C11/D7 -> 0.001595659805 | F11: Prix kg/l / unité | G11: Poids brut recette | H11: Unité | I11: % perte | J11: brut 1 part | K11: Cout 1 part | L11: prix de revient | M11: brut à faire | N11: prix de revient
A12: 0 | B12: Produits | F12: ht | K12: =SUM(K14:K29) -> 6.257 | L12: =K12*H3 -> 12.514 | N12: =SUM(N14:O29) -> 12.6 | P12: FOURNISSEUR
A14: Pate penne | F14: =VLOOKUP(A14,PRIXINGRE,3,0) -> 5 | G14: 0.15 | H14: =IFERROR(VLOOKUP(A14,UNITINGRE,2,0),"") -> kg | I14: =IFERROR(VLOOKUP(A14,UNITINGRE,10,0),"") -> 0 | J14: =IFERROR((G14/$C$3)+(((G14/$C$3)*I14)),"") -> 0.15 | K14: =IFERROR((J14*F14),"") -> 0.75 | M14: =IFERROR((ROUNDUP((J14*$H$3),2)),"") -> 0.3 | N14: =IFERROR((M14*F14),"") -> 1.5 | P14: =VLOOKUP(A14,GDEBASE,8,0) -> METRO
A15: Pesto rosso | F15: 5 | G15: 0.03 | H15: kg | I15: 0.03 | J15: 0.0309 | K15: =IFERROR((J15*F15),"") -> 0.1545 | M15: =IFERROR((ROUNDUP((J15*$H$3),2)),"") -> 0.07 | N15: =IFERROR((M15*F15),"") -> 0.35 | P15: METRO
A16: Courgettes | F16: 5 | G16: 0.025 | H16: kg | I16: 0.1 | J16: 0.0275 | K16: =IFERROR((J16*F16),"") -> 0.1375 | M16: 0.06 | N16: 0.3 | P16: JOSA
A17: Aubergines (pour info 1 auberg=400g) | F17: 5 | G17: 0.025 | H17: kg | I17: 0.2 | J17: 0.03 | K17: =IFERROR((J17*F17),"") -> 0.15 | M17: 0.06 | N17: 0.3 | P17: JOSA
A18: Tomates confites VT FOOD | F18: 5 | G18: 0.01 | H18: kg | I18: 0.3 | J18: 0.013 | K18: 0.065 | M18: 0.03 | N18: 0.15 | P18: VT FOOD
A19: Basilic frais (1 brin = 0,005) | F19: 5 | G19: 1 | H19: unité | I19: 0 | J19: 1 | K19: =IFERROR((J19*F19),"") -> 5 | M19: 2 | N19: 10 | P19: JOSA
F20: 0 | P20: 0
F21: 0 | P21: 0
F22: 0 | P22: 0
F23: 0 | P23: 0
F24: 0 | P24: 0
F25: 0 | P25: 0
F26: 0 | P26: 0
F27: 0 | P27: 0
F28: 0 | P28: 0
F29: 0 | P29: 0
B30: Emballage out | E30: Qte | F30: price | G30: prix U | H30: Emballage in | M30: Qte | N30: price | O30: prix U
A31: 1 | B31: #pack PASTA GRANDE ToGo | E31: 1 | F31: =VLOOKUP(B31,PRIXE,2,0) -> 0.01 | G31: =E31*F31 -> 0.01 | H31: 3 | I31: #pack PASTA GRANDE Sp | M31: 1 | N31: =VLOOKUP(I31,PRIXE,2,0) -> 0.01 | O31: =M31*N31 -> 0.01
A32: 2 | B32: 0 | E32: 1 | F32: =VLOOKUP(B32,PRIXE,2,0) -> 0 | G32: =E32*F32 -> 0 | H32: 4 | I32: 0 | N32: =VLOOKUP(I32,PRIXE,2,0) -> 0 | O32: =M32*N32 -> 0
A33: Etape de la recette
A34: 1 | B34: Faire bouillir une grande quantité d'eau salée | G34: 11
A35: 2 | B35: Cuire les pâtes | G35: 12
A36: 3 | B36: Egouttez-les et les rincer à l'eau chaude | G36: 13
A37: 4 | B37: Ajoutez 1 càs rase de pesto rosso | G37: 14
A38: 5 | B38: Coupez les courgettes et les aubergines cuites vapeur en tranches | G38: 15
A39: 6 | B39: Ajoutez-les | G39: 16
A40: 7 | B40: Garnir de 2 tomates confites | G40: CALORIES (kcal) | J40: =K41+K42+K43+O41 -> 0
A41: 8 | B41: Parsemez de basilic | G41: Protéines (g) | K41: =J41*4 -> 0 | L41: Fibres (g) | O41: =N41*2 -> 0
A42: 9 | G42: Lipides (g) | K42: =J42*9 -> 0 | L42: AGSaturés (g)
A43: 10 | G43: Glucides (g) | K43: =J43*4 -> 0
A44: Forme & Dimension :
A46: Cuisson & dressage :
A50: Liste des allergènes :
B53: COMMANDE | D53: pour | F53: =H3 -> 2 | G53: =CONCATENATE(A1, F1,G1) -> PASTA GRANDE : penne toscan
B55: qte | C55: unité | D55: liste | I55: price | M55: Total
B56: =M14 -> 0.3 | C56: =H14 -> kg | D56: =A14 -> Pate penne | I56: =F14 -> 5 | M56: =N14 -> 1.5
B57: 0.07 | C57: kg | D57: =A15 -> Pesto rosso | I57: =F15 -> 5 | M57: 0.35
B58: 0.06 | C58: kg | D58: Courgettes | I58: 5 | M58: 0.3
B59: 0.06 | C59: kg | D59: Aubergines (pour info 1 auberg=400g) | I59: 5 | M59: 0.3
B60: 0.03 | C60: kg | D60: Tomates confites VT FOOD | I60: 5 | M60: 0.15
B61: 2 | C61: unité | D61: Basilic frais (1 brin = 0,005) | I61: 5 | M61: 10
D62: 0 | I62: 0
D63: 0 | I63: 0
D64: 0 | I64: 0
D65: 0 | I65: 0
D66: 0 | I66: 0
D67: 0 | I67: 0
D68: 0 | I68: 0
D69: 0 | I69: 0
D70: 0 | I70: 0
D71: =B29 -> 0 | I71: 0
M72: =SUM(M56:M71) -> 12.6

Sheet 02c PASTA toscan (moyen)
A1: PASTA MEDIUM | F1: : | G1: penne toscan | N1: 250g
A3: RECETTE PREVUE POUR : | C3: 1 | E3: Vous la dupliquez pour : | H3: 2
A5: Prix de revient unitaire : | C5: =K12 -> 5.86225 | F5: marge | G5: coef | H5: tva | I5: ht | K5: ttc
K6: 4.5
A7: avec emballage : | C7: =C5+C9 -> 5.87225 | D7: =C5+C11 -> 5.87225 | F7: =I7-C7 -> -1.626966981 | G7: =I7/C7 -> 0.7229397622 | H7: ES 6 | I7: =K6/1.06 -> 4.245283019 | J7: ToGo
K8: 4.5
A9: Emballage ToGo : | C9: =G31+G32 -> 0.01 | D9: =C9/C7 -> 0.001702924773 | F9: =I9-D7 -> -1.854392857 | G9: =I9/D7 -> 0.6842108464 | H9: ES 12 | I9: =K8/1.12 -> 4.017857143 | J9: Sp
A11: Emballage Sp : | C11: =O31+O32 -> 0.01 | D11: =C11/D7 -> 0.001702924773 | F11: Prix kg/l / unité | G11: Poids brut recette | H11: Unité | I11: % perte | J11: brut 1 part | K11: Cout 1 part | L11: prix de revient | M11: brut à faire | N11: prix de revient
A12: 0 | B12: Produits | F12: ht | K12: =SUM(K14:K29) -> 5.86225 | L12: =K12*H3 -> 11.7245 | N12: =SUM(N14:O29) -> 11.85 | P12: FOURNISSEUR
A14: Pate penne | F14: =VLOOKUP(A14,PRIXINGRE,3,0) -> 5 | G14: 0.085 | H14: =IFERROR(VLOOKUP(A14,UNITINGRE,2,0),"") -> kg | I14: =IFERROR(VLOOKUP(A14,UNITINGRE,10,0),"") -> 0 | J14: =IFERROR((G14/$C$3)+(((G14/$C$3)*I14)),"") -> 0.085 | K14: =IFERROR((J14*F14),"") -> 0.425 | M14: =IFERROR((ROUNDUP((J14*$H$3),2)),"") -> 0.17 | N14: =IFERROR((M14*F14),"") -> 0.85 | P14: =VLOOKUP(A14,GDEBASE,8,0) -> METRO
A15: Pesto rosso | F15: 5 | G15: 0.015 | H15: kg | I15: 0.03 | J15: 0.01545 | K15: =IFERROR((J15*F15),"") -> 0.07725 | M15: =IFERROR((ROUNDUP((J15*$H$3),2)),"") -> 0.04 | N15: =IFERROR((M15*F15),"") -> 0.2 | P15: METRO
A16: Courgettes | F16: 5 | G16: 0.02 | H16: kg | I16: 0.1 | J16: 0.022 | K16: =IFERROR((J16*F16),"") -> 0.11 | M16: 0.05 | N16: 0.25 | P16: JOSA
A17: Aubergines (pour info 1 auberg=400g) | F17: 5 | G17: 0.02 | H17: kg | I17: 0.2 | J17: 0.024 | K17: =IFERROR((J17*F17),"") -> 0.12 | M17: 0.05 | N17: 0.25 | P17: JOSA
A18: Tomates confites VT FOOD | F18: 5 | G18: 0.02 | H18: kg | I18: 0.3 | J18: 0.026 | K18: 0.13 | M18: 0.06 | N18: 0.3 | P18: VT FOOD
A19: Basilic frais (1 brin = 0,005) | F19: 5 | G19: 1 | H19: unité | I19: 0 | J19: 1 | K19: =IFERROR((J19*F19),"") -> 5 | M19: 2 | N19: 10 | P19: JOSA
F20: 0 | P20: 0
F21: 0 | P21: 0
F22: 0 | P22: 0
F23: 0 | P23: 0
F24: 0 | P24: 0
F25: 0 | P25: 0
F26: 0 | P26: 0
F27: 0 | P27: 0
F28: 0 | P28: 0
F29: 0 | P29: 0
B30: Emballage ToGo | E30: Qte | F30: price | G30: prix U | H30: Emballage Sp | M30: Qte | N30: price | O30: prix U
A31: 1 | B31: #pack PASTA MEDIUM ToGo | E31: 1 | F31: =VLOOKUP(B31,PRIXE,2,0) -> 0.01 | G31: =E31*F31 -> 0.01 | H31: 3 | I31: #pack PASTA MEDIUM Sp | M31: 1 | N31: =VLOOKUP(I31,PRIXE,2,0) -> 0.01 | O31: =M31*N31 -> 0.01
A32: 2 | E32: 1 | F32: =VLOOKUP(B32,PRIXE,2,0) -> 0 | G32: =E32*F32 -> 0 | H32: 4 | M32: 1 | N32: =VLOOKUP(I32,PRIXE,2,0) -> 0 | O32: =M32*N32 -> 0
A33: Etape de la recette
A34: 1 | B34: Faire bouillir une grande quantité d'eau salée | G34: 11
A35: 2 | B35: Cuire les pâtes | G35: 12
A36: 3 | B36: Egouttez-les et le srincer à l'eau chaude | G36: 13
A37: 4 | B37: Ajoutez 1/2 càs rase de pesto rosso | G37: 14
A38: 5 | B38: Coupez les courgettes et les aubergines cuites vapeur en tranches | G38: 15
A39: 6 | B39: Ajoutez-les | G39: 16
A40: 7 | B40: Garnir de 2 tomates confites | G40: CALORIES (kcal) | J40: =K41+K42+K43+O41 -> 0
A41: 8 | B41: Parsemez de basilic | G41: Protéines (g) | K41: =J41*4 -> 0 | L41: Fibres (g) | O41: =N41*2 -> 0
A42: 9 | G42: Lipides (g) | K42: =J42*9 -> 0 | L42: AGSaturés (g)
A43: 10 | G43: Glucides (g) | K43: =J43*4 -> 0
A44: Forme & Dimension :
A46: Cuisson & dressage :
A50: Liste des allergènes :
B53: COMMANDE | D53: pour | F53: =H3 -> 2 | G53: =CONCATENATE(A1, F1,G1) -> PASTA MEDIUM : penne toscan
B55: qte | C55: unité | D55: liste | I55: price | M55: Total
B56: =M14 -> 0.17 | C56: =H14 -> kg | D56: =A14 -> Pate penne | I56: =F14 -> 5 | M56: =N14 -> 0.85
B57: 0.04 | C57: kg | D57: =A15 -> Pesto rosso | I57: =F15 -> 5 | M57: 0.2
B58: 0.05 | C58: kg | D58: Courgettes | I58: 5 | M58: 0.25
B59: 0.05 | C59: kg | D59: Aubergines (pour info 1 auberg=400g) | I59: 5 | M59: 0.25
B60: 0.06 | C60: kg | D60: Tomates confites VT FOOD | I60: 5 | M60: 0.3
B61: 2 | C61: unité | D61: Basilic frais (1 brin = 0,005) | I61: 5 | M61: 10
D62: 0 | I62: 0
D63: 0 | I63: 0
D64: 0 | I64: 0
D65: 0 | I65: 0
D66: 0 | I66: 0
D67: 0 | I67: 0
D68: 0 | I68: 0
D69: 0 | I69: 0
D70: 0 | I70: 0
D71: =B29 -> 0 | I71: 0
M72: =SUM(M56:M71) -> 11.85

Sheet 03 MINI TOMATE
A1: Salade | F1: : | G1: MINI TOMATE | N1: 150 grs
A3: RECETTE PREVUE POUR : | C3: 1 | E3: Vous la dupliquez pour : | H3: 2
A5: Prix de revient unitaire : | C5: =K12 -> 0.5 | F5: marge | G5: coef | H5: tva | I5: ht | K5: ttc
K6: 3.2
A7: avec emballage : | C7: =C5+C9 -> 0.51 | D7: =C5+C11 -> 0.51 | F7: =I7-C7 -> 2.508867925 | G7: =I7/C7 -> 5.919348872 | H7: ES 6 | I7: =K6/1.06 -> 3.018867925 | J7: ToGo
K8: 3.2
A9: Emballage ToGo : | C9: =G31+G32 -> 0.01 | D9: =C9/C7 -> 0.01960784314 | F9: =I9-D7 -> 2.347142857 | G9: =I9/D7 -> 5.602240896 | H9: ES 12 | I9: =K8/1.12 -> 2.857142857 | J9: Sp
A11: Emballage Sp : | C11: =O31+O32 -> 0.01 | D11: =C11/D7 -> 0.01960784314 | F11: Prix kg/l / unité | G11: Poids brut recette | H11: Unité | I11: % perte | J11: brut 1 part | K11: Cout 1 part | L11: prix de revient | M11: brut à faire | N11: prix de revient
A12: 0 | B12: Produits | F12: ht | K12: =SUM(K14:K29) -> 0.5 | L12: =K12*H3 -> 1 | N12: =SUM(N14:O29) -> 1 | P12: FOURNISSEUR
A14: Tomates mini assortiments | F14: =VLOOKUP(A14,PRIXINGRE,3,0) -> 5 | G14: 0.13 | H14: =IFERROR(VLOOKUP(A14,UNITINGRE,2,0),"") -> kg | I14: =IFERROR(VLOOKUP(A14,UNITINGRE,10,0),"") ->  | J14: =IFERROR((G14/$C$3)+(((G14/$C$3)*I14)),"") ->  | K14: =IFERROR((J14*F14),"") ->  | M14: =IFERROR((ROUNDUP((J14*$H$3),2)),"") ->  | N14: =IFERROR((M14*F14),"") ->  | P14: =VLOOKUP(A14,GDEBASE,8,0) -> METRO
A15: Basilic frais (1bte = 0,040) | F15: 5 | G15: 0.1 | H15: Botte | I15: 0 | J15: 0.1 | K15: =IFERROR((J15*F15),"") -> 0.5 | M15: =IFERROR((ROUNDUP((J15*$H$3),2)),"") -> 0.2 | N15: =IFERROR((M15*F15),"") -> 1 | P15: JOSA
F16: 0 | K16: =IFERROR((J16*F16),"") ->  | P16: 0
F17: 0 | K17: =IFERROR((J17*F17),"") ->  | P17: 0
F18: 0 | P18: 0
F19: 0 | K19: =IFERROR((J19*F19),"") ->  | P19: 0
F20: 0 | P20: 0
F21: 0 | P21: 0
F22: 0 | P22: 0
F23: 0 | P23: 0
F24: 0 | P24: 0
F25: 0 | P25: 0
F26: 0 | P26: 0
F27: 0 | P27: 0
F28: 0 | P28: 0
F29: 0 | P29: 0
B30: Emballage ToGo | E30: Qte | F30: price | G30: prix U | H30: Emballage | M30: Qte | N30: price | O30: prix U
A31: 1 | B31: #pack YAOURT | E31: 1 | F31: =VLOOKUP(B31,PRIXE,2,0) -> 0.01 | G31: =E31*F31 -> 0.01 | H31: 3 | I31: #pack YAOURT | M31: 1 | N31: =VLOOKUP(I31,PRIXE,2,0) -> 0.01 | O31: =M31*N31 -> 0.01
A32: 2 | E32: 1 | F32: =VLOOKUP(B32,PRIXE,2,0) -> 0 | G32: =E32*F32 -> 0 | H32: 4 | M32: 1 | N32: =VLOOKUP(I32,PRIXE,2,0) -> 0 | O32: =M32*N32 -> 0
A33: Etape de la recette
A34: 1 | B34: Bien remplir le saladier d'un mélange d'iceberg et de trévise | G34: 11
A35: 2 | B35: Ajoutez le mélange fêta | G35: 12
A36: 3 | B36: Coupez 5 tranches de concombre | G36: 13
A37: 4 | B37: Ajoutez 5 tomates cerises | G37: 14
A38: 5 | B38: Râper la courgette et ajoutez-la | G38: 15
A39: 6 | G39: 16
A40: 7 | G40: CALORIES (kcal)
A41: 8 | G41: Protéines (g) | K41: =J41*4 -> 0 | L41: Fibres (g) | O41: =N41*2 -> 0
A42: 9 | G42: Lipides (g) | K42: =J42*9 -> 0 | L42: AGSaturés (g)
A43: 10 | G43: Glucides (g) | K43: =J43*4 -> 0
A44: Forme & Dimension :
A46: Cuisson & dressage :
A50: Liste des allergènes :
B53: COMMANDE | D53: pour | F53: =H3 -> 2 | G53: =CONCATENATE(A1, F1,G1) -> Salade : MINI TOMATE
B55: qte | C55: unité | D55: liste | I55: price | M55: Total
B56: =M14 ->  | C56: =H14 -> kg | D56: =A14 -> Tomates mini assortiments | I56: =F14 -> 5 | M56: =N14 -> 
B57: 0.2 | C57: Botte | D57: =A15 -> Basilic frais (1bte = 0,040) | I57: =F15 -> 5 | M57: 1
D58: 0 | I58: 0
D59: 0 | I59: 0
D60: 0 | I60: 0
D61: 0 | I61: 0
D62: 0 | I62: 0
D63: 0 | I63: 0
D64: 0 | I64: 0
D65: 0 | I65: 0
D66: 0 | I66: 0
D67: 0 | I67: 0
D68: 0 | I68: 0
D69: 0 | I69: 0
D70: 0 | I70: 0
D71: =B29 -> 0 | I71: 0
M72: =SUM(M56:M71) -> 1

Sheet 03 SALADE ice caesar
A1: Salade | F1: : | G1: Iceberg poulet | N1: 150 grs
A3: RECETTE PREVUE POUR : | C3: 1 | E3: Vous la dupliquez pour : | H3: 2
A5: Prix de revient unitaire : | C5: =K12 -> 1.56 | F5: marge | G5: coef | H5: tva | I5: ht | K5: ttc
K6: 6
A7: avec emballage : | C7: =C5+C9 -> 1.57 | D7: =C5+C11 -> 1.57 | F7: =I7-C7 -> 4.090377358 | G7: =I7/C7 -> 3.605335897 | H7: ES 6 | I7: =K6/1.06 -> 5.660377358 | J7: ToGo
K8: 6
A9: Emballage ToGo : | C9: =G31+G32 -> 0.01 | D9: =C9/C7 -> 0.006369426752 | F9: =I9-D7 -> 3.787142857 | G9: =I9/D7 -> 3.412192903 | H9: ES 12 | I9: =K8/1.12 -> 5.357142857 | J9: Sp
A11: Emballage Sp : | C11: =O31+O32 -> 0.01 | D11: =C11/D7 -> 0.006369426752 | F11: Prix kg/l / unité | G11: Poids brut recette | H11: Unité | I11: % perte | J11: brut 1 part | K11: Cout 1 part | L11: prix de revient | M11: brut à faire | N11: prix de revient
A12: 0 | B12: Produits | F12: ht | K12: =SUM(K14:K29) -> 1.56 | L12: =K12*H3 -> 3.12 | N12: =SUM(N14:O29) -> 3.25 | P12: FOURNISSEUR
A14: Salade iceberg (600g) | F14: =VLOOKUP(A14,PRIXINGRE,3,0) -> 5 | G14: 0.108 | H14: =IFERROR(VLOOKUP(A14,UNITINGRE,2,0),"") -> pièce | I14: =IFERROR(VLOOKUP(A14,UNITINGRE,10,0),"") -> 0.05 | J14: =IFERROR((G14/$C$3)+(((G14/$C$3)*I14)),"") -> 0.1134 | K14: =IFERROR((J14*F14),"") -> 0.567 | M14: =IFERROR((ROUNDUP((J14*$H$3),2)),"") -> 0.23 | N14: =IFERROR((M14*F14),"") -> 1.15 | P14: =VLOOKUP(A14,GDEBASE,8,0) -> JOSA
A15: Salade trévise | F15: 5 | G15: 0.012 | H15: pièce | I15: 0.05 | J15: 0.0126 | K15: =IFERROR((J15*F15),"") -> 0.063 | M15: =IFERROR((ROUNDUP((J15*$H$3),2)),"") -> 0.03 | N15: =IFERROR((M15*F15),"") -> 0.15 | P15: JOSA
A16: Concombre | F16: 5 | G16: 0.04 | H16: kg | I16: 0.1 | J16: 0.044 | K16: =IFERROR((J16*F16),"") -> 0.22 | M16: 0.09 | N16: 0.45 | P16: JOSA
A17: Tomate cerisette | F17: 5 | G17: 0.03 | H17: kg | I17: 0 | J17: 0.03 | K17: =IFERROR((J17*F17),"") -> 0.15 | M17: 0.06 | N17: 0.3 | P17: JOSA
A18: Carottes | F18: 5 | G18: 0.03 | H18: kg | I18: 0.2 | J18: 0.036 | K18: 0.18 | M18: 0.08 | N18: 0.4 | P18: JOSA
A19: Oignon | F19: 5 | G19: 0.01 | H19: kg | I19: 0.1 | J19: 0.011 | K19: =IFERROR((J19*F19),"") -> 0.055 | M19: 0.03 | N19: 0.15 | P19: JOSA
A20: Parmesan | F20: 5 | G20: 0.015 | H20: kg | I20: 0 | J20: 0.015 | K20: 0.075 | M20: 0.03 | N20: 0.15 | P20: LOBET
A21: Poulet cuit en FILET VT FOOD SELECTION | F21: 5 | G21: 0.05 | H21: kg | I21: 0 | J21: 0.05 | K21: 0.25 | M21: 0.1 | N21: 0.5 | P21: VT FOOD
F22: 0 | P22: 0
F23: 0 | P23: 0
F24: 0 | P24: 0
F25: 0 | P25: 0
F26: 0 | P26: 0
F27: 0 | P27: 0
F28: 0 | P28: 0
F29: 0 | P29: 0
B30: Emballage ToGo | E30: Qte | F30: price | G30: prix U | H30: Emballage | M30: Qte | N30: price | O30: prix U
A31: 1 | B31: #pack SALADE ToGo | E31: 1 | F31: =VLOOKUP(B31,PRIXE,2,0) -> 0.01 | G31: =E31*F31 -> 0.01 | H31: 3 | I31: #pack SALADE SP | M31: 1 | N31: =VLOOKUP(I31,PRIXE,2,0) -> 0.01 | O31: =M31*N31 -> 0.01
A32: 2 | F32: =VLOOKUP(B32,PRIXE,2,0) -> 0 | G32: =E32*F32 -> 0 | H32: 4 | N32: =VLOOKUP(I32,PRIXE,2,0) -> 0 | O32: =M32*N32 -> 0
A33: Etape de la recette
A34: 1 | B34: Bien remplir le saladier d'un mélange d'iceberg et de trévise | G34: 11
A35: 2 | B35: Coupez 5 tranches de concombre | G35: 12
A36: 3 | B36: Ajoutez 5 tomates cerises | G36: 13
A37: 4 | B37: Raper les carottes | G37: 14
A38: 5 | B38: Suer les oignons à la matière grasse et les ajouter | G38: 15
A39: 6 | B39: Parsemez de copeaux de parmesan | G39: 16
A40: 7 | G40: CALORIES (kcal)
A41: 8 | G41: Protéines (g) | L41: Fibres (g)
A42: 9 | G42: Lipides (g) | L42: AGSaturés (g)
A43: 10 | G43: Glucides (g)
A44: Forme & Dimension :
A46: Cuisson & dressage :
A50: Liste des allergènes :
B53: COMMANDE | D53: pour | F53: =H3 -> 2 | G53: =CONCATENATE(A1, F1,G1) -> Salade : Iceberg poulet
B55: qte | C55: unité | D55: liste | I55: price | M55: Total
B56: =M14 -> 0.23 | C56: =H14 -> pièce | D56: =A14 -> Salade iceberg (600g) | I56: =F14 -> 5 | M56: =N14 -> 1.15
B57: 0.03 | C57: pièce | D57: =A15 -> Salade trévise | I57: =F15 -> 5 | M57: 0.15
B58: 0.09 | C58: kg | D58: Concombre | I58: 5 | M58: 0.45
B59: 0.06 | C59: kg | D59: Tomate cerisette | I59: 5 | M59: 0.3
B60: 0.08 | C60: kg | D60: Carottes | I60: 5 | M60: 0.4
B61: 0.03 | C61: kg | D61: Oignon | I61: 5 | M61: 0.15
B62: 0.03 | C62: kg | D62: Parmesan | I62: 5 | M62: 0.15
B63: 0.1 | C63: kg | D63: Poulet cuit en FILET VT FOOD SELECTION | I63: 5 | M63: 0.5
D64: 0 | I64: 0
D65: 0 | I65: 0
D66: 0 | I66: 0
D67: 0 | I67: 0
D68: 0 | I68: 0
D69: 0 | I69: 0
D70: 0 | I70: 0
D71: =B29 -> 0 | I71: 0
M72: =SUM(M56:M71) -> 3.25

Sheet 03 SALADE ice saumon concombre
A1: Salade | F1: : | G1: saumon concombre | N1: 150 grs
A3: RECETTE PREVUE POUR : | C3: 1 | E3: Vous la dupliquez pour : | H3: 2
A5: Prix de revient unitaire : | C5: =K12 -> 2.973666667 | F5: marge | G5: coef | H5: tva | I5: ht | K5: ttc
K6: 6
A7: avec emballage : | C7: =C5+C9 -> 2.983666667 | D7: =C5+C11 -> 2.983666667 | F7: =I7-C7 -> 2.676710692 | G7: =I7/C7 -> 1.897121224 | H7: ES 6 | I7: =K6/1.06 -> 5.660377358 | J7: ToGo
K8: 6
A9: Emballage ToGo : | C9: =G31+G32 -> 0.01 | D9: =C9/C7 -> 0.003351580829 | F9: =I9-D7 -> 2.37347619 | G9: =I9/D7 -> 1.79548973 | H9: ES 12 | I9: =K8/1.12 -> 5.357142857 | J9: Sp
A11: Emballage Sp : | C11: =O31+O32 -> 0.01 | D11: =C11/D7 -> 0.003351580829 | F11: Prix kg/l / unité | G11: Poids brut recette | H11: Unité | I11: % perte | J11: brut 1 part | K11: Cout 1 part | L11: prix de revient | M11: brut à faire | N11: prix de revient
A12: 0 | B12: Produits | F12: ht | K12: =SUM(K14:K29) -> 2.973666667 | L12: =K12*H3 -> 5.947333333 | N12: =SUM(N14:O29) -> 6.1 | P12: FOURNISSEUR
A14: Salade iceberg (600g) | F14: =VLOOKUP(A14,PRIXINGRE,3,0) -> 5 | G14: 0.108 | H14: =IFERROR(VLOOKUP(A14,UNITINGRE,2,0),"") -> pièce | I14: =IFERROR(VLOOKUP(A14,UNITINGRE,10,0),"") -> 0.05 | J14: =IFERROR((G14/$C$3)+(((G14/$C$3)*I14)),"") -> 0.1134 | K14: =IFERROR((J14*F14),"") -> 0.567 | M14: =IFERROR((ROUNDUP((J14*$H$3),2)),"") -> 0.23 | N14: =IFERROR((M14*F14),"") -> 1.15 | P14: =VLOOKUP(A14,GDEBASE,8,0) -> JOSA
A15: Saumon fumé tranché machine SAVEUR | F15: 5 | G15: 0.03 | H15: kg | I15: 0.1333333333 | J15: 0.034 | K15: =IFERROR((J15*F15),"") -> 0.17 | M15: =IFERROR((ROUNDUP((J15*$H$3),2)),"") -> 0.07 | N15: =IFERROR((M15*F15),"") -> 0.35 | P15: SAVEURS GOURMANDES
A16: Fromage blanc gras 3k | F16: 5 | G16: 0.06 | H16: kg | I16: 0 | J16: 0.06 | K16: =IFERROR((J16*F16),"") -> 0.3 | M16: 0.12 | N16: 0.6 | P16: LOBET
A17: Concombre | F17: 5 | G17: 0.02 | H17: kg | I17: 0.1 | J17: 0.022 | K17: =IFERROR((J17*F17),"") -> 0.11 | M17: 0.05 | N17: 0.25 | P17: JOSA
A18: citron vert | F18: 5 | G18: 0.1666666667 | H18: pièce | I18: 0 | J18: 0.1666666667 | K18: 0.8333333333 | M18: 0.34 | N18: 1.7 | P18: JOSA
A19: Citrons | F19: 5 | G19: 0.1666666667 | H19: pièce | I19: 0 | J19: 0.1666666667 | K19: =IFERROR((J19*F19),"") -> 0.8333333333 | M19: 0.34 | N19: 1.7 | P19: JOSA
A20: Huile d'olive | F20: 5 | G20: 0.01 | H20: Litre | I20: 0 | J20: 0.01 | K20: 0.05 | M20: 0.02 | N20: 0.1 | P20: METRO
A21: aneth | F21: 5 | G21: 0.002 | H21: kg | I21: 0 | J21: 0.002 | K21: 0.01 | M21: 0.01 | N21: 0.05 | P21: METRO
A22: Tomate cerisette | F22: 5 | G22: 0.02 | H22: kg | I22: 0 | J22: 0.02 | K22: 0.1 | M22: 0.04 | N22: 0.2 | P22: JOSA
F23: 0 | P23: 0
F24: 0 | P24: 0
F25: 0 | P25: 0
F26: 0 | P26: 0
F27: 0 | P27: 0
F28: 0 | P28: 0
F29: 0 | P29: 0
B30: Emballage ToGo | E30: Qte | F30: price | G30: prix U | H30: Emballage | M30: Qte | N30: price | O30: prix U
A31: 1 | B31: #pack SALADE ToGo | E31: 1 | F31: =VLOOKUP(B31,PRIXE,2,0) -> 0.01 | G31: =E31*F31 -> 0.01 | H31: 3 | I31: #pack SALADE SP | M31: 1 | N31: =VLOOKUP(I31,PRIXE,2,0) -> 0.01 | O31: =M31*N31 -> 0.01
A32: 2 | F32: =VLOOKUP(B32,PRIXE,2,0) -> 0 | G32: =E32*F32 -> 0 | H32: 4 | N32: =VLOOKUP(I32,PRIXE,2,0) -> 0 | O32: =M32*N32 -> 0
A33: Etape de la recette
A34: 1 | B34: Bien remplir le saladier d'un mélange d'iceberg et de trévise | G34: 11
A35: 2 | B35: Ajoutez le mélange fêta | G35: 12
A36: 3 | B36: Coupez 5 tranches de concombre | G36: 13
A37: 4 | B37: Ajoutez 5 tomates cerises | G37: 14
A38: 5 | B38: Râper la courgette et ajoutez-la | G38: 15
A39: 6 | G39: 16
A40: 7 | G40: CALORIES (kcal)
A41: 8 | G41: Protéines (g) | K41: =J41*4 -> 0 | L41: Fibres (g) | O41: =N41*2 -> 0
A42: 9 | G42: Lipides (g) | K42: =J42*9 -> 0 | L42: AGSaturés (g)
A43: 10 | G43: Glucides (g) | K43: =J43*4 -> 0
A44: Forme & Dimension :
A46: Cuisson & dressage :
A50: Liste des allergènes :
B53: COMMANDE | D53: pour | F53: =H3 -> 2 | G53: =CONCATENATE(A1, F1,G1) -> Salade : saumon concombre
B55: qte | C55: unité | D55: liste | I55: price | M55: Total
B56: =M14 -> 0.23 | C56: =H14 -> pièce | D56: =A14 -> Salade iceberg (600g) | I56: =F14 -> 5 | M56: =N14 -> 1.15
B57: 0.07 | C57: kg | D57: =A15 -> Saumon fumé tranché machine SAVEUR | I57: =F15 -> 5 | M57: 0.35
B58: 0.12 | C58: kg | D58: Fromage blanc gras 3k | I58: 5 | M58: 0.6
B59: 0.05 | C59: kg | D59: Concombre | I59: 5 | M59: 0.25
B60: 0.34 | C60: pièce | D60: citron vert | I60: 5 | M60: 1.7
B61: 0.34 | C61: pièce | D61: Citrons | I61: 5 | M61: 1.7
B62: 0.02 | C62: Litre | D62: Huile d'olive | I62: 5 | M62: 0.1
B63: 0.01 | C63: kg | D63: aneth | I63: 5 | M63: 0.05
B64: 0.04 | C64: kg | D64: Tomate cerisette | I64: 5 | M64: 0.2
D65: 0 | I65: 0
D66: 0 | I66: 0
D67: 0 | I67: 0
D68: 0 | I68: 0
D69: 0 | I69: 0
D70: 0 | I70: 0
D71: =B29 -> 0 | I71: 0
M72: =SUM(M56:M71) -> 6.1

Sheet 04 CEREAL lentilles & boulgour
A1: CEREALES | F1: : | G1: Lentilles et boulgour | N1: 150 grs
A3: RECETTE PREVUE POUR : | C3: 10 | E3: Vous la dupliquez pour : | H3: 2
A5: Prix de revient unitaire : | C5: =K12 -> 1.185 | F5: marge | G5: coef | H5: tva | I5: ht | K5: ttc
K6: 4.5
A7: avec emballage : | C7: =C5+C9 -> 1.195 | D7: =C5+C11 -> 1.195 | F7: =I7-C7 -> 3.050283019 | G7: =I7/C7 -> 3.552538091 | H7: ES 6 | I7: =K6/1.06 -> 4.245283019 | J7: ToGo
K8: 4.5
A9: Emballage ToGo : | C9: =G31+G32 -> 0.01 | D9: =C9/C7 -> 0.008368200837 | F9: =I9-D7 -> 2.822857143 | G9: =I9/D7 -> 3.362223551 | H9: ES 12 | I9: =K8/1.12 -> 4.017857143 | J9: Sp
A11: Emballage Sp : | C11: =O31+O32 -> 0.01 | D11: =C11/D7 -> 0.008368200837 | F11: Prix kg/l / unité | G11: Poids brut recette | H11: Unité | I11: % perte | J11: brut 1 part | K11: Cout 1 part | L11: prix de revient | M11: brut à faire | N11: prix de revient
A12: 0 | B12: Produits | F12: ht | K12: =SUM(K14:K29) -> 1.185 | L12: =K12*H3 -> 2.37 | N12: =SUM(N14:O29) -> 2.5 | P12: FOURNISSEUR
A14: Lentilles 5kg | F14: =VLOOKUP(A14,PRIXINGRE,3,0) -> 5 | G14: 0.27 | H14: =IFERROR(VLOOKUP(A14,UNITINGRE,2,0),"") -> kg | I14: =IFERROR(VLOOKUP(A14,UNITINGRE,10,0),"") -> 0 | J14: =IFERROR((G14/$C$3)+(((G14/$C$3)*I14)),"") -> 0.027 | K14: =IFERROR((J14*F14),"") -> 0.135 | M14: =IFERROR((ROUNDUP((J14*$H$3),2)),"") -> 0.06 | N14: =IFERROR((M14*F14),"") -> 0.3 | P14: =VLOOKUP(A14,GDEBASE,8,0) -> METRO
A15: Boulgour | F15: 5 | G15: 0.25 | H15: kg | I15: 0 | J15: 0.025 | K15: =IFERROR((J15*F15),"") -> 0.125 | M15: =IFERROR((ROUNDUP((J15*$H$3),2)),"") -> 0.05 | N15: =IFERROR((M15*F15),"") -> 0.25 | P15: METRO
A16: Courgettes | E16: 1 | F16: 5 | G16: 0.7 | H16: kg | I16: 0.1 | J16: 0.077 | K16: =IFERROR((J16*F16),"") -> 0.385 | M16: 0.16 | N16: 0.8 | P16: JOSA
A17: Aubergines (pour info 1 auberg=400g) | E17: 1 | F17: 5 | G17: 0.35 | H17: kg | I17: 0.2 | J17: 0.042 | K17: =IFERROR((J17*F17),"") -> 0.21 | M17: 0.09 | N17: 0.45 | P17: JOSA
A18: coriandre fraiche | F18: 5 | G18: 0.5 | H18: botte | I18: 0.2 | J18: 0.06 | K18: 0.3 | M18: 0.12 | N18: 0.6 | P18: JOSA
A19: Huile d'olive | F19: 5 | G19: 0.06 | H19: Litre | I19: 0 | J19: 0.006 | K19: =IFERROR((J19*F19),"") -> 0.03 | M19: 0.02 | N19: 0.1 | P19: METRO
F20: 0 | P20: 0
F21: 0 | P21: 0
F22: 0 | P22: 0
F23: 0 | P23: 0
F24: 0 | P24: 0
F25: 0 | P25: 0
F26: 0 | P26: 0
F27: 0 | P27: 0
F28: 0 | P28: 0
F29: 0 | P29: 0
B30: Emballage | E30: Qte | F30: price | G30: prix U | H30: Emballage | M30: Qte | N30: price | O30: prix U
A31: 1 | B31: #pack CEREALES ToGo | E31: 1 | F31: =VLOOKUP(B31,PRIXE,2,0) -> 0.01 | G31: =E31*F31 -> 0.01 | H31: 3 | I31: #pack CEREALES Sp | M31: 1 | N31: =VLOOKUP(I31,PRIXE,2,0) -> 0.01 | O31: =M31*N31 -> 0.01
A32: 2 | B32: 0 | E32: 1 | F32: =VLOOKUP(B32,PRIXE,2,0) -> 0 | G32: =E32*F32 -> 0 | H32: 4 | I32: 0 | N32: =VLOOKUP(I32,PRIXE,2,0) -> 0 | O32: =M32*N32 -> 0
A33: Etape de la recette
A34: 1 | G34: 11
A35: 2 | G35: 12
A36: 3 | G36: 13
A37: 4 | G37: 14
A38: 5 | G38: 15
A39: 6 | G39: 16
A40: 7 | G40: CALORIES (kcal) | J40: =K41+K42+K43+O41 -> 0
A41: 8 | G41: Protéines (g) | K41: =J41*4 -> 0 | L41: Fibres (g) | O41: =N41*2 -> 0
A42: 9 | G42: Lipides (g) | K42: =J42*9 -> 0 | L42: AGSaturés (g)
A43: 10 | G43: Glucides (g) | K43: =J43*4 -> 0
A44: Forme & Dimension :
A46: Cuisson & dressage :
A48: Liste des allergènes :
A49: x | B49: GLUTEN | D49: GLUCOSE | G49: GRAINES | J49: CÉLERI | M49: CRUSTACÉS
B50: LACTOSE / DAIRY | D50: ARACHIDE | G50: FRUITS À COQUE | J50: SULFITES | M50: POISSON
B51: OEUF | D51: MOUTARDE | G51: SOJA | J51: PORC | M51: VIANDE
B57: COMMANDE | D57: pour | F57: =H3 -> 2 | G57: =CONCATENATE(A1, F1,G1) -> CEREALES : Lentilles et boulgour
B59: qte | C59: unité | D59: liste | I59: price | M59: Total
B60: =M14 -> 0.06 | C60: =H14 -> kg | D60: =A14 -> Lentilles 5kg | I60: =F14 -> 5 | M60: =N14 -> 0.3
B61: 0.05 | C61: kg | D61: =A15 -> Boulgour | I61: =F15 -> 5 | M61: 0.25
B62: 0.16 | C62: kg | D62: Courgettes | I62: 5 | M62: 0.8
B63: 0.09 | C63: kg | D63: Aubergines (pour info 1 auberg=400g) | I63: 5 | M63: 0.45
B64: 0.12 | C64: botte | D64: coriandre fraiche | I64: 5 | M64: 0.6
B65: 0.02 | C65: Litre | D65: Huile d'olive | I65: 5 | M65: 0.1
D66: 0 | I66: 0
D67: 0 | I67: 0
D68: 0 | I68: 0
D69: 0 | I69: 0
D70: 0 | I70: 0
D71: 0 | I71: 0
D72: 0 | I72: 0
D73: 0 | I73: 0
D74: 0 | I74: 0
D75: =B29 -> 0 | I75: 0
M76: =SUM(M60:M75) -> 2.5

Sheet 04 CEREALES riz niçois
A1: CEREALES | F1: : | G1: RIZ A LA NICOISE | N1: 180 grs
A3: RECETTE PREVUE POUR : | C3: 10 | E3: Vous la dupliquez pour : | H3: 2
A5: Prix de revient unitaire : | C5: =K12 -> 0.1078428571 | F5: marge | G5: coef | H5: tva | I5: ht | K5: ttc
K6: 4.5
A7: avec emballage : | C7: =C5+C9 -> 0.1178428571 | D7: =C5+C11 -> 0.1178428571 | F7: =I7-C7 -> 4.127440162 | G7: =I7/C7 -> 36.02494985 | H7: ES 6 | I7: =K6/1.06 -> 4.245283019 | J7: ToGo
K8: 4.5
A9: Emballage ToGo : | C9: =G31+G32 -> 0.01 | D9: =C9/C7 -> 0.08485877076 | F9: =I9-D7 -> 3.900014286 | G9: =I9/D7 -> 34.09504182 | H9: ES 12 | I9: =K8/1.12 -> 4.017857143 | J9: Sp
A11: Emballage Sp : | C11: =O31+O32 -> 0.01 | D11: =C11/D7 -> 0.08485877076 | F11: Prix kg/l / unité | G11: Poids brut recette | H11: Unité | I11: % perte | J11: brut 1 part | K11: Cout 1 part | L11: prix de revient | M11: brut à faire | N11: prix de revient
A12: 0 | B12: Produits | F12: ht | K12: =SUM(K14:K29) -> 0.1078428571 | L12: =K12*H3 -> 0.2156857143 | N12: =SUM(N14:O29) -> 0.55 | P12: FOURNISSEUR
A14: Riz basmati | F14: =VLOOKUP(A14,PRIXINGRE,3,0) -> 5 | G14: 0.036 | H14: =IFERROR(VLOOKUP(A14,UNITINGRE,2,0),"") -> kg | I14: =IFERROR(VLOOKUP(A14,UNITINGRE,10,0),"") -> 0 | J14: =IFERROR((G14/$C$3)+(((G14/$C$3)*I14)),"") -> 0.0036 | K14: =IFERROR((J14*F14),"") -> 0.018 | M14: =IFERROR((ROUNDUP((J14*$H$3),2)),"") -> 0.01 | N14: =IFERROR((M14*F14),"") -> 0.05 | P14: =VLOOKUP(A14,GDEBASE,8,0) -> METRO
A15: Tomate fraiche | F15: 5 | G15: 0.036 | H15: kg | I15: 0.2 | J15: 0.00432 | K15: =IFERROR((J15*F15),"") -> 0.0216 | M15: =IFERROR((ROUNDUP((J15*$H$3),2)),"") -> 0.01 | N15: =IFERROR((M15*F15),"") -> 0.05 | P15: JOSA
A16: poivrons frais | F16: 5 | G16: 0.014 | H16: kg | I16: 0.15 | J16: 0.00161 | K16: =IFERROR((J16*F16),"") -> 0.00805 | M16: 0.01 | N16: 0.05 | P16: JOSA
A17: Oignons gros rouge | F17: 5 | G17: 0.014 | H17: kg | I17: 0.1 | J17: 0.00154 | K17: =IFERROR((J17*F17),"") -> 0.0077 | M17: 0.01 | N17: 0.05 | P17: JOSA
A18: oignons jeunes | F18: 5 | G18: 0.003 | H18: kg | I18: 0.1 | J18: 0.00033 | K18: 0.00165 | M18: 0.01 | N18: 0.05 | P18: JOSA
A19: Céleri branche | F19: 5 | G19: 0.01 | H19: kg | I19: 0.3 | J19: 0.0013 | K19: =IFERROR((J19*F19),"") -> 0.0065 | M19: 0.01 | N19: 0.05 | P19: JOSA
A20: Concombre | F20: 5 | G20: 0.02 | H20: kg | I20: 0.1 | J20: 0.0022 | K20: 0.011 | M20: 0.01 | N20: 0.05 | P20: JOSA
A21: Thon au naturel | F21: 5 | G21: 0.036 | H21: kg | I21: 0.03571428571 | J21: 0.003728571429 | K21: 0.01864285714 | M21: 0.01 | N21: 0.05 | P21: METRO
A22: Olives noires dénoyautées | F22: 5 | G22: 0.006 | H22: kg | I22: 0.5 | J22: 0.0009 | K22: 0.0045 | M22: 0.01 | N22: 0.05 | P22: METRO
A23: Anchois à l'huile 1 =4g | F23: 5 | G23: 0.008 | H23: kg | I23: 0.3 | J23: 0.00104 | K23: =IFERROR((J23*F23),"") -> 0.0052 | M23: =IFERROR((ROUNDUP((J23*$H$3),2)),"") -> 0.01 | N23: =IFERROR((M23*F23),"") -> 0.05 | P23: METRO
A24: huile d'olive | F24: 5 | G24: 0.01 | H24: Litre | I24: 0 | J24: 0.001 | K24: 0.005 | M24: 0.01 | N24: 0.05 | P24: METRO
F25: 0 | P25: 0
F26: 0 | P26: 0
F27: 0 | P27: 0
F28: 0 | P28: 0
F29: 0 | P29: 0
B30: Emballage ToGo | E30: Qte | F30: price | G30: prix U | H30: Emballage | M30: Qte | N30: price | O30: prix U
A31: 1 | B31: #pack CEREALES ToGo | E31: 1 | F31: =VLOOKUP(B31,PRIXE,2,0) -> 0.01 | G31: =E31*F31 -> 0.01 | H31: 3 | I31: #pack CEREALES Sp | M31: 1 | N31: =VLOOKUP(I31,PRIXE,2,0) -> 0.01 | O31: =M31*N31 -> 0.01
A32: 2 | B32: 0 | E32: 1 | F32: =VLOOKUP(B32,PRIXE,2,0) -> 0 | G32: =E32*F32 -> 0 | H32: 4 | I32: 0 | N32: =VLOOKUP(I32,PRIXE,2,0) -> 0 | O32: =M32*N32 -> 0
A33: Etape de la recette
A34: 1 | G34: 11
A35: 2 | G35: 12
A36: 3 | G36: 13
A37: 4 | G37: 14
A38: 5 | G38: 15
A39: 6 | G39: 16
A40: 7 | G40: CALORIES (kcal) | J40: =K41+K42+K43+O41 -> 0
A41: 8 | G41: Protéines (g) | K41: =J41*4 -> 0 | L41: Fibres (g) | O41: =N41*2 -> 0
A42: 9 | G42: Lipides (g) | K42: =J42*9 -> 0 | L42: AGSaturés (g)
A43: 10 | G43: Glucides (g) | K43: =J43*4 -> 0
A44: Forme & Dimension :
A46: Cuisson & dressage :
A48: Liste des allergènes :
B49: GLUTEN | D49: GLUCOSE | G49: GRAINES | J49: CÉLERI | M49: CRUSTACÉS
B50: LACTOSE / DAIRY | D50: ARACHIDE | G50: FRUITS À COQUE | J50: SULFITES | M50: POISSON
B51: OEUF | D51: MOUTARDE | G51: SOJA | J51: PORC | M51: VIANDE
B57: COMMANDE | D57: pour | F57: =H3 -> 2 | G57: =CONCATENATE(A1, F1,G1) -> CEREALES : RIZ A LA NICOISE
B59: qte | C59: unité | D59: liste | I59: price | M59: Total
B60: =M14 -> 0.01 | C60: =H14 -> kg | D60: =A14 -> Riz basmati | I60: =F14 -> 5 | M60: =N14 -> 0.05
B61: 0.01 | C61: kg | D61: =A15 -> Tomate fraiche | I61: =F15 -> 5 | M61: 0.05
B62: 0.01 | C62: kg | D62: poivrons frais | I62: 5 | M62: 0.05
B63: 0.01 | C63: kg | D63: Oignons gros rouge | I63: 5 | M63: 0.05
B64: 0.01 | C64: kg | D64: oignons jeunes | I64: 5 | M64: 0.05
B65: 0.01 | C65: kg | D65: Céleri branche | I65: 5 | M65: 0.05
B66: 0.01 | C66: kg | D66: Concombre | I66: 5 | M66: 0.05
B67: 0.01 | C67: kg | D67: Thon au naturel | I67: 5 | M67: 0.05
B68: 0.01 | C68: kg | D68: Olives noires dénoyautées | I68: 5 | M68: 0.05
B69: 0.01 | C69: kg | D69: Anchois à l'huile 1 =4g | I69: 5 | M69: 0.05
B70: 0.01 | C70: Litre | D70: huile d'olive | I70: 5 | M70: 0.05
D71: 0 | I71: 0
D72: 0 | I72: 0
D73: 0 | I73: 0
D74: 0 | I74: 0
D75: =B29 -> 0 | I75: 0
M76: =SUM(M60:M75) -> 0.55

Sheet 05 FOCACCIA HAM & CHEDDAR
A1: FOCACCIA | F1: : | G1: CHEVRE | N1: 150 grs
A3: RECETTE PREVUE POUR : | C3: 1 | E3: Vous la dupliquez pour : | H3: 2
A5: Prix de revient unitaire : | C5: =K12 -> 19.59 | F5: marge | G5: coef | H5: tva | I5: ht | K5: ttc
K6: 6
A7: avec emballage : | C7: =C5+C9 -> 19.6 | D7: =C5+C11 -> 19.6 | F7: =I7-C7 -> -13.93962264 | G7: =I7/C7 -> 0.2887947632 | H7: ES 6 | I7: =K6/1.06 -> 5.660377358 | J7: ToGo
K8: 6
A9: Emballage ToGo : | C9: =G31+G32 -> 0.01 | D9: =C9/C7 -> 0.0005102040816 | F9: =I9-D7 -> -14.24285714 | G9: =I9/D7 -> 0.2733236152 | H9: ES 12 | I9: =K8/1.12 -> 5.357142857 | J9: Sp
A11: Emballage Sp : | C11: =O31+O32 -> 0.01 | D11: =C11/D7 -> 0.0005102040816 | F11: Prix kg/l / unité | G11: Poids brut recette | H11: Unité | I11: % perte | J11: brut 1 part | K11: Cout 1 part | L11: prix de revient | M11: brut à faire | N11: prix de revient
A12: 0 | B12: Produits | F12: ht | K12: =SUM(K14:K29) -> 19.59 | L12: =K12*H3 -> 39.18 | N12: =SUM(N14:O29) -> 39.2 | P12: FOURNISSEUR
A14: MB FOCCACIA ORIGAN PETITE (170g) | F14: =VLOOKUP(A14,PRIXINGRE,3,0) -> 5 | G14: 1 | H14: =IFERROR(VLOOKUP(A14,UNITINGRE,2,0),"") -> pièce | I14: =IFERROR(VLOOKUP(A14,UNITINGRE,10,0),"") -> 0 | J14: =IFERROR((G14/$C$3)+(((G14/$C$3)*I14)),"") -> 1 | K14: =IFERROR((J14*F14),"") -> 5 | M14: =IFERROR((ROUNDUP((J14*$H$3),2)),"") -> 2 | N14: =IFERROR((M14*F14),"") -> 10 | P14: =VLOOKUP(A14,GDEBASE,8,0) -> BAKER MA
A15: Cheddar tranché (dose : 3 demi T =30g) | F15: 5 | G15: 1 | H15: pièce | I15: 0 | J15: 1 | K15: =IFERROR((J15*F15),"") -> 5 | M15: =IFERROR((ROUNDUP((J15*$H$3),2)),"") -> 2 | N15: =IFERROR((M15*F15),"") -> 10 | P15: LOBET
A16: Jambon blanc SELECTION / La Tranche | F16: 5 | G16: 0.75 | H16: pièce | I16: 0 | J16: 0.75 | K16: =IFERROR((J16*F16),"") -> 3.75 | M16: 1.5 | N16: 7.5 | P16: VT FOOD
A17: Mascarpone | F17: 5 | G17: 0.02 | H17: kg | I17: 0 | J17: 0.02 | K17: =IFERROR((J17*F17),"") -> 0.1 | M17: 0.04 | N17: 0.2 | P17: LOBET
A18: salade roquette botte dose dwich (5g) | F18: 5 | G18: 1 | H18: pièce | I18: 0.1 | J18: 1.1 | K18: 5.5 | M18: 2.2 | N18: 11 | P18: JOSA
A19: Tomate fraiche | F19: 5 | G19: 0.04 | H19: kg | I19: 0.2 | J19: 0.048 | K19: =IFERROR((J19*F19),"") -> 0.24 | M19: 0.1 | N19: 0.5 | P19: JOSA
F20: 0 | P20: 0
F21: 0 | P21: 0
F22: 0 | P22: 0
F23: 0 | P23: 0
F24: 0 | P24: 0
F25: 0 | P25: 0
F26: 0 | P26: 0
F27: 0 | P27: 0
F28: 0 | P28: 0
F29: 0 | P29: 0
B30: Emballage | E30: Qte | F30: price | G30: prix U | H30: Emballage | M30: Qte | N30: price | O30: prix U
A31: 1 | B31: #pack DWICH ToGo | E31: 1 | F31: =VLOOKUP(B31,PRIXE,2,0) -> 0.01 | G31: =E31*F31 -> 0.01 | H31: 3 | I31: #pack DWICH Sp | M31: 1 | N31: =VLOOKUP(I31,PRIXE,2,0) -> 0.01 | O31: =M31*N31 -> 0.01
A32: 2 | B32: 0 | E32: 1 | F32: =VLOOKUP(B32,PRIXE,2,0) -> 0 | G32: =E32*F32 -> 0 | H32: 4 | I32: 0 | N32: =VLOOKUP(I32,PRIXE,2,0) -> 0 | O32: =M32*N32 -> 0
A33: Etape de la recette
A34: 1 | G34: 11
A35: 2 | G35: 12
A36: 3 | G36: 13
A37: 4 | G37: 14
A38: 5 | G38: 15
A39: 6 | G39: 16
A40: 7 | G40: CALORIES (kcal) | J40: =K41+K42+K43+O41 -> 0
A41: 8 | G41: Protéines (g) | K41: =J41*4 -> 0 | L41: Fibres (g) | O41: =N41*2 -> 0
A42: 9 | G42: Lipides (g) | K42: =J42*9 -> 0 | L42: AGSaturés (g)
A43: 10 | G43: Glucides (g) | K43: =J43*4 -> 0
A44: Forme & Dimension :
A46: Cuisson & dressage :
A48: Liste des allergènes :
B49: GLUTEN | D49: GLUCOSE | G49: GRAINES | J49: CÉLERI | M49: CRUSTACÉS
B50: LACTOSE / DAIRY | D50: ARACHIDE | G50: FRUITS À COQUE | J50: SULFITES | M50: POISSON
B51: OEUF | D51: MOUTARDE | G51: SOJA | J51: PORC | M51: VIANDE
B57: COMMANDE | D57: pour | F57: =H3 -> 2 | G57: =CONCATENATE(A1, F1,G1) -> FOCACCIA : CHEVRE
B59: qte | C59: unité | D59: liste | I59: price | M59: Total
B60: =M14 -> 2 | C60: =H14 -> pièce | D60: =A14 -> MB FOCCACIA ORIGAN PETITE (170g) | I60: =F14 -> 5 | M60: =N14 -> 10
B61: 2 | C61: pièce | D61: =A15 -> Cheddar tranché (dose : 3 demi T =30g) | I61: =F15 -> 5 | M61: 10
B62: 1.5 | C62: pièce | D62: Jambon blanc SELECTION / La Tranche | I62: 5 | M62: 7.5
B63: 0.04 | C63: kg | D63: Mascarpone | I63: 5 | M63: 0.2
B64: 2.2 | C64: pièce | D64: salade roquette botte dose dwich (5g) | I64: 5 | M64: 11
B65: 0.1 | C65: kg | D65: Tomate fraiche | I65: 5 | M65: 0.5
D66: 0 | I66: 0
D67: 0 | I67: 0
D68: 0 | I68: 0
D69: 0 | I69: 0
D70: 0 | I70: 0
D71: 0 | I71: 0
D72: 0 | I72: 0
D73: 0 | I73: 0
D74: 0 | I74: 0
D75: =B29 -> 0 | I75: 0
M76: =SUM(M60:M75) -> 39.2

Sheet 05 FOCACCIA parme
A1: FOCACCIA | F1: : | G1: PARME | N1: 150 grs
A3: RECETTE PREVUE POUR : | C3: 1 | E3: Vous la dupliquez pour : | H3: 2
A5: Prix de revient unitaire : | C5: =K12 -> 25.7195 | F5: marge | G5: coef | H5: tva | I5: ht | K5: ttc
K6: 6
A7: avec emballage : | C7: =C5+C9 -> 25.7295 | D7: =C5+C11 -> 25.7295 | F7: =I7-C7 -> -20.06912264 | G7: =I7/C7 -> 0.2199956221 | H7: ES 6 | I7: =K6/1.06 -> 5.660377358 | J7: ToGo
K8: 6
A9: Emballage ToGo : | C9: =G31+G32 -> 0.01 | D9: =C9/C7 -> 0.0003886589324 | F9: =I9-D7 -> -20.37235714 | G9: =I9/D7 -> 0.2082101423 | H9: ES 12 | I9: =K8/1.12 -> 5.357142857 | J9: Sp
A11: Emballage Sp : | C11: =O31+O32 -> 0.01 | D11: =C11/D7 -> 0.0003886589324 | F11: Prix kg/l / unité | G11: Poids brut recette | H11: Unité | I11: % perte | J11: brut 1 part | K11: Cout 1 part | L11: prix de revient | M11: brut à faire | N11: prix de revient
A12: 0 | B12: Produits | F12: ht | K12: =SUM(K14:K29) -> 25.7195 | L12: =K12*H3 -> 51.439 | N12: =SUM(N14:O29) -> 51.5 | P12: FOURNISSEUR
A14: MB FOCCACIA OLIVE PETITE (170g) | F14: =VLOOKUP(A14,PRIXINGRE,3,0) -> 5 | G14: 1 | H14: =IFERROR(VLOOKUP(A14,UNITINGRE,2,0),"") -> pièce | I14: =IFERROR(VLOOKUP(A14,UNITINGRE,10,0),"") -> 0 | J14: =IFERROR((G14/$C$3)+(((G14/$C$3)*I14)),"") -> 1 | K14: =IFERROR((J14*F14),"") -> 5 | M14: =IFERROR((ROUNDUP((J14*$H$3),2)),"") -> 2 | N14: =IFERROR((M14*F14),"") -> 10 | P14: =VLOOKUP(A14,GDEBASE,8,0) -> BAKER MA
A15: Pesto verde | F15: 5 | G15: 0.03 | H15: kg | I15: 0.03 | J15: 0.0309 | K15: =IFERROR((J15*F15),"") -> 0.1545 | M15: =IFERROR((ROUNDUP((J15*$H$3),2)),"") -> 0.07 | N15: =IFERROR((M15*F15),"") -> 0.35 | P15: VT FOOD
A16: Aubergines huile d'olive 1Tranche | F16: 5 | G16: 1 | H16: pièce | I16: 0 | J16: 1 | K16: =IFERROR((J16*F16),"") -> 5 | M16: 2 | N16: 10 | P16: CIABATTA MANIA
A17: jambon de parme / espagnol La Tranche | F17: 5 | G17: 2 | H17: pièce | I17: 0 | J17: 2 | K17: =IFERROR((J17*F17),"") -> 10 | M17: 4 | N17: 20 | P17: VT FOOD
A18: salade roquette botte dose dwich (5g) | F18: 5 | G18: 1 | H18: pièce | I18: 0.1 | J18: 1.1 | K18: 5.5 | M18: 2.2 | N18: 11 | P18: JOSA
A19: Tomates confites VT FOOD | F19: 5 | G19: 0.01 | H19: kg | I19: 0.3 | J19: 0.013 | K19: =IFERROR((J19*F19),"") -> 0.065 | M19: 0.03 | N19: 0.15 | P19: VT FOOD
F20: 0 | P20: 0
F21: 0 | P21: 0
F22: 0 | P22: 0
F23: 0 | P23: 0
F24: 0 | P24: 0
F25: 0 | P25: 0
F26: 0 | P26: 0
F27: 0 | P27: 0
F28: 0 | P28: 0
F29: 0 | P29: 0
B30: Emballage TOGO | E30: Qte | F30: price | G30: prix U | H30: Emballage SUR PLACE | M30: Qte | N30: price | O30: prix U
A31: 1 | B31: #pack DWICH ToGo | E31: 1 | F31: =VLOOKUP(B31,PRIXE,2,0) -> 0.01 | G31: =E31*F31 -> 0.01 | H31: 3 | I31: #pack DWICH Sp | M31: 1 | N31: =VLOOKUP(I31,PRIXE,2,0) -> 0.01 | O31: =M31*N31 -> 0.01
A32: 2 | B32: 0 | E32: 1 | F32: =VLOOKUP(B32,PRIXE,2,0) -> 0 | G32: =E32*F32 -> 0 | H32: 4 | I32: 0 | N32: =VLOOKUP(I32,PRIXE,2,0) -> 0 | O32: =M32*N32 -> 0
A33: Etape de la recette
A34: 1 | G34: 11
A35: 2 | G35: 12
A36: 3 | G36: 13
A37: 4 | G37: 14
A38: 5 | G38: 15
A39: 6 | G39: 16
A40: 7 | G40: CALORIES (kcal) | J40: =K41+K42+K43+O41 -> 0
A41: 8 | G41: Protéines (g) | K41: =J41*4 -> 0 | L41: Fibres (g) | O41: =N41*2 -> 0
A42: 9 | G42: Lipides (g) | K42: =J42*9 -> 0 | L42: AGSaturés (g)
A43: 10 | G43: Glucides (g) | K43: =J43*4 -> 0
A44: Forme & Dimension :
A46: Cuisson & dressage :
A48: Liste des allergènes :
B49: GLUTEN | D49: GLUCOSE | G49: GRAINES | J49: CÉLERI | M49: CRUSTACÉS
B50: LACTOSE / DAIRY | D50: ARACHIDE | G50: FRUITS À COQUE | J50: SULFITES | M50: POISSON
B51: OEUF | D51: MOUTARDE | G51: SOJA | J51: PORC | M51: VIANDE
B57: COMMANDE | D57: pour | F57: =H3 -> 2 | G57: =CONCATENATE(A1, F1,G1) -> FOCACCIA : PARME
B59: qte | C59: unité | D59: liste | I59: price | M59: Total
B60: =M14 -> 2 | C60: =H14 -> pièce | D60: =A14 -> MB FOCCACIA OLIVE PETITE (170g) | I60: =F14 -> 5 | M60: =N14 -> 10
B61: 0.07 | C61: kg | D61: =A15 -> Pesto verde | I61: =F15 -> 5 | M61: 0.35
B62: 2 | C62: pièce | D62: Aubergines huile d'olive 1Tranche | I62: 5 | M62: 10
B63: 4 | C63: pièce | D63: jambon de parme / espagnol La Tranche | I63: 5 | M63: 20
B64: 2.2 | C64: pièce | D64: salade roquette botte dose dwich (5g) | I64: 5 | M64: 11
B65: 0.03 | C65: kg | D65: Tomates confites VT FOOD | I65: 5 | M65: 0.15
D66: 0 | I66: 0
D67: 0 | I67: 0
D68: 0 | I68: 0
D69: 0 | I69: 0
D70: 0 | I70: 0
D71: 0 | I71: 0
D72: 0 | I72: 0
D73: 0 | I73: 0
D74: 0 | I74: 0
D75: =B29 -> 0 | I75: 0
M76: =SUM(M60:M75) -> 51.5

Sheet 05 FOCACCIA POIVRON
A1: FOCACCIA | F1: : | G1: TOMATE MOZZA | N1: A VERIFIER
A3: RECETTE PREVUE POUR : | C3: 1 | E3: Vous la dupliquez pour : | H3: 2
A5: Prix de revient unitaire : | C5: =K12 -> 10.15 | F5: marge | G5: coef | H5: tva | I5: ht | K5: ttc
K6: 6
A7: avec emballage : | C7: =C5+C9 -> 10.16 | D7: =C5+C11 -> 10.16 | F7: =I7-C7 -> -4.499622642 | G7: =I7/C7 -> 0.5571237558 | H7: ES 6 | I7: =K6/1.06 -> 5.660377358 | J7: ToGo
K8: 6
A9: Emballage ToGo : | C9: =G31+G32 -> 0.01 | D9: =C9/C7 -> 0.0009842519685 | F9: =I9-D7 -> -4.802857143 | G9: =I9/D7 -> 0.5272778403 | H9: ES 12 | I9: =K8/1.12 -> 5.357142857 | J9: Sp
A11: Emballage Sp : | C11: =O31+O32 -> 0.01 | D11: =C11/D7 -> 0.0009842519685 | F11: Prix kg/l / unité | G11: Poids brut recette | H11: Unité | I11: % perte | J11: brut 1 part | K11: Cout 1 part | L11: prix de revient | M11: brut à faire | N11: prix de revient
A12: 0 | B12: Produits | F12: ht | K12: =SUM(K14:K29) -> 10.15 | L12: =K12*H3 -> 20.3 | N12: =SUM(N14:O29) -> 20.3 | P12: FOURNISSEUR
A14: MB FOCCACIA TOMATE PETITE (170g) | F14: =VLOOKUP(A14,PRIXINGRE,3,0) -> 5 | G14: 1 | H14: =IFERROR(VLOOKUP(A14,UNITINGRE,2,0),"") -> pièce | I14: =IFERROR(VLOOKUP(A14,UNITINGRE,10,0),"") -> 0 | J14: =IFERROR((G14/$C$3)+(((G14/$C$3)*I14)),"") -> 1 | K14: =IFERROR((J14*F14),"") -> 5 | M14: =IFERROR((ROUNDUP((J14*$H$3),2)),"") -> 2 | N14: =IFERROR((M14*F14),"") -> 10 | P14: =VLOOKUP(A14,GDEBASE,8,0) -> BAKER MA
A15: Mascarpone | F15: 5 | G15: 0.03 | H15: kg | I15: 0 | J15: 0.03 | K15: =IFERROR((J15*F15),"") -> 0.15 | M15: =IFERROR((ROUNDUP((J15*$H$3),2)),"") -> 0.06 | N15: =IFERROR((M15*F15),"") -> 0.3 | P15: LOBET
A16: poivron rouge avila (dose 50g) | F16: 5 | G16: 1 | H16: pièce | K16: =IFERROR((J16*F16),"") ->  | P16: METRO
A17: Aubergines huile d'olive 1Tranche | F17: 5 | G17: 1 | H17: pièce | I17: 0 | J17: 1 | K17: =IFERROR((J17*F17),"") -> 5 | M17: 2 | N17: 10 | P17: CIABATTA MANIA
F18: 0 | P18: 0
F19: 0 | K19: =IFERROR((J19*F19),"") ->  | P19: 0
F20: 0 | P20: 0
F21: 0 | P21: 0
F22: 0 | P22: 0
F23: 0 | P23: 0
F24: 0 | P24: 0
F25: 0 | P25: 0
F26: 0 | P26: 0
F27: 0 | P27: 0
F28: 0 | P28: 0
F29: 0 | P29: 0
B30: Emballage TOGO | E30: Qte | F30: price | G30: prix U | H30: Emballage SUR PLACE | M30: Qte | N30: price | O30: prix U
A31: 1 | B31: #pack DWICH ToGo | E31: 1 | F31: =VLOOKUP(B31,PRIXE,2,0) -> 0.01 | G31: =E31*F31 -> 0.01 | H31: 3 | I31: #pack DWICH Sp | M31: 1 | N31: =VLOOKUP(I31,PRIXE,2,0) -> 0.01 | O31: =M31*N31 -> 0.01
A32: 2 | B32: 0 | E32: 1 | F32: =VLOOKUP(B32,PRIXE,2,0) -> 0 | G32: =E32*F32 -> 0 | H32: 4 | I32: 0 | N32: =VLOOKUP(I32,PRIXE,2,0) -> 0 | O32: =M32*N32 -> 0
A33: Etape de la recette
A34: 1 | G34: 11
A35: 2 | G35: 12
A36: 3 | G36: 13
A37: 4 | G37: 14
A38: 5 | G38: 15
A39: 6 | G39: 16
A40: 7 | G40: CALORIES (kcal) | J40: =K41+K42+K43+O41 -> 0
A41: 8 | G41: Protéines (g) | K41: =J41*4 -> 0 | L41: Fibres (g) | O41: =N41*2 -> 0
A42: 9 | G42: Lipides (g) | K42: =J42*9 -> 0 | L42: AGSaturés (g)
A43: 10 | G43: Glucides (g) | K43: =J43*4 -> 0
A44: Forme & Dimension :
A46: Cuisson & dressage :
A48: Liste des allergènes :
B49: GLUTEN | D49: GLUCOSE | G49: GRAINES | J49: CÉLERI | M49: CRUSTACÉS
B50: LACTOSE / DAIRY | D50: ARACHIDE | G50: FRUITS À COQUE | J50: SULFITES | M50: POISSON
B51: OEUF | D51: MOUTARDE | G51: SOJA | J51: PORC | M51: VIANDE
B57: COMMANDE | D57: pour | F57: =H3 -> 2 | G57: =CONCATENATE(A1, F1,G1) -> FOCACCIA : TOMATE MOZZA
B59: qte | C59: unité | D59: liste | I59: price | M59: Total
B60: =M14 -> 2 | C60: =H14 -> pièce | D60: =A14 -> MB FOCCACIA TOMATE PETITE (170g) | I60: =F14 -> 5 | M60: =N14 -> 10
B61: 0.06 | C61: kg | D61: =A15 -> Mascarpone | I61: =F15 -> 5 | M61: 0.3
C62: pièce | D62: poivron rouge avila (dose 50g) | I62: 5
B63: 2 | C63: pièce | D63: Aubergines huile d'olive 1Tranche | I63: 5 | M63: 10
D64: 0 | I64: 0
D65: 0 | I65: 0
D66: 0 | I66: 0
D67: 0 | I67: 0
D68: 0 | I68: 0
D69: 0 | I69: 0
D70: 0 | I70: 0
D71: 0 | I71: 0
D72: 0 | I72: 0
D73: 0 | I73: 0
D74: 0 | I74: 0
D75: =B29 -> 0 | I75: 0
M76: =SUM(M60:M75) -> 20.3

Sheet 05 FOCACCIA tomate mozza
A1: FOCACCIA | F1: : | G1: TOMATE MOZZA | N1: A VERIFIER
A3: RECETTE PREVUE POUR : | C3: 1 | E3: Vous la dupliquez pour : | H3: 2
A5: Prix de revient unitaire : | C5: =K12 -> 11.3845 | F5: marge | G5: coef | H5: tva | I5: ht | K5: ttc
K6: 6
A7: avec emballage : | C7: =C5+C9 -> 11.3945 | D7: =C5+C11 -> 11.3945 | F7: =I7-C7 -> -5.734122642 | G7: =I7/C7 -> 0.4967639965 | H7: ES 6 | I7: =K6/1.06 -> 5.660377358 | J7: ToGo
K8: 6
A9: Emballage ToGo : | C9: =G31+G32 -> 0.01 | D9: =C9/C7 -> 0.0008776163939 | F9: =I9-D7 -> -6.037357143 | G9: =I9/D7 -> 0.4701516396 | H9: ES 12 | I9: =K8/1.12 -> 5.357142857 | J9: Sp
A11: Emballage Sp : | C11: =O31+O32 -> 0.01 | D11: =C11/D7 -> 0.0008776163939 | F11: Prix kg/l / unité | G11: Poids brut recette | H11: Unité | I11: % perte | J11: brut 1 part | K11: Cout 1 part | L11: prix de revient | M11: brut à faire | N11: prix de revient
A12: 0 | B12: Produits | F12: ht | K12: =SUM(K14:K29) -> 11.3845 | L12: =K12*H3 -> 22.769 | N12: =SUM(N14:O29) -> 22.85 | P12: FOURNISSEUR
A14: MB FOCCACIA OLIVE PETITE (170g) | F14: =VLOOKUP(A14,PRIXINGRE,3,0) -> 5 | G14: 1 | H14: =IFERROR(VLOOKUP(A14,UNITINGRE,2,0),"") -> pièce | I14: =IFERROR(VLOOKUP(A14,UNITINGRE,10,0),"") -> 0 | J14: =IFERROR((G14/$C$3)+(((G14/$C$3)*I14)),"") -> 1 | K14: =IFERROR((J14*F14),"") -> 5 | M14: =IFERROR((ROUNDUP((J14*$H$3),2)),"") -> 2 | N14: =IFERROR((M14*F14),"") -> 10 | P14: =VLOOKUP(A14,GDEBASE,8,0) -> BAKER MA
A15: Pesto rosso | F15: 5 | G15: 0.03 | H15: kg | I15: 0.03 | J15: 0.0309 | K15: =IFERROR((J15*F15),"") -> 0.1545 | M15: =IFERROR((ROUNDUP((J15*$H$3),2)),"") -> 0.07 | N15: =IFERROR((M15*F15),"") -> 0.35 | P15: METRO
A16: Tomate fraiche | F16: 5 | G16: 0.08 | H16: kg | I16: 0.2 | J16: 0.096 | K16: =IFERROR((J16*F16),"") -> 0.48 | M16: 0.2 | N16: 1 | P16: JOSA
A17: Mozzarella galbani (pain de 1kg) | F17: 5 | G17: 0.05 | H17: kg | I17: 0 | J17: 0.05 | K17: =IFERROR((J17*F17),"") -> 0.25 | M17: 0.1 | N17: 0.5 | P17: LOBET
A18: salade roquette botte dose dwich (5g) | F18: 5 | G18: 1 | H18: pièce | I18: 0.1 | J18: 1.1 | K18: 5.5 | M18: 2.2 | N18: 11 | P18: JOSA
F19: 0 | K19: =IFERROR((J19*F19),"") ->  | P19: 0
F20: 0 | P20: 0
F21: 0 | P21: 0
F22: 0 | P22: 0
F23: 0 | P23: 0
F24: 0 | P24: 0
F25: 0 | P25: 0
F26: 0 | P26: 0
F27: 0 | P27: 0
F28: 0 | P28: 0
F29: 0 | P29: 0
B30: Emballage TOGO | E30: Qte | F30: price | G30: prix U | H30: Emballage SUR PLACE | M30: Qte | N30: price | O30: prix U
A31: 1 | B31: #pack DWICH ToGo | E31: 1 | F31: =VLOOKUP(B31,PRIXE,2,0) -> 0.01 | G31: =E31*F31 -> 0.01 | H31: 3 | I31: #pack DWICH Sp | M31: 1 | N31: =VLOOKUP(I31,PRIXE,2,0) -> 0.01 | O31: =M31*N31 -> 0.01
A32: 2 | B32: 0 | E32: 1 | F32: =VLOOKUP(B32,PRIXE,2,0) -> 0 | G32: =E32*F32 -> 0 | H32: 4 | I32: 0 | N32: =VLOOKUP(I32,PRIXE,2,0) -> 0 | O32: =M32*N32 -> 0
A33: Etape de la recette
A34: 1 | G34: 11
A35: 2 | G35: 12
A36: 3 | G36: 13
A37: 4 | G37: 14
A38: 5 | G38: 15
A39: 6 | G39: 16
A40: 7 | G40: CALORIES (kcal) | J40: =K41+K42+K43+O41 -> 0
A41: 8 | G41: Protéines (g) | K41: =J41*4 -> 0 | L41: Fibres (g) | O41: =N41*2 -> 0
A42: 9 | G42: Lipides (g) | K42: =J42*9 -> 0 | L42: AGSaturés (g)
A43: 10 | G43: Glucides (g) | K43: =J43*4 -> 0
A44: Forme & Dimension :
A46: Cuisson & dressage :
A48: Liste des allergènes :
B49: GLUTEN | D49: GLUCOSE | G49: GRAINES | J49: CÉLERI | M49: CRUSTACÉS
B50: LACTOSE / DAIRY | D50: ARACHIDE | G50: FRUITS À COQUE | J50: SULFITES | M50: POISSON
B51: OEUF | D51: MOUTARDE | G51: SOJA | J51: PORC | M51: VIANDE
B57: COMMANDE | D57: pour | F57: =H3 -> 2 | G57: =CONCATENATE(A1, F1,G1) -> FOCACCIA : TOMATE MOZZA
B59: qte | C59: unité | D59: liste | I59: price | M59: Total
B60: =M14 -> 2 | C60: =H14 -> pièce | D60: =A14 -> MB FOCCACIA OLIVE PETITE (170g) | I60: =F14 -> 5 | M60: =N14 -> 10
B61: 0.07 | C61: kg | D61: =A15 -> Pesto rosso | I61: =F15 -> 5 | M61: 0.35
B62: 0.2 | C62: kg | D62: Tomate fraiche | I62: 5 | M62: 1
B63: 0.1 | C63: kg | D63: Mozzarella galbani (pain de 1kg) | I63: 5 | M63: 0.5
B64: 2.2 | C64: pièce | D64: salade roquette botte dose dwich (5g) | I64: 5 | M64: 11
D65: 0 | I65: 0
D66: 0 | I66: 0
D67: 0 | I67: 0
D68: 0 | I68: 0
D69: 0 | I69: 0
D70: 0 | I70: 0
D71: 0 | I71: 0
D72: 0 | I72: 0
D73: 0 | I73: 0
D74: 0 | I74: 0
D75: =B29 -> 0 | I75: 0
M76: =SUM(M60:M75) -> 22.85

Sheet 06 CIAB CHEDDAR BACON
A1: CIABATTA | F1: : | G1: Cheddar bacon | N1: ok
A3: RECETTE PREVUE POUR : | C3: 1 | E3: Vous la dupliquez pour : | H3: 2
A5: Prix de revient unitaire : | C5: =K12 -> 15.445 | F5: marge | G5: coef | H5: tva | I5: ht | K5: ttc
K6: 6
A7: avec emballage : | C7: =C5+C9 -> 15.455 | D7: =C5+C11 -> 15.455 | F7: =I7-C7 -> -9.794622642 | G7: =I7/C7 -> 0.3662489394 | H7: ES 6 | I7: =K6/1.06 -> 5.660377358 | J7: ToGo
K8: 6
A9: Emballage ToGo : | C9: =G31+G32 -> 0.01 | D9: =C9/C7 -> 0.0006470397929 | F9: =I9-D7 -> -10.09785714 | G9: =I9/D7 -> 0.3466284605 | H9: ES 12 | I9: =K8/1.12 -> 5.357142857 | J9: Sp
A11: Emballage Sp : | C11: =O31+O32 -> 0.01 | D11: =C11/D7 -> 0.0006470397929 | F11: Prix kg/l / unité | G11: Poids brut recette | H11: Unité | I11: % perte | J11: brut 1 part | K11: Cout 1 part | L11: prix de revient | M11: brut à faire | N11: prix de revient
A12: 0 | B12: Produits | F12: ht | K12: =SUM(K14:K29) -> 15.445 | L12: =K12*H3 -> 30.89 | N12: =SUM(N14:O29) -> 31 | P12: FOURNISSEUR
A14: MB CIABATTA | F14: =VLOOKUP(A14,PRIXINGRE,3,0) -> 5 | G14: 1 | H14: =IFERROR(VLOOKUP(A14,UNITINGRE,2,0),"") -> pièce | I14: =IFERROR(VLOOKUP(A14,UNITINGRE,10,0),"") -> 0 | J14: =IFERROR((G14/$C$3)+(((G14/$C$3)*I14)),"") -> 1 | K14: =IFERROR((J14*F14),"") -> 5 | M14: =IFERROR((ROUNDUP((J14*$H$3),2)),"") -> 2 | N14: =IFERROR((M14*F14),"") -> 10 | P14: =VLOOKUP(A14,GDEBASE,8,0) -> BAKER MA
A15: Cheddar tranché (dose : 2,5 demi T =25g) | E15: 3DT | F15: 5 | G15: 1 | H15: pièce | I15: 0 | J15: 1 | K15: =IFERROR((J15*F15),"") -> 5 | M15: =IFERROR((ROUNDUP((J15*$H$3),2)),"") -> 2 | N15: =IFERROR((M15*F15),"") -> 10 | P15: LOBET
A16: Courgette vapeur 1 Tranche | E16: 1T | F16: 5 | G16: 1 | H16: pièce | I16: 0 | J16: 1 | K16: =IFERROR((J16*F16),"") -> 5 | M16: 2 | N16: 10 | P16: CIABATTA MANIA
A17: Bacon (lard fumé 2mm) tranché | E17: 3T | F17: 5 | G17: 0.04 | H17: kg | I17: 0.3 | J17: 0.052 | K17: =IFERROR((J17*F17),"") -> 0.26 | M17: 0.11 | N17: 0.55 | P17: VT FOOD
A18: Tomate fraiche | E18: 3T | F18: 5 | G18: 0.03 | H18: kg | I18: 0.2 | J18: 0.036 | K18: 0.18 | M18: 0.08 | N18: 0.4 | P18: JOSA
A19: Origan | F19: 5 | G19: 0.001 | H19: kg | I19: 0 | J19: 0.001 | K19: =IFERROR((J19*F19),"") -> 0.005 | M19: 0.01 | N19: 0.05 | P19: METRO
F20: 0 | P20: 0
F21: 0 | P21: 0
F22: 0 | P22: 0
F23: 0 | P23: 0
F24: 0 | P24: 0
F25: 0 | P25: 0
F26: 0 | P26: 0
F27: 0 | P27: 0
F28: 0 | P28: 0
F29: 0 | P29: 0
B30: Emballage TOGO | E30: Qte | F30: price | G30: prix U | H30: Emballage SUR PLACE | M30: Qte | N30: price | O30: prix U
A31: 1 | B31: #pack CIAB ToGo | E31: 1 | F31: =VLOOKUP(B31,PRIXE,2,0) -> 0.01 | G31: =E31*F31 -> 0.01 | H31: 3 | I31: #pack CIAB Sp | M31: 1 | N31: =VLOOKUP(I31,PRIXE,2,0) -> 0.01 | O31: =M31*N31 -> 0.01
A32: 2 | E32: 1 | F32: =VLOOKUP(B32,PRIXE,2,0) -> 0 | G32: =E32*F32 -> 0 | H32: 4 | M32: 1 | N32: =VLOOKUP(I32,PRIXE,2,0) -> 0 | O32: =M32*N32 -> 0
A33: Etape de la recette
A34: 1 | B34: Coupez une tranche et 1/2 de cheddar dans la sens de la longueur | G34: 11
A35: 2 | B35: Disposez 1 tranche de courgette cuite vapeur | G35: 12
A36: 3 | B36: Ajoutez 2-3 tranches de bacon | G36: 13
A37: 4 | B37: Garnir de 2 fines rondelles de tomate fraiche | G37: 14
A38: 5 | B38: Parsemez d'origan sec | G38: 15
A39: 6 | G39: 16
A40: 7 | G40: CALORIES (kcal)
A41: 8 | G41: Protéines (g) | K41: =J41*4 -> 0 | L41: Fibres (g) | O41: =N41*2 -> 0
A42: 9 | G42: Lipides (g) | K42: =J42*9 -> 0 | L42: AGSaturés (g)
A43: 10 | G43: Glucides (g) | K43: =J43*4 -> 0
A44: Forme & Dimension :
A46: Cuisson & dressage :
A50: Liste des allergènes :
B55: COMMANDE | D55: pour | F55: =H3 -> 2 | G55: =CONCATENATE(A1, F1,G1) -> CIABATTA : Cheddar bacon
B57: qte | C57: unité | D57: liste | I57: price | M57: Total
B58: =M14 -> 2 | C58: =H14 -> pièce | D58: =A14 -> MB CIABATTA | I58: =F14 -> 5 | M58: =N14 -> 10
B59: 2 | C59: pièce | D59: =A15 -> Cheddar tranché (dose : 2,5 demi T =25g) | I59: =F15 -> 5 | M59: 10
B60: 2 | C60: pièce | D60: Courgette vapeur 1 Tranche | I60: 5 | M60: 10
B61: 0.11 | C61: kg | D61: Bacon (lard fumé 2mm) tranché | I61: 5 | M61: 0.55
B62: 0.08 | C62: kg | D62: Tomate fraiche | I62: 5 | M62: 0.4
B63: 0.01 | C63: kg | D63: Origan | I63: 5 | M63: 0.05
D64: 0 | I64: 0
D65: 0 | I65: 0
D66: 0 | I66: 0
D67: 0 | I67: 0
D68: 0 | I68: 0
D69: 0 | I69: 0
D70: 0 | I70: 0
D71: 0 | I71: 0
D72: 0 | I72: 0
D73: =B29 -> 0 | I73: 0
M74: =SUM(M58:M73) -> 31

Sheet 07 SAND BAGUETTE THONMAYO
A1: BAGUETTE | F1: : | G1: Thon mayonnaise | N1: 150 grs
A3: RECETTE PREVUE POUR : | C3: 1 | E3: Vous la dupliquez pour : | H3: 2
A5: Prix de revient unitaire : | C5: =K12 -> 5.4 | F5: marge | G5: coef | H5: tva | I5: ht | K5: ttc
K6: 4.1
A7: avec emballage : | C7: =C5+C9 -> 5.41 | D7: =C5+C11 -> 5.41 | F7: =I7-C7 -> -1.542075472 | G7: =I7/C7 -> 0.7149583232 | H7: ES 6 | I7: =K6/1.06 -> 3.867924528 | J7: ToGo
K8: 4.1
A9: Emballage ToGo : | C9: =G31+G32 -> 0.01 | D9: =C9/C7 -> 0.001848428835 | F9: =I9-D7 -> -1.749285714 | G9: =I9/D7 -> 0.6766569844 | H9: ES 12 | I9: =K8/1.12 -> 3.660714286 | J9: Sp
A11: Emballage Sp : | C11: =O31+O32 -> 0.01 | D11: =C11/D7 -> 0.001848428835 | F11: Prix kg/l / unité | G11: Poids brut recette | H11: Unité | I11: % perte | J11: brut 1 part | K11: Cout 1 part | L11: prix de revient | M11: brut à faire | N11: prix de revient
A12: 0 | B12: Produits | F12: ht | K12: =SUM(K14:K29) -> 5.4 | L12: =K12*H3 -> 10.8 | N12: =SUM(N14:O29) -> 10.8
A14: MB BAGUETTE 1/2 | F14: =VLOOKUP(A14,PRIXINGRE,3,0) -> 5 | G14: 1 | H14: =IFERROR(VLOOKUP(A14,UNITINGRE,2,0),"") -> pièce | I14: =IFERROR(VLOOKUP(A14,UNITINGRE,10,0),"") -> 0 | J14: =IFERROR((G14/$C$3)+(((G14/$C$3)*I14)),"") -> 1 | K14: =IFERROR((J14*F14),"") -> 5 | M14: =IFERROR((ROUNDUP((J14*$H$3),2)),"") -> 2 | N14: =IFERROR((M14*F14),"") -> 10 | P14: =VLOOKUP(A14,GDEBASE,8,0) -> BAKER MA
A15: Mélange thon mayonnaise | F15: 5 | G15: 0.08 | H15: kg | I15: 0 | J15: 0.08 | K15: =IFERROR((J15*F15),"") -> 0.4 | M15: =IFERROR((ROUNDUP((J15*$H$3),2)),"") -> 0.16 | N15: =IFERROR((M15*F15),"") -> 0.8 | P15: CIABATTA MANIA
F16: 0 | K16: =IFERROR((J16*F16),"") ->  | P16: 0
F17: 0 | K17: =IFERROR((J17*F17),"") ->  | P17: 0
F18: 0 | P18: 0
F19: 0 | K19: =IFERROR((J19*F19),"") ->  | P19: 0
F20: 0 | P20: 0
F21: 0 | P21: 0
F22: 0 | P22: 0
F23: 0 | P23: 0
F24: 0 | P24: 0
F25: 0 | P25: 0
F26: 0 | P26: 0
F27: 0 | P27: 0
F28: 0 | P28: 0
F29: 0 | P29: 0
B30: Emballage | E30: Qte | F30: price | G30: prix U | H30: Emballage | M30: Qte | N30: price | O30: prix U
A31: 1 | B31: #pack DWICH ToGo | E31: 1 | F31: =VLOOKUP(B31,PRIXE,2,0) -> 0.01 | G31: =E31*F31 -> 0.01 | H31: 3 | I31: #pack DWICH Sp | M31: 1 | N31: =VLOOKUP(I31,PRIXE,2,0) -> 0.01 | O31: =M31*N31 -> 0.01
A32: 2 | B32: 0 | E32: 1 | F32: =VLOOKUP(B32,PRIXE,2,0) -> 0 | G32: =E32*F32 -> 0 | H32: 4 | I32: 0 | M32: 1 | N32: =VLOOKUP(I32,PRIXE,2,0) -> 0 | O32: =M32*N32 -> 0
A33: Etape de la recette
A34: 1 | B34: Tartinez de mascarpone | G34: 11
A35: 2 | B35: Disposez 1 tranche de gouda | G35: 12
A36: 3 | B36: Ajoutez 1 tranche de jambon blanc | G36: 13
A37: 4 | B37: Garnir d'une feuille de salade iceberg | G37: 14
A38: 5 | G38: 15
A39: 6 | G39: 16
A40: 7 | G40: CALORIES (kcal) | J40: =K41+K42+K43+O41 -> 0
A41: 8 | G41: Protéines (g) | K41: =J41*4 -> 0 | L41: Fibres (g) | O41: =N41*2 -> 0
A42: 9 | G42: Lipides (g) | K42: =J42*9 -> 0 | L42: AGSaturés (g)
A43: 10 | G43: Glucides (g) | K43: =J43*4 -> 0
A44: Forme & Dimension :
A46: Cuisson & dressage :
A48: Liste des allergènes :
A49: X | B49: GLUTEN | D49: GLUCOSE | G49: GRAINES | J49: CÉLERI | M49: CRUSTACÉS
A50: X | B50: LACTOSE / DAIRY | D50: ARACHIDE | G50: FRUITS À COQUE | J50: SULFITES | M50: POISSON
B51: OEUF | D51: MOUTARDE | G51: SOJA | J51: PORC | L51: X | M51: VIANDE
B57: COMMANDE | D57: pour | F57: =H3 -> 2 | G57: =CONCATENATE(A1, F1,G1) -> BAGUETTE : Thon mayonnaise
B59: qte | C59: unité | D59: liste | I59: price | M59: Total
B60: =M14 -> 2 | C60: =H14 -> pièce | D60: =A14 -> MB BAGUETTE 1/2 | I60: =F14 -> 5 | M60: =N14 -> 10
B61: 0.16 | C61: kg | D61: =A15 -> Mélange thon mayonnaise | I61: =F15 -> 5 | M61: 0.8
D62: 0 | I62: 0
D63: 0 | I63: 0
D64: 0 | I64: 0
D65: 0 | I65: 0
D66: 0 | I66: 0
D67: 0 | I67: 0
D68: 0 | I68: 0
D69: 0 | I69: 0
D70: 0 | I70: 0
D71: 0 | I71: 0
D72: 0 | I72: 0
D73: 0 | I73: 0
D74: 0 | I74: 0
D75: =B29 -> 0 | I75: 0
M76: =SUM(M60:M75) -> 10.8

Sheet 07 SAND FLUTE brie
A1: Flute noix raisin | F1: : | G1: Brie de Meaux | N1: 150 grs
A3: RECETTE PREVUE POUR : | C3: 1 | E3: Vous la dupliquez pour : | H3: 2
A5: Prix de revient unitaire : | C5: =K12 -> 5.3 | F5: marge | G5: coef | H5: tva | I5: ht | K5: ttc
K6: 4
A7: avec emballage : | C7: =C5+C9 -> 5.31 | D7: =C5+C11 -> 5.31 | F7: =I7-C7 -> -1.536415094 | G7: =I7/C7 -> 0.7106562911 | H7: ES 6 | I7: =K6/1.06 -> 3.773584906 | J7: ToGo
K8: 4
A9: Emballage ToGo : | C9: =G31+G32 -> 0.01 | D9: =C9/C7 -> 0.001883239171 | F9: =I9-D7 -> -1.738571429 | G9: =I9/D7 -> 0.6725854183 | H9: ES 12 | I9: =K8/1.12 -> 3.571428571 | J9: Sp
A11: Emballage Sp : | C11: =O31+O32 -> 0.01 | D11: =C11/D7 -> 0.001883239171 | F11: Prix kg/l / unité | G11: Poids brut recette | H11: Unité | I11: % perte | J11: brut 1 part | K11: Cout 1 part | L11: prix de revient | M11: brut à faire | N11: prix de revient
A12: 0 | B12: Produits | F12: ht | K12: =SUM(K14:K29) -> 5.3 | L12: =K12*H3 -> 10.6 | N12: =SUM(N14:O29) -> 10.6 | P12: FOURNISSEUR
A14: MB FLUTE AUX NOIX-RAISINS | F14: =VLOOKUP(A14,PRIXINGRE,3,0) -> 5 | G14: 1 | H14: =IFERROR(VLOOKUP(A14,UNITINGRE,2,0),"") -> pièce | I14: =IFERROR(VLOOKUP(A14,UNITINGRE,10,0),"") -> 0 | J14: =IFERROR((G14/$C$3)+(((G14/$C$3)*I14)),"") -> 1 | K14: =IFERROR((J14*F14),"") -> 5 | M14: =IFERROR((ROUNDUP((J14*$H$3),2)),"") -> 2 | N14: =IFERROR((M14*F14),"") -> 10 | P14: =VLOOKUP(A14,GDEBASE,8,0) -> BAKER MA
A15: Brie de Meaux | F15: 5 | G15: 0.06 | H15: kg | I15: 0 | J15: 0.06 | K15: =IFERROR((J15*F15),"") -> 0.3 | M15: =IFERROR((ROUNDUP((J15*$H$3),2)),"") -> 0.12 | N15: =IFERROR((M15*F15),"") -> 0.6 | P15: LOBET
A16: roquette botte dose dwich (5g) | G16: 1 | K16: =IFERROR((J16*F16),"") -> 
F17: 0 | K17: =IFERROR((J17*F17),"") ->  | P17: 0
F18: 0 | P18: 0
F19: 0 | K19: =IFERROR((J19*F19),"") ->  | P19: 0
F20: 0 | P20: 0
F21: 0 | P21: 0
F22: 0 | P22: 0
F23: 0 | P23: 0
F24: 0 | P24: 0
F25: 0 | P25: 0
F26: 0 | P26: 0
F27: 0 | P27: 0
F28: 0 | P28: 0
F29: 0 | P29: 0
B30: Emballage | E30: Qte | F30: price | G30: prix U | H30: Emballage | M30: Qte | N30: price | O30: prix U
A31: 1 | B31: #pack DWICH ToGo | E31: 1 | F31: =VLOOKUP(B31,PRIXE,2,0) -> 0.01 | G31: =E31*F31 -> 0.01 | H31: 3 | I31: #pack DWICH Sp | M31: 1 | N31: =VLOOKUP(I31,PRIXE,2,0) -> 0.01 | O31: =M31*N31 -> 0.01
A32: 2 | B32: 0 | E32: 1 | F32: =VLOOKUP(B32,PRIXE,2,0) -> 0 | G32: =E32*F32 -> 0 | H32: 4 | I32: 0 | M32: 1 | N32: =VLOOKUP(I32,PRIXE,2,0) -> 0 | O32: =M32*N32 -> 0
A33: Etape de la recette
A34: 1 | B34: Disposez 1 tranche de brie sur la longueur | G34: 11
A35: 2 | B35: Garnir de quelques feuilles de roquette | G35: 12
A36: 3 | G36: 13
A37: 4 | G37: 14
A38: 5 | G38: 15
A39: 6 | G39: 16
A40: 7 | G40: CALORIES (kcal) | J40: =K41+K42+K43+O41 -> 0
A41: 8 | G41: Protéines (g) | K41: =J41*4 -> 0 | L41: Fibres (g) | O41: =N41*2 -> 0
A42: 9 | G42: Lipides (g) | K42: =J42*9 -> 0 | L42: AGSaturés (g)
A43: 10 | G43: Glucides (g) | K43: =J43*4 -> 0
A44: Forme & Dimension :
A46: Cuisson & dressage :
A48: Liste des allergènes :
A49: X | B49: GLUTEN | D49: GLUCOSE | G49: GRAINES | J49: CÉLERI | M49: CRUSTACÉS
A50: X | B50: LACTOSE / DAIRY | D50: ARACHIDE | G50: FRUITS À COQUE | J50: SULFITES | M50: POISSON
B51: OEUF | D51: MOUTARDE | G51: SOJA | J51: PORC | M51: VIANDE
B53: COMMANDE | D53: pour | F53: =H3 -> 2 | G53: =CONCATENATE(A1, F1,G1) -> Flute noix raisin : Brie de Meaux
B55: qte | C55: unité | D55: liste | I55: price | M55: Total
B56: =M14 -> 2 | C56: =H14 -> pièce | D56: =A14 -> MB FLUTE AUX NOIX-RAISINS | I56: =F14 -> 5 | M56: =N14 -> 10
B57: 0.12 | C57: kg | D57: =A15 -> Brie de Meaux | I57: =F15 -> 5 | M57: 0.6
D58: roquette botte dose dwich (5g)
D59: 0 | I59: 0
D60: 0 | I60: 0
D61: 0 | I61: 0
D62: 0 | I62: 0
D63: 0 | I63: 0
D64: 0 | I64: 0
D65: 0 | I65: 0
D66: 0 | I66: 0
D67: 0 | I67: 0
D68: 0 | I68: 0
D69: 0 | I69: 0
D70: 0 | I70: 0
D71: =B29 -> 0 | I71: 0
M72: =SUM(M56:M71) -> 10.6

Sheet 07 SAND PAIN LAIT cheddar
A1: Pain au lait rond | F1: : | G1: CHEDDAR | N1: 150 grs
A3: RECETTE PREVUE POUR : | C3: 1 | E3: Vous la dupliquez pour : | H3: 2
A5: Prix de revient unitaire : | C5: =K12 -> 10.45 | F5: marge | G5: coef | H5: tva | I5: ht | K5: ttc
K6: 3
A7: avec emballage : | C7: =C5+C9 -> 10.46 | D7: =C5+C11 -> 10.46 | F7: =I7-C7 -> -7.629811321 | G7: =I7/C7 -> 0.2705725315 | H7: ES 6 | I7: =K6/1.06 -> 2.830188679 | J7: ToGo
K8: 3
A9: Emballage ToGo : | C9: =G31+G32 -> 0.01 | D9: =C9/C7 -> 0.0009560229446 | F9: =I9-D7 -> -7.781428571 | G9: =I9/D7 -> 0.2560775744 | H9: ES 12 | I9: =K8/1.12 -> 2.678571429 | J9: Sp
A11: Emballage Sp : | C11: =O31+O32 -> 0.01 | D11: =C11/D7 -> 0.0009560229446 | F11: Prix kg/l / unité | G11: Poids brut recette | H11: Unité | I11: % perte | J11: brut 1 part | K11: Cout 1 part | L11: prix de revient | M11: brut à faire | N11: prix de revient
A12: 0 | B12: Produits | F12: ht | K12: =SUM(K14:K29) -> 10.45 | L12: =K12*H3 -> 20.9 | N12: =SUM(N14:O29) -> 20.9 | P12: FOURNISSEUR
A14: MB Pain au lait ROND 80G | F14: =VLOOKUP(A14,PRIXINGRE,3,0) -> 5 | G14: 1 | H14: =IFERROR(VLOOKUP(A14,UNITINGRE,2,0),"") -> pièce | I14: =IFERROR(VLOOKUP(A14,UNITINGRE,10,0),"") -> 0 | J14: =IFERROR((G14/$C$3)+(((G14/$C$3)*I14)),"") -> 1 | K14: =IFERROR((J14*F14),"") -> 5 | M14: =IFERROR((ROUNDUP((J14*$H$3),2)),"") -> 2 | N14: =IFERROR((M14*F14),"") -> 10 | P14: =VLOOKUP(A14,GDEBASE,8,0) -> BAKER MA
A15: Mascarpone | F15: 5 | G15: 0.02 | H15: kg | I15: 0 | J15: 0.02 | K15: =IFERROR((J15*F15),"") -> 0.1 | M15: =IFERROR((ROUNDUP((J15*$H$3),2)),"") -> 0.04 | N15: =IFERROR((M15*F15),"") -> 0.2 | P15: LOBET
A16: Cheddar tranché | F16: 5 | G16: 0.02 | H16: kg | I16: 0 | J16: 0.02 | K16: =IFERROR((J16*F16),"") -> 0.1 | M16: 0.04 | N16: 0.2 | P16: LOBET
A17: salade iceberg 1 dose dwich 20g | F17: 5 | G17: 1 | H17: pièce | I17: 0.05 | J17: 1.05 | K17: =IFERROR((J17*F17),"") -> 5.25 | M17: 2.1 | N17: 10.5 | P17: JOSA
F18: 0 | P18: 0
F19: 0 | K19: =IFERROR((J19*F19),"") ->  | P19: 0
F20: 0 | P20: 0
F21: 0 | P21: 0
F22: 0 | P22: 0
F23: 0 | P23: 0
F24: 0 | P24: 0
F25: 0 | P25: 0
F26: 0 | P26: 0
F27: 0 | P27: 0
F28: 0 | P28: 0
F29: 0 | P29: 0
B30: Emballage | E30: Qte | F30: price | G30: prix U | H30: Emballage | M30: Qte | N30: price | O30: prix U
A31: 1 | B31: #pack DWICH ToGo | E31: 1 | F31: =VLOOKUP(B31,PRIXE,2,0) -> 0.01 | G31: =E31*F31 -> 0.01 | H31: 3 | I31: #pack DWICH Sp | M31: 1 | N31: =VLOOKUP(I31,PRIXE,2,0) -> 0.01 | O31: =M31*N31 -> 0.01
A32: 2 | B32: 0 | E32: 1 | F32: =VLOOKUP(B32,PRIXE,2,0) -> 0 | G32: =E32*F32 -> 0 | H32: 4 | I32: 0 | M32: 1 | N32: =VLOOKUP(I32,PRIXE,2,0) -> 0 | O32: =M32*N32 -> 0
A33: Etape de la recette
A34: 1 | B34: Tartinez de mascarpone | G34: 11
A35: 2 | B35: Disposez le saumon fumé plié | G35: 12
A36: 3 | B36: Parsemez d'aneth | G36: 13
A37: 4 | G37: 14
A38: 5 | G38: 15
A39: 6 | G39: 16
A40: 7 | G40: CALORIES (kcal) | J40: =K41+K42+K43+O41 -> 0
A41: 8 | G41: Protéines (g) | K41: =J41*4 -> 0 | L41: Fibres (g) | O41: =N41*2 -> 0
A42: 9 | G42: Lipides (g) | K42: =J42*9 -> 0 | L42: AGSaturés (g)
A43: 10 | G43: Glucides (g) | K43: =J43*4 -> 0
A44: Forme & Dimension :
A46: Cuisson & dressage :
A48: Liste des allergènes :
B49: GLUTEN | D49: GLUCOSE | G49: GRAINES | J49: CÉLERI | M49: CRUSTACÉS
B50: LACTOSE / DAIRY | D50: ARACHIDE | G50: FRUITS À COQUE | J50: SULFITES | M50: POISSON
B51: OEUF | D51: MOUTARDE | G51: SOJA | J51: PORC | M51: VIANDE
B53: COMMANDE | D53: pour | F53: =H3 -> 2 | G53: =CONCATENATE(A1, F1,G1) -> Pain au lait rond : CHEDDAR
B55: qte | C55: unité | D55: liste | I55: price | M55: Total
B56: =M14 -> 2 | C56: =H14 -> pièce | D56: =A14 -> MB Pain au lait ROND 80G | I56: =F14 -> 5 | M56: =N14 -> 10
B57: 0.04 | C57: kg | D57: =A15 -> Mascarpone | I57: =F15 -> 5 | M57: 0.2
B58: 0.04 | C58: kg | D58: Cheddar tranché | I58: 5 | M58: 0.2
B59: 2.1 | C59: pièce | D59: salade iceberg 1 dose dwich 20g | I59: 5 | M59: 10.5
D60: 0 | I60: 0
D61: 0 | I61: 0
D62: 0 | I62: 0
D63: 0 | I63: 0
D64: 0 | I64: 0
D65: 0 | I65: 0
D66: 0 | I66: 0
D67: 0 | I67: 0
D68: 0 | I68: 0
D69: 0 | I69: 0
D70: 0 | I70: 0
D71: =B29 -> 0 | I71: 0
M72: =SUM(M56:M71) -> 20.9

Sheet 08 Cheesecake Phil spéculoos
A1: CHEESECAKE | F1: : | G1: SPECULOOS
A3: RECETTE PREVUE POUR : | C3: 8 | E3: Vous la dupliquez pour : | H3: 2
A5: Prix de revient unitaire : | C5: =K12 -> 2.7 | F5: marge | G5: coef | H5: tva | I5: ht | K5: ttc
K6: 3.5
A7: avec emballage : | C7: =C5+C9 -> 2.71 | D7: =C5+C11 -> 2.71 | F7: =I7-C7 -> 0.5918867925 | G7: =I7/C7 -> 1.21840841 | H7: ES 6 | I7: =K6/1.06 -> 3.301886792 | J7: ToGo
K8: 3.5
A9: Emballage ToGo : | C9: =G31+G32 -> 0.01 | D9: =C9/C7 -> 0.0036900369 | F9: =I9-D7 -> 0.415 | G9: =I9/D7 -> 1.153136531 | H9: ES 12 | I9: =K8/1.12 -> 3.125 | J9: Sp
A11: Emballage Sp : | C11: =O31+O32 -> 0.01 | D11: =C11/D7 -> 0.0036900369 | F11: Prix kg/l / unité | G11: Poids brut recette | H11: Unité | I11: % perte | J11: brut 1 part | K11: Cout 1 part | L11: prix de revient | M11: brut à faire | N11: prix de revient
A12: 0 | B12: Produits | F12: ht | K12: =SUM(K14:K29) -> 2.7 | L12: =K12*H3 -> 5.4 | N12: =SUM(N14:O29) -> 5.5 | P12: FOURNISSEUR
A14: Philadelphia original | F14: =VLOOKUP(A14,PRIXINGRE,3,0) -> 5 | G14: 0.3 | H14: =IFERROR(VLOOKUP(A14,UNITINGRE,2,0),"") -> kg | I14: =IFERROR(VLOOKUP(A14,UNITINGRE,10,0),"") -> 0 | J14: =G14/$C$3 -> 0.0375 | K14: =J14*F14 -> 0.1875 | M14: =ROUNDUP((J14*$H$3),2) -> 0.08 | N14: =M14*F14 -> 0.4 | P14: =VLOOKUP(A14,GDEBASE,8,0) -> LOBET
A15: Sucre semoule | F15: 5 | G15: 0.15 | H15: kg | I15: 0 | J15: =G15/$C$3 -> 0.01875 | K15: =J15*F15 -> 0.09375 | M15: 0.04 | N15: 0.2 | P15: METRO
A16: Oeuf (entiers) | E16: 3 | F16: 5 | G16: 3 | H16: pièce | I16: 0 | J16: 0.375 | K16: 1.875 | M16: 0.75 | N16: 3.75 | P16: LOBET
A17: Fromage blanc gras 3k | F17: 5 | G17: 0.4 | H17: kg | I17: 0 | J17: 0.05 | K17: 0.25 | M17: 0.1 | N17: 0.5 | P17: LOBET
A18: beurre | F18: 5 | G18: 0.15 | H18: kg | I18: 0 | J18: 0.01875 | K18: 0.09375 | M18: 0.04 | N18: 0.2 | P18: LOBET
A19: Crème liquide | F19: 5 | G19: 0.03 | H19: Litre | I19: 0 | J19: 0.00375 | K19: 0.01875 | M19: 0.01 | N19: 0.05 | P19: LOBET
A20: farine fementante | F20: 5 | G20: 0.04 | H20: kg | I20: 0 | J20: 0.005 | K20: 0.025 | M20: 0.01 | N20: 0.05 | P20: METRO
A21: spéculoos miettes | F21: 5 | G21: 0.25 | H21: kg | I21: 0 | J21: 0.03125 | K21: 0.15625 | M21: 0.07 | N21: 0.35 | P21: METRO
F22: 0 | J22: 0 | K22: 0 | M22: 0 | N22: 0 | P22: 0
F23: 0 | J23: 0 | K23: 0 | M23: 0 | N23: 0 | P23: 0
F24: 0 | J24: 0 | K24: 0 | M24: 0 | N24: 0 | P24: 0
F25: 0 | J25: 0 | K25: 0 | M25: 0 | N25: 0 | P25: 0
F26: 0 | J26: 0 | K26: 0 | M26: 0 | N26: 0 | P26: 0
F27: 0 | J27: 0 | K27: 0 | M27: 0 | N27: 0 | P27: 0
F28: 0 | J28: 0 | K28: 0 | M28: 0 | N28: 0 | P28: 0
F29: 0 | J29: 0 | K29: 0 | M29: 0 | N29: 0 | P29: 0
B30: Emballage | E30: Qte | F30: price | G30: prix U | H30: Emballage | M30: Qte | N30: price | O30: prix U
A31: 1 | B31: #pack TARTE ToGo | E31: 1 | F31: =VLOOKUP(B31,PRIXE,2,0) -> 0.01 | G31: =E31*F31 -> 0.01 | H31: 3 | I31: #pack TARTE SP | M31: 1 | N31: =VLOOKUP(I31,PRIXE,2,0) -> 0.01 | O31: =M31*N31 -> 0.01
A32: 2 | B32: 0 | E32: 1 | F32: =VLOOKUP(B32,PRIXE,2,0) -> 0 | G32: =E32*F32 -> 0 | H32: 4 | I32: 0 | N32: =VLOOKUP(I32,PRIXE,2,0) -> 0 | O32: =M32*N32 -> 0
A33: Etape de la recette
A34: 1 | G34: 11
A35: 2 | G35: 12
A36: 3 | G36: 13
A37: 4 | G37: 14
A38: 5 | G38: 15
A39: 6 | G39: 16
A40: 7 | G40: CALORIES (kcal) | J40: =K41+K42+K43+O41 -> 0
A41: 8 | G41: Protéines (g) | K41: =J41*4 -> 0 | L41: Fibres (g) | O41: =N41*2 -> 0
A42: 9 | G42: Lipides (g) | K42: =J42*9 -> 0 | L42: AGSaturés (g)
A43: 10 | G43: Glucides (g) | K43: =J43*4 -> 0
A44: Forme & Dimension :
A46: Cuisson & dressage :
A50: Liste des allergènes :
B53: COMMANDE | D53: pour | F53: =H3 -> 2 | G53: =CONCATENATE(A1, F1,G1) -> CHEESECAKE : SPECULOOS
B55: qte | C55: unité | D55: liste | I55: price | M55: Total
B56: =M14 -> 0.08 | C56: =H14 -> kg | D56: =A14 -> Philadelphia original | I56: =F14 -> 5 | M56: =N14 -> 0.4
B57: 0.04 | C57: kg | D57: =A15 -> Sucre semoule | I57: =F15 -> 5 | M57: 0.2
B58: 0.75 | C58: pièce | D58: Oeuf (entiers) | I58: 5 | M58: 3.75
B59: 0.1 | C59: kg | D59: Fromage blanc gras 3k | I59: 5 | M59: 0.5
B60: 0.04 | C60: kg | D60: beurre | I60: 5 | M60: 0.2
B61: 0.01 | C61: Litre | D61: Crème liquide | I61: 5 | M61: 0.05
B62: 0.01 | C62: kg | D62: farine fementante | I62: 5 | M62: 0.05
B63: 0.07 | C63: kg | D63: spéculoos miettes | I63: 5 | M63: 0.35
B64: 0 | D64: 0 | I64: 0 | M64: 0
B65: 0 | D65: 0 | I65: 0 | M65: 0
B66: 0 | D66: 0 | I66: 0 | M66: 0
B67: 0 | D67: 0 | I67: 0 | M67: 0
B68: 0 | D68: 0 | I68: 0 | M68: 0
B69: 0 | D69: 0 | I69: 0 | M69: 0
B70: 0 | D70: 0 | I70: 0 | M70: 0
B71: 0 | D71: =B29 -> 0 | I71: 0 | M71: 0
M72: =SUM(M56:M71) -> 5.5

Sheet 08 FB nature
A1: FROMAGE BLANC | F1: : | G1: FRUITS ROUGES | N1: 170 g
A3: RECETTE PREVUE POUR : | C3: 1 | E3: Vous la dupliquez pour : | H3: 2
A5: Prix de revient unitaire : | C5: =K12 -> 0.85 | F5: marge | G5: coef | H5: tva | I5: ht | K5: ttc
K6: 3
A7: avec emballage : | C7: =C5+C9 -> 0.86 | D7: =C5+C11 -> 0.86 | F7: =I7-C7 -> 1.970188679 | G7: =I7/C7 -> 3.290917069 | H7: ES 6 | I7: =K6/1.06 -> 2.830188679 | J7: ToGo
K8: 3
A9: Emballage ToGo : | C9: =G31+G32 -> 0.01 | D9: =C9/C7 -> 0.01162790698 | F9: =I9-D7 -> 1.818571429 | G9: =I9/D7 -> 3.11461794 | H9: ES 12 | I9: =K8/1.12 -> 2.678571429 | J9: Sp
A11: Emballage Sp : | C11: =O31+O32 -> 0.01 | D11: =C11/D7 -> 0.01162790698 | F11: Prix kg/l / unité | G11: Poids brut recette | H11: Unité | I11: % perte | J11: brut 1 part | K11: Cout 1 part | L11: prix de revient | M11: brut à faire | N11: prix de revient
A12: 0 | B12: Produits | F12: ht | K12: =SUM(K14:K29) -> 0.85 | L12: =K12*H3 -> 1.7 | N12: =SUM(N14:O29) -> 1.7 | P12: FOURNISSEUR
A14: Fromage blanc gras 3k | F14: =VLOOKUP(A14,PRIXINGRE,3,0) -> 5 | G14: 0.17 | H14: =IFERROR(VLOOKUP(A14,UNITINGRE,2,0),"") -> kg | I14: =IFERROR(VLOOKUP(A14,UNITINGRE,10,0),"") -> 0 | J14: =G14/$C$3 -> 0.17 | K14: =J14*F14 -> 0.85 | M14: =ROUNDUP((J14*$H$3),2) -> 0.34 | N14: =M14*F14 -> 1.7 | P14: =VLOOKUP(A14,GDEBASE,8,0) -> LOBET
F15: 0 | J15: =G15/$C$3 -> 0 | K15: =J15*F15 -> 0 | M15: 0 | N15: 0 | P15: 0
F16: 0 | J16: 0 | K16: 0 | M16: 0 | N16: 0 | P16: 0
F17: 0 | J17: 0 | K17: 0 | M17: 0 | N17: 0 | P17: 0
F18: 0 | J18: 0 | K18: 0 | M18: 0 | N18: 0 | P18: 0
F19: 0 | J19: 0 | K19: 0 | M19: 0 | N19: 0 | P19: 0
F20: 0 | J20: 0 | K20: 0 | M20: 0 | N20: 0 | P20: 0
F21: 0 | J21: 0 | K21: 0 | M21: 0 | N21: 0 | P21: 0
F22: 0 | J22: 0 | K22: 0 | M22: 0 | N22: 0 | P22: 0
F23: 0 | J23: 0 | K23: 0 | M23: 0 | N23: 0 | P23: 0
F24: 0 | J24: 0 | K24: 0 | M24: 0 | N24: 0 | P24: 0
F25: 0 | J25: 0 | K25: 0 | M25: 0 | N25: 0 | P25: 0
F26: 0 | J26: 0 | K26: 0 | M26: 0 | N26: 0 | P26: 0
F27: 0 | J27: 0 | K27: 0 | M27: 0 | N27: 0 | P27: 0
F28: 0 | J28: 0 | K28: 0 | M28: 0 | N28: 0 | P28: 0
F29: 0 | J29: 0 | K29: 0 | M29: 0 | N29: 0 | P29: 0
B30: Emballage TOGO | E30: Qte | F30: price | G30: prix U | H30: Emballage SUR PLACE | M30: Qte | N30: price | O30: prix U
A31: 1 | B31: #pack YAOURT | E31: 1 | F31: =VLOOKUP(B31,PRIXE,2,0) -> 0.01 | G31: =E31*F31 -> 0.01 | H31: 3 | I31: #pack YAOURT | M31: 1 | N31: =VLOOKUP(I31,PRIXE,2,0) -> 0.01 | O31: =M31*N31 -> 0.01
A32: 2 | B32: 0 | E32: 1 | F32: =VLOOKUP(B32,PRIXE,2,0) -> 0 | G32: =E32*F32 -> 0 | H32: 4 | I32: 0 | N32: =VLOOKUP(I32,PRIXE,2,0) -> 0 | O32: =M32*N32 -> 0
A33: Etape de la recette
A34: 1 | G34: 11
A35: 2 | G35: 12
A36: 3 | G36: 13
A37: 4 | G37: 14
A38: 5 | G38: 15
A39: 6 | G39: 16
A40: 7 | G40: CALORIES (kcal) | J40: =K41+K42+K43+O41 -> 0
A41: 8 | G41: Protéines (g) | K41: =J41*4 -> 0 | L41: Fibres (g) | O41: =N41*2 -> 0
A42: 9 | G42: Lipides (g) | K42: =J42*9 -> 0 | L42: AGSaturés (g)
A43: 10 | G43: Glucides (g) | K43: =J43*4 -> 0
A44: Forme & Dimension :
A46: Cuisson & dressage :
A48: Liste des allergènes :
B49: GLUTEN | D49: GLUCOSE | G49: GRAINES | J49: CÉLERI | M49: CRUSTACÉS
B50: LACTOSE / DAIRY | D50: ARACHIDE | G50: FRUITS À COQUE | J50: SULFITES | M50: POISSON
B51: OEUF | D51: MOUTARDE | G51: SOJA | J51: PORC | M51: VIANDE
B57: COMMANDE | D57: pour | F57: =H3 -> 2 | G57: =CONCATENATE(A1, F1,G1) -> FROMAGE BLANC : FRUITS ROUGES
B59: qte | C59: unité | D59: liste | I59: price | M59: Total
B60: =M14 -> 0.34 | C60: =H14 -> kg | D60: =A14 -> Fromage blanc gras 3k | I60: =F14 -> 5 | M60: =N14 -> 1.7
B61: 0 | D61: =A15 -> 0 | I61: =F15 -> 0 | M61: 0
B62: 0 | D62: 0 | I62: 0 | M62: 0
B63: 0 | D63: 0 | I63: 0 | M63: 0
B64: 0 | D64: 0 | I64: 0 | M64: 0
B65: 0 | D65: 0 | I65: 0 | M65: 0
B66: 0 | D66: 0 | I66: 0 | M66: 0
B67: 0 | D67: 0 | I67: 0 | M67: 0
B68: 0 | D68: 0 | I68: 0 | M68: 0
B69: 0 | D69: 0 | I69: 0 | M69: 0
B70: 0 | D70: 0 | I70: 0 | M70: 0
B71: 0 | D71: 0 | I71: 0 | M71: 0
B72: 0 | D72: 0 | I72: 0 | M72: 0
B73: 0 | D73: 0 | I73: 0 | M73: 0
B74: 0 | D74: 0 | I74: 0 | M74: 0
B75: 0 | D75: =B29 -> 0 | I75: 0 | M75: 0
M76: =SUM(M60:M75) -> 1.7

Sheet 09 SOUPE CAROTTE
A1: POTAGE | F1: : | G1: CAROTTE
A3: RECETTE PREVUE POUR : | C3: 10 | D3: parts | E3: Vous la dupliquez pour : | H3: 2
A5: Prix de revient unitaire : | C5: =K12 -> 3.125 | F5: marge | G5: coef | H5: tva | I5: ht | K5: ttc
K6: 4
A7: avec emballage : | C7: =C5+C9 -> 3.135 | D7: =C5+C11 -> 3.135 | F7: =I7-C7 -> 0.6385849057 | G7: =I7/C7 -> 1.203695345 | H7: ES 6 | I7: =K6/1.06 -> 3.773584906 | J7: ToGo
K8: 4
A9: Emballage ToGo : | C9: =G31+G32 -> 0.01 | D9: =C9/C7 -> 0.003189792663 | F9: =I9-D7 -> 0.4364285714 | G9: =I9/D7 -> 1.139211666 | H9: ES 12 | I9: =K8/1.12 -> 3.571428571 | J9: Sp
A11: Emballage Sp : | C11: =O31+O32 -> 0.01 | D11: =C11/D7 -> 0.003189792663 | F11: Prix kg/l / unité | G11: Poids brut recette | H11: Unité | I11: % perte | J11: brut 1 part | K11: Cout 1 part | L11: prix de revient | M11: brut à faire | N11: prix de revient
A12: 0 | B12: Produits | F12: ht | K12: =SUM(K14:K29) -> 3.125 | L12: =K12*H3 -> 6.25 | N12: =SUM(N14:O29) -> 6.25 | P12: FOURNISSEUR
A14: Oignon | F14: =VLOOKUP(A14,PRIXINGRE,3,0) -> 5 | G14: 0.2 | H14: =IFERROR(VLOOKUP(A14,UNITINGRE,2,0),"") -> kg | I14: =IFERROR(VLOOKUP(A14,UNITINGRE,10,0),"") -> 0.1 | J14: =G14/$C$3 -> 0.02 | K14: =J14*F14 -> 0.1 | M14: =ROUNDUP((J14*$H$3),2) -> 0.04 | N14: =M14*F14 -> 0.2 | P14: =VLOOKUP(A14,GDEBASE,8,0) -> JOSA
A15: poireaux | F15: 5 | G15: 1 | H15: kg | I15: 0.2 | J15: =G15/$C$3 -> 0.1 | K15: =J15*F15 -> 0.5 | M15: 0.2 | N15: 1 | P15: JOSA
A16: beurre | F16: 5 | G16: 0.05 | H16: kg | I16: 0 | J16: 0.005 | K16: 0.025 | M16: 0.01 | N16: 0.05 | P16: LOBET
A17: Céleri branche | F17: 5 | G17: 0.5 | H17: kg | I17: 0.3 | J17: 0.05 | K17: 0.25 | M17: 0.1 | N17: 0.5 | P17: JOSA
A18: Carottes | F18: 5 | G18: 2 | H18: kg | I18: 0.2 | J18: 0.2 | K18: 1 | M18: 0.4 | N18: 2 | P18: JOSA
A19: MB GRAND PAIN LEVAIN 1 tranche | F19: 5 | G19: 1 | H19: pièce | I19: 0 | J19: 0.1 | K19: 0.5 | M19: 0.2 | N19: 1 | P19: BAKER MA
A20: MDO cuisine | F20: 5 | G20: 0.5 | H20: h | I20: 0 | J20: 0.05 | K20: 0.25 | M20: 0.1 | N20: 0.5 | P20: CIABATTA MANIA
A21: beurre dosette 10g | F21: 5 | G21: 1 | H21: pièce | I21: 0 | J21: 0.1 | K21: 0.5 | M21: 0.2 | N21: 1 | P21: LOBET
F22: 0 | J22: 0 | K22: 0 | M22: 0 | N22: 0 | P22: 0
F23: 0 | J23: 0 | K23: 0 | M23: 0 | N23: 0 | P23: 0
F24: 0 | J24: 0 | K24: 0 | M24: 0 | N24: 0 | P24: 0
F25: 0 | J25: 0 | K25: 0 | M25: 0 | N25: 0 | P25: 0
F26: 0 | J26: 0 | K26: 0 | M26: 0 | N26: 0 | P26: 0
F27: 0 | J27: 0 | K27: 0 | M27: 0 | N27: 0 | P27: 0
F28: 0 | J28: 0 | K28: 0 | M28: 0 | N28: 0 | P28: 0
F29: 0 | J29: 0 | K29: 0 | M29: 0 | N29: 0 | P29: 0
B30: Emballage TOGO | E30: Qte | F30: price | G30: prix U | H30: Emballage SUR PLACE | M30: Qte | N30: price | O30: prix U
A31: 1 | B31: #pack SOUPE ToGo | E31: 1 | F31: =VLOOKUP(B31,PRIXE,2,0) -> 0.01 | G31: =E31*F31 -> 0.01 | H31: 3 | I31: #pack SOUPE Sp | M31: 1 | N31: =VLOOKUP(I31,PRIXE,2,0) -> 0.01 | O31: =M31*N31 -> 0.01
A32: 2 | E32: 1 | F32: =VLOOKUP(B32,PRIXE,2,0) -> 0 | G32: =E32*F32 -> 0 | H32: 4 | M32: 1 | N32: =VLOOKUP(I32,PRIXE,2,0) -> 0 | O32: =M32*N32 -> 0
A33: Etape de la recette
A34: 1 | G34: 11
A35: 2 | G35: 12
A36: 3 | G36: 13
A37: 4 | G37: 14
A38: 5 | G38: 15
A39: 6 | G39: 16
A40: 7 | G40: CALORIES (kcal) | J40: =K41+K42+K43+O41 -> 0
A41: 8 | G41: Protéines (g) | K41: =J41*4 -> 0 | L41: Fibres (g) | O41: =N41*2 -> 0
A42: 9 | G42: Lipides (g) | K42: =J42*9 -> 0 | L42: AGSaturés (g)
A43: 10 | G43: Glucides (g) | K43: =J43*4 -> 0
A44: Forme & Dimension :
A46: Cuisson & dressage :
A50: Liste des allergènes :
B53: COMMANDE | D53: pour | F53: =H3 -> 2 | G53: =CONCATENATE(A1, F1,G1) -> POTAGE : CAROTTE
B55: qte | C55: unité | D55: liste | I55: price | M55: Total
B56: =M14 -> 0.04 | C56: =H14 -> kg | D56: =A14 -> Oignon | I56: =F14 -> 5 | M56: =N14 -> 0.2
B57: 0.2 | C57: kg | D57: =A15 -> poireaux | I57: =F15 -> 5 | M57: 1
B58: 0.01 | C58: kg | D58: beurre | I58: 5 | M58: 0.05
B59: 0.1 | C59: kg | D59: Céleri branche | I59: 5 | M59: 0.5
B60: 0.4 | C60: kg | D60: Carottes | I60: 5 | M60: 2
B61: 0.2 | C61: pièce | D61: MB GRAND PAIN LEVAIN 1 tranche | I61: 5 | M61: 1
B62: 0.1 | C62: h | D62: MDO cuisine | I62: 5 | M62: 0.5
B63: 0.2 | C63: pièce | D63: beurre dosette 10g | I63: 5 | M63: 1
B64: 0 | D64: 0 | I64: 0 | M64: 0
B65: 0 | D65: 0 | I65: 0 | M65: 0
B66: 0 | D66: 0 | I66: 0 | M66: 0
B67: 0 | D67: 0 | I67: 0 | M67: 0
B68: 0 | D68: 0 | I68: 0 | M68: 0
B69: 0 | D69: 0 | I69: 0 | M69: 0
B70: 0 | D70: 0 | I70: 0 | M70: 0
B71: 0 | D71: =B29 -> 0 | I71: 0 | M71: 0
M72: =SUM(M56:M71) -> 6.25

Sheet 09 SOUPE CHICON
A1: POTAGE | F1: : | G1: CHICON
A3: RECETTE PREVUE POUR : | C3: 10 | D3: parts | E3: Vous la dupliquez pour : | H3: 2
A5: Prix de revient unitaire : | C5: =K12 -> 2.958333333 | F5: marge | G5: coef | H5: tva | I5: ht | K5: ttc
K6: 4
A7: avec emballage : | C7: =C5+C9 -> 2.968333333 | D7: =C5+C11 -> 2.968333333 | F7: =I7-C7 -> 0.8052515723 | G7: =I7/C7 -> 1.271280709 | H7: ES 6 | I7: =K6/1.06 -> 3.773584906 | J7: ToGo
K8: 4
A9: Emballage ToGo : | C9: =G31+G32 -> 0.01 | D9: =C9/C7 -> 0.00336889388 | F9: =I9-D7 -> 0.6030952381 | G9: =I9/D7 -> 1.203176386 | H9: ES 12 | I9: =K8/1.12 -> 3.571428571 | J9: Sp
A11: Emballage Sp : | C11: =O31+O32 -> 0.01 | D11: =C11/D7 -> 0.00336889388 | F11: Prix kg/l / unité | G11: Poids brut recette | H11: Unité | I11: % perte | J11: brut 1 part | K11: Cout 1 part | L11: prix de revient | M11: brut à faire | N11: prix de revient
A12: 0 | B12: Produits | F12: ht | K12: =SUM(K14:K29) -> 2.958333333 | L12: =K12*H3 -> 5.916666667 | N12: =SUM(N14:O29) -> 5.95 | P12: FOURNISSEUR
A14: Oignon | F14: =VLOOKUP(A14,PRIXINGRE,3,0) -> 5 | G14: 0.2 | H14: =IFERROR(VLOOKUP(A14,UNITINGRE,2,0),"") -> kg | I14: =IFERROR(VLOOKUP(A14,UNITINGRE,10,0),"") -> 0.1 | J14: =G14/$C$3 -> 0.02 | K14: =J14*F14 -> 0.1 | M14: =ROUNDUP((J14*$H$3),2) -> 0.04 | N14: =M14*F14 -> 0.2 | P14: =VLOOKUP(A14,GDEBASE,8,0) -> JOSA
A15: poireaux | F15: 5 | G15: 1 | H15: kg | I15: 0.2 | J15: =G15/$C$3 -> 0.1 | K15: =J15*F15 -> 0.5 | M15: 0.2 | N15: 1 | P15: JOSA
A16: beurre | F16: 5 | G16: 0.05 | H16: kg | I16: 0 | J16: 0.005 | K16: 0.025 | M16: 0.01 | N16: 0.05 | P16: LOBET
A17: Céleri branche | F17: 5 | G17: 0.5 | H17: kg | I17: 0.3 | J17: 0.05 | K17: 0.25 | M17: 0.1 | N17: 0.5 | P17: JOSA
A18: chicon | F18: 5 | G18: 2 | H18: kg | I18: 0.2 | J18: 0.2 | K18: 1 | M18: 0.4 | N18: 2 | P18: JOSA
A19: MB GRAND PAIN LEVAIN 1 tranche | F19: 5 | G19: 1 | H19: pièce | I19: 0 | J19: 0.1 | K19: 0.5 | M19: 0.2 | N19: 1 | P19: BAKER MA
A20: MDO cuisine | F20: 5 | G20: 0.1666666667 | H20: h | I20: 0 | J20: 0.01666666667 | K20: 0.08333333333 | M20: 0.04 | N20: 0.2 | P20: CIABATTA MANIA
A21: beurre dosette 10g | F21: 5 | G21: 1 | H21: pièce | I21: 0 | J21: 0.1 | K21: 0.5 | M21: 0.2 | N21: 1 | P21: LOBET
F22: 0 | J22: 0 | K22: 0 | M22: 0 | N22: 0 | P22: 0
F23: 0 | J23: 0 | K23: 0 | M23: 0 | N23: 0 | P23: 0
F24: 0 | J24: 0 | K24: 0 | M24: 0 | N24: 0 | P24: 0
F25: 0 | J25: 0 | K25: 0 | M25: 0 | N25: 0 | P25: 0
F26: 0 | J26: 0 | K26: 0 | M26: 0 | N26: 0 | P26: 0
F27: 0 | J27: 0 | K27: 0 | M27: 0 | N27: 0 | P27: 0
F28: 0 | J28: 0 | K28: 0 | M28: 0 | N28: 0 | P28: 0
F29: 0 | J29: 0 | K29: 0 | M29: 0 | N29: 0 | P29: 0
B30: Emballage TOGO | E30: Qte | F30: price | G30: prix U | H30: Emballage SUR PLACE | M30: Qte | N30: price | O30: prix U
A31: 1 | B31: #pack SOUPE ToGo | E31: 1 | F31: =VLOOKUP(B31,PRIXE,2,0) -> 0.01 | G31: =E31*F31 -> 0.01 | H31: 3 | I31: #pack SOUPE Sp | M31: 1 | N31: =VLOOKUP(I31,PRIXE,2,0) -> 0.01 | O31: =M31*N31 -> 0.01
A32: 2 | E32: 1 | F32: =VLOOKUP(B32,PRIXE,2,0) -> 0 | G32: =E32*F32 -> 0 | H32: 4 | M32: 1 | N32: =VLOOKUP(I32,PRIXE,2,0) -> 0 | O32: =M32*N32 -> 0
A33: Etape de la recette
A34: 1 | G34: 11
A35: 2 | G35: 12
A36: 3 | G36: 13
A37: 4 | G37: 14
A38: 5 | G38: 15
A39: 6 | G39: 16
A40: 7 | G40: CALORIES (kcal) | J40: =K41+K42+K43+O41 -> 0
A41: 8 | G41: Protéines (g) | K41: =J41*4 -> 0 | L41: Fibres (g) | O41: =N41*2 -> 0
A42: 9 | G42: Lipides (g) | K42: =J42*9 -> 0 | L42: AGSaturés (g)
A43: 10 | G43: Glucides (g) | K43: =J43*4 -> 0
A44: Forme & Dimension :
A46: Cuisson & dressage :
A50: Liste des allergènes :
B53: COMMANDE | D53: pour | F53: =H3 -> 2 | G53: =CONCATENATE(A1, F1,G1) -> POTAGE : CHICON
B55: qte | C55: unité | D55: liste | I55: price | M55: Total
B56: =M14 -> 0.04 | C56: =H14 -> kg | D56: =A14 -> Oignon | I56: =F14 -> 5 | M56: =N14 -> 0.2
B57: 0.2 | C57: kg | D57: =A15 -> poireaux | I57: =F15 -> 5 | M57: 1
B58: 0.01 | C58: kg | D58: beurre | I58: 5 | M58: 0.05
B59: 0.1 | C59: kg | D59: Céleri branche | I59: 5 | M59: 0.5
B60: 0.4 | C60: kg | D60: chicon | I60: 5 | M60: 2
B61: 0.2 | C61: pièce | D61: MB GRAND PAIN LEVAIN 1 tranche | I61: 5 | M61: 1
B62: 0.04 | C62: h | D62: MDO cuisine | I62: 5 | M62: 0.2
B63: 0.2 | C63: pièce | D63: beurre dosette 10g | I63: 5 | M63: 1
B64: 0 | D64: 0 | I64: 0 | M64: 0
B65: 0 | D65: 0 | I65: 0 | M65: 0
B66: 0 | D66: 0 | I66: 0 | M66: 0
B67: 0 | D67: 0 | I67: 0 | M67: 0
B68: 0 | D68: 0 | I68: 0 | M68: 0
B69: 0 | D69: 0 | I69: 0 | M69: 0
B70: 0 | D70: 0 | I70: 0 | M70: 0
B71: 0 | D71: =B29 -> 0 | I71: 0 | M71: 0
M72: =SUM(M56:M71) -> 5.95

Sheet 10 JUS cherry chérie
A1: JUS FRAIS | F1: : | G1: cherry chérie | N1: 400 ml
A3: RECETTE PREVUE POUR : | C3: 1 | D3: parts | E3: Vous la dupliquez pour : | H3: 2
A5: Prix de revient unitaire : | C5: =K12 -> 10 | F5: marge | G5: coef | H5: tva | I5: ht | K5: ttc
K6: 3.8
A7: avec emballage : | C7: =C5+C9 -> 10.01 | D7: =C5+C11 -> 10.01 | F7: =I7-C7 -> -6.42509434 | G7: =I7/C7 -> 0.3581324336 | H7: ES 6 | I7: =K6/1.06 -> 3.58490566 | J7: ToGo
K8: 3.8
A9: Emballage ToGo : | C9: =G31+G32 -> 0.01 | D9: =C9/C7 -> 0.000999000999 | F9: =I9-D7 -> -6.617142857 | G9: =I9/D7 -> 0.3389467675 | H9: ES 12 | I9: =K8/1.12 -> 3.392857143 | J9: Sp
A11: Emballage Sp : | C11: =O31+O32 -> 0.01 | D11: =C11/D7 -> 0.000999000999 | F11: Prix kg/l / unité | G11: Poids brut recette | H11: Unité | I11: % perte | J11: brut 1 part | K11: Cout 1 part | L11: prix de revient | M11: brut à faire | N11: prix de revient
A12: 0 | B12: Produits | F12: ht | K12: =SUM(K14:K29) -> 10 | L12: =K12*H3 -> 20 | N12: =SUM(N14:O29) -> 20 | P12: FOURNISSEUR
A14: glaçon par 5 | F14: =VLOOKUP(A14,PRIXINGRE,3,0) -> 5 | G14: 1 | H14: =IFERROR(VLOOKUP(A14,UNITINGRE,2,0),"") -> Unité | I14: =IFERROR(VLOOKUP(A14,UNITINGRE,10,0),"") -> 0 | J14: =G14/$C$3 -> 1 | K14: =J14*F14 -> 5 | M14: =ROUNDUP((J14*$H$3),2) -> 2 | N14: =M14*F14 -> 10 | P14: =VLOOKUP(A14,GDEBASE,8,0) -> CIABATTA MANIA
A15: pamplemousse au kilos (1 caisse = 15k) | F15: 5 | G15: 0.48 | H15: kg | I15: 0 | J15: =G15/$C$3 -> 0.48 | K15: =J15*F15 -> 2.4 | M15: 0.96 | N15: 4.8 | P15: JOSA
A16: Bananes (1=177g) | F16: 5 | G16: 0.5 | H16: pièce | I16: 0 | J16: 0.5 | K16: 2.5 | M16: 1 | N16: 5 | P16: JOSA
A17: purée de fruit cerise | F17: 5 | G17: 0.02 | H17: kg | I17: 0.05 | J17: 0.02 | K17: 0.1 | M17: 0.04 | N17: 0.2 | P17: METRO
F18: 0 | J18: 0 | K18: 0 | M18: 0 | N18: 0 | P18: 0
F19: 0 | J19: 0 | K19: 0 | M19: 0 | N19: 0 | P19: 0
F20: 0 | J20: 0 | K20: 0 | M20: 0 | N20: 0 | P20: 0
F21: 0 | J21: 0 | K21: 0 | M21: 0 | N21: 0 | P21: 0
F22: 0 | J22: 0 | K22: 0 | M22: 0 | N22: 0 | P22: 0
F23: 0 | J23: 0 | K23: 0 | M23: 0 | N23: 0 | P23: 0
F24: 0 | J24: 0 | K24: 0 | M24: 0 | N24: 0 | P24: 0
F25: 0 | J25: 0 | K25: 0 | M25: 0 | N25: 0 | P25: 0
F26: 0 | J26: 0 | K26: 0 | M26: 0 | N26: 0 | P26: 0
F27: 0 | J27: 0 | K27: 0 | M27: 0 | N27: 0 | P27: 0
F28: 0 | J28: 0 | K28: 0 | M28: 0 | N28: 0 | P28: 0
F29: 0 | J29: 0 | K29: 0 | M29: 0 | N29: 0 | P29: 0
B30: Emballage TOGO | E30: Qte | F30: price | G30: prix U | H30: Emballage SUR PLACE | M30: Qte | N30: price | O30: prix U
A31: 1 | B31: #pack JUS | E31: 1 | F31: =VLOOKUP(B31,PRIXE,2,0) -> 0.01 | G31: =E31*F31 -> 0.01 | H31: 3 | I31: #pack JUS | M31: 1 | N31: =VLOOKUP(I31,PRIXE,2,0) -> 0.01 | O31: =M31*N31 -> 0.01
A32: 2 | B32: 0 | E32: 1 | F32: =VLOOKUP(B32,PRIXE,2,0) -> 0 | G32: =E32*F32 -> 0 | H32: 4 | I32: 0 | N32: =VLOOKUP(I32,PRIXE,2,0) -> 0 | O32: =M32*N32 -> 0
A33: Etape de la recette
A34: 1 | G34: 11
A35: 2 | G35: 12
A36: 3 | G36: 13
A37: 4 | G37: 14
A38: 5 | G38: 15
A39: 6 | G39: 16
A40: 7 | G40: CALORIES (kcal) | J40: =K41+K42+K43+O41 -> 0
A41: 8 | G41: Protéines (g) | K41: =J41*4 -> 0 | L41: Fibres (g) | O41: =N41*2 -> 0
A42: 9 | G42: Lipides (g) | K42: =J42*9 -> 0 | L42: AGSaturés (g)
A43: 10 | G43: Glucides (g) | K43: =J43*4 -> 0
A44: Forme & Dimension :
A46: Cuisson & dressage :
A48: Liste des allergènes :
B49: GLUTEN | D49: GLUCOSE | G49: GRAINES | J49: CÉLERI | M49: CRUSTACÉS
B50: LACTOSE / DAIRY | D50: ARACHIDE | G50: FRUITS À COQUE | J50: SULFITES | M50: POISSON
B51: OEUF | D51: MOUTARDE | G51: SOJA | J51: PORC | M51: VIANDE
B57: COMMANDE | D57: pour | F57: =H3 -> 2 | G57: =CONCATENATE(A1, F1,G1) -> JUS FRAIS : cherry chérie
B59: qte | C59: unité | D59: liste | I59: price | M59: Total
B60: =M14 -> 2 | C60: =H14 -> Unité | D60: =A14 -> glaçon par 5 | I60: =F14 -> 5 | M60: =N14 -> 10
B61: 0.96 | C61: kg | D61: =A15 -> pamplemousse au kilos (1 caisse = 15k) | I61: =F15 -> 5 | M61: 4.8
B62: 1 | C62: pièce | D62: Bananes (1=177g) | I62: 5 | M62: 5
B63: 0.04 | C63: kg | D63: purée de fruit cerise | I63: 5 | M63: 0.2
B64: 0 | D64: 0 | I64: 0 | M64: 0
B65: 0 | D65: 0 | I65: 0 | M65: 0
B66: 0 | D66: 0 | I66: 0 | M66: 0
B67: 0 | D67: 0 | I67: 0 | M67: 0
B68: 0 | D68: 0 | I68: 0 | M68: 0
B69: 0 | D69: 0 | I69: 0 | M69: 0
B70: 0 | D70: 0 | I70: 0 | M70: 0
B71: 0 | D71: 0 | I71: 0 | M71: 0
B72: 0 | D72: 0 | I72: 0 | M72: 0
B73: 0 | D73: 0 | I73: 0 | M73: 0
B74: 0 | D74: 0 | I74: 0 | M74: 0
B75: 0 | D75: =B29 -> 0 | I75: 0 | M75: 0
M76: =SUM(M60:M75) -> 20

Sheet 10 JUS dark side
A1: JUS FRAIS | F1: : | G1: dark side | N1: 400 ml
A3: RECETTE PREVUE POUR : | C3: 1 | D3: parts | E3: Vous la dupliquez pour : | H3: 2
A5: Prix de revient unitaire : | C5: =K12 ->  | F5: marge | G5: coef | H5: tva | I5: ht | K5: ttc
K6: 3.8
A7: avec emballage : | C7: =C5+C9 ->  | D7: =C5+C11 ->  | F7: =I7-C7 ->  | G7: =I7/C7 ->  | H7: ES 6 | I7: =K6/1.06 -> 3.58490566 | J7: ToGo
K8: 3.8
A9: Emballage ToGo : | C9: =G31+G32 -> 0.01 | D9: =C9/C7 ->  | F9: =I9-D7 ->  | G9: =I9/D7 ->  | H9: ES 12 | I9: =K8/1.12 -> 3.392857143 | J9: Sp
A11: Emballage Sp : | C11: =O31+O32 -> 0.01 | D11: =C11/D7 ->  | F11: Prix kg/l / unité | G11: Poids brut recette | H11: Unité | I11: % perte | J11: brut 1 part | K11: Cout 1 part | L11: prix de revient | M11: brut à faire | N11: prix de revient
A12: 0 | B12: Produits | F12: ht | K12: =SUM(K14:K29) ->  | L12: =K12*H3 ->  | N12: =SUM(N14:O29) ->  | P12: FOURNISSEUR
A14: glaçon par 5 | F14: =VLOOKUP(A14,PRIXINGRE,3,0) -> 5 | G14: 1 | H14: =IFERROR(VLOOKUP(A14,UNITINGRE,2,0),"") -> Unité | I14: =IFERROR(VLOOKUP(A14,UNITINGRE,10,0),"") -> 0 | J14: =G14/$C$3 -> 1 | K14: =J14*F14 -> 5 | M14: =ROUNDUP((J14*$H$3),2) -> 2 | N14: =M14*F14 -> 10 | P14: =VLOOKUP(A14,GDEBASE,8,0) -> CIABATTA MANIA
A15: orange à la pièce ( une orange = 0,200 k) | G15: 2.5 | J15: =G15/$C$3 -> 2.5 | K15: =J15*F15 ->  | M15: 5
A16: Bananes (1=177g) | F16: 5 | G16: 0.5 | H16: pièce | I16: 0 | J16: 0.5 | K16: 2.5 | M16: 1 | N16: 5 | P16: JOSA
A17: purée de fruit cassis | F17: 5 | G17: 0.02 | H17: kg | I17: 0.05 | J17: 0.02 | K17: 0.1 | M17: 0.04 | N17: 0.2 | P17: METRO
F18: 0 | J18: 0 | K18: 0 | M18: 0 | N18: 0 | P18: 0
F19: 0 | J19: 0 | K19: 0 | M19: 0 | N19: 0 | P19: 0
F20: 0 | J20: 0 | K20: 0 | M20: 0 | N20: 0 | P20: 0
F21: 0 | J21: 0 | K21: 0 | M21: 0 | N21: 0 | P21: 0
F22: 0 | J22: 0 | K22: 0 | M22: 0 | N22: 0 | P22: 0
F23: 0 | J23: 0 | K23: 0 | M23: 0 | N23: 0 | P23: 0
F24: 0 | J24: 0 | K24: 0 | M24: 0 | N24: 0 | P24: 0
F25: 0 | J25: 0 | K25: 0 | M25: 0 | N25: 0 | P25: 0
F26: 0 | J26: 0 | K26: 0 | M26: 0 | N26: 0 | P26: 0
F27: 0 | J27: 0 | K27: 0 | M27: 0 | N27: 0 | P27: 0
F28: 0 | J28: 0 | K28: 0 | M28: 0 | N28: 0 | P28: 0
F29: 0 | J29: 0 | K29: 0 | M29: 0 | N29: 0 | P29: 0
B30: Emballage TOGO | E30: Qte | F30: price | G30: prix U | H30: Emballage SUR PLACE | M30: Qte | N30: price | O30: prix U
A31: 1 | B31: #pack JUS | E31: 1 | F31: =VLOOKUP(B31,PRIXE,2,0) -> 0.01 | G31: =E31*F31 -> 0.01 | H31: 3 | I31: #pack JUS | M31: 1 | N31: =VLOOKUP(I31,PRIXE,2,0) -> 0.01 | O31: =M31*N31 -> 0.01
A32: 2 | B32: 0 | E32: 1 | F32: =VLOOKUP(B32,PRIXE,2,0) -> 0 | G32: =E32*F32 -> 0 | H32: 4 | I32: 0 | N32: =VLOOKUP(I32,PRIXE,2,0) -> 0 | O32: =M32*N32 -> 0
A33: Etape de la recette
A34: 1 | G34: 11
A35: 2 | G35: 12
A36: 3 | G36: 13
A37: 4 | G37: 14
A38: 5 | G38: 15
A39: 6 | G39: 16
A40: 7 | G40: CALORIES (kcal) | J40: =K41+K42+K43+O41 -> 0
A41: 8 | G41: Protéines (g) | K41: =J41*4 -> 0 | L41: Fibres (g) | O41: =N41*2 -> 0
A42: 9 | G42: Lipides (g) | K42: =J42*9 -> 0 | L42: AGSaturés (g)
A43: 10 | G43: Glucides (g) | K43: =J43*4 -> 0
A44: Forme & Dimension :
A46: Cuisson & dressage :
A48: Liste des allergènes :
B49: GLUTEN | D49: GLUCOSE | G49: GRAINES | J49: CÉLERI | M49: CRUSTACÉS
B50: LACTOSE / DAIRY | D50: ARACHIDE | G50: FRUITS À COQUE | J50: SULFITES | M50: POISSON
B51: OEUF | D51: MOUTARDE | G51: SOJA | J51: PORC | M51: VIANDE
B57: COMMANDE | D57: pour | F57: =H3 -> 2 | G57: =CONCATENATE(A1, F1,G1) -> JUS FRAIS : dark side
B59: qte | C59: unité | D59: liste | I59: price | M59: Total
B60: =M14 -> 2 | C60: =H14 -> Unité | D60: =A14 -> glaçon par 5 | I60: =F14 -> 5 | M60: =N14 -> 10
B61: 5 | D61: =A15 -> orange à la pièce ( une orange = 0,200 k) | I61: =F15 -> 
B62: 1 | C62: pièce | D62: Bananes (1=177g) | I62: 5 | M62: 5
B63: 0.04 | C63: kg | D63: purée de fruit cassis | I63: 5 | M63: 0.2
B64: 0 | D64: 0 | I64: 0 | M64: 0
B65: 0 | D65: 0 | I65: 0 | M65: 0
B66: 0 | D66: 0 | I66: 0 | M66: 0
B67: 0 | D67: 0 | I67: 0 | M67: 0
B68: 0 | D68: 0 | I68: 0 | M68: 0
B69: 0 | D69: 0 | I69: 0 | M69: 0
B70: 0 | D70: 0 | I70: 0 | M70: 0
B71: 0 | D71: 0 | I71: 0 | M71: 0
B72: 0 | D72: 0 | I72: 0 | M72: 0
B73: 0 | D73: 0 | I73: 0 | M73: 0
B74: 0 | D74: 0 | I74: 0 | M74: 0
B75: 0 | D75: =B29 -> 0 | I75: 0 | M75: 0
M76: =SUM(M60:M75) -> 

Sheet 12 Mélange mout mayo cum
A1: Mélange | F1: : | G1: Moutarde mayo cumin | N1: 1 kg
A3: RECETTE PREVUE POUR : | C3: 1 | D3: parts | E3: Vous la dupliquez pour : | H3: 2
A5: Prix de revient unitaire : | C5: =K12 -> 5.15
A7: avec emballage : | C7: =C5+C9 -> 5.15 | D7: =C5+C11 -> 5.15
F11: Prix kg/l / unité | G11: Poids brut recette | H11: Unité | I11: % perte | J11: brut 1 part | K11: Cout 1 part | L11: prix de revient | M11: brut à faire | N11: prix de revient
A12: 0 | B12: Produits | F12: ht | K12: =SUM(K14:K29) -> 5.15 | L12: =K12*H3 -> 10.3 | N12: =SUM(N14:O29) -> 10.3 | P12: FOURNISSEUR
A14: Moutarde DL | F14: =VLOOKUP(A14,PRIXINGRE,3,0) -> 5 | G14: 0.5 | H14: =IFERROR(VLOOKUP(A14,UNITINGRE,2,0),"") -> kg | I14: =IFERROR(VLOOKUP(A14,UNITINGRE,10,0),"") -> 0.03 | J14: =G14/$C$3 -> 0.5 | K14: =J14*F14 -> 2.5 | M14: =ROUNDUP((J14*$H$3),2) -> 1 | N14: =M14*F14 -> 5 | P14: =VLOOKUP(A14,GDEBASE,8,0) -> METRO
A15: Mayonnaise vandemoortele | F15: 5 | G15: 0.5 | H15: kg | I15: 0.03 | J15: =G15/$C$3 -> 0.5 | K15: =J15*F15 -> 2.5 | M15: 1 | N15: 5 | P15: METRO
A16: Cumin | F16: 5 | G16: 0.03 | H16: kg | I16: 0 | J16: 0.03 | K16: 0.15 | M16: 0.06 | N16: 0.3 | P16: METRO
F17: 0 | J17: 0 | K17: 0 | M17: 0 | N17: 0 | P17: 0
F18: 0 | J18: 0 | K18: 0 | M18: 0 | N18: 0 | P18: 0
F19: 0 | J19: 0 | K19: 0 | M19: 0 | N19: 0 | P19: 0
F20: 0 | J20: 0 | K20: 0 | M20: 0 | N20: 0 | P20: 0
F21: 0 | J21: 0 | K21: 0 | M21: 0 | N21: 0 | P21: 0
F22: 0 | J22: 0 | K22: 0 | M22: 0 | N22: 0 | P22: 0
F23: 0 | J23: 0 | K23: 0 | M23: 0 | N23: 0 | P23: 0
F24: 0 | J24: 0 | K24: 0 | M24: 0 | N24: 0 | P24: 0
F25: 0 | J25: 0 | K25: 0 | M25: 0 | N25: 0 | P25: 0
F26: 0 | J26: 0 | K26: 0 | M26: 0 | N26: 0 | P26: 0
F27: 0 | J27: 0 | K27: 0 | M27: 0 | N27: 0 | P27: 0
F28: 0 | J28: 0 | K28: 0 | M28: 0 | N28: 0 | P28: 0
F29: 0 | J29: 0 | K29: 0 | M29: 0 | N29: 0 | P29: 0
B30: Emballage | E30: Qte | F30: price | G30: prix U | H30: Emballage | M30: Qte | N30: price | O30: prix U
A31: 1 | B31: 0 | E31: 1 | F31: =VLOOKUP(B31,PRIXE,2,0) -> 0 | G31: =E31*F31 -> 0 | H31: 3 | I31: 0 | N31: =VLOOKUP(J31,PRIXE,2,0) -> 0 | O31: =M31*N31 -> 0
A32: 2 | B32: 0 | E32: 1 | F32: =VLOOKUP(B32,PRIXE,2,0) -> 0 | G32: =E32*F32 -> 0 | H32: 4 | I32: 0 | N32: =VLOOKUP(J32,PRIXE,2,0) -> 0 | O32: =M32*N32 -> 0
A33: Etape de la recette
A34: 1 | G34: 11
A35: 2 | G35: 12
A36: 3 | G36: 13
A37: 4 | G37: 14
A38: 5 | G38: 15
A39: 6 | G39: 16
A40: 7 | G40: CALORIES (kcal) | J40: =K41+K42+K43+O41 -> 0
A41: 8 | G41: Protéines (g) | K41: =J41*4 -> 0 | L41: Fibres (g) | O41: =N41*2 -> 0
A42: 9 | G42: Lipides (g) | K42: =J42*9 -> 0 | L42: AGSaturés (g)
A43: 10 | G43: Glucides (g) | K43: =J43*4 -> 0
A44: Forme & Dimension :
A46: Cuisson & dressage :
A50: Liste des allergènes :
B53: COMMANDE | D53: pour | F53: =H3 -> 2 | G53: =CONCATENATE(A1, F1,G1) -> Mélange : Moutarde mayo cumin
B55: qte | C55: unité | D55: liste | I55: price | M55: Total
B56: =M14 -> 1 | C56: =H14 -> kg | D56: =A14 -> Moutarde DL | I56: =F14 -> 5 | M56: =N14 -> 5
B57: 1 | C57: kg | D57: =A15 -> Mayonnaise vandemoortele | I57: =F15 -> 5 | M57: 5
B58: 0.06 | C58: kg | D58: Cumin | I58: 5 | M58: 0.3
B59: 0 | D59: 0 | I59: 0 | M59: 0
B60: 0 | D60: 0 | I60: 0 | M60: 0
B61: 0 | D61: 0 | I61: 0 | M61: 0
B62: 0 | D62: 0 | I62: 0 | M62: 0
B63: 0 | D63: 0 | I63: 0 | M63: 0
B64: 0 | D64: 0 | I64: 0 | M64: 0
B65: 0 | D65: 0 | I65: 0 | M65: 0
B66: 0 | D66: 0 | I66: 0 | M66: 0
B67: 0 | D67: 0 | I67: 0 | M67: 0
B68: 0 | D68: 0 | I68: 0 | M68: 0
B69: 0 | D69: 0 | I69: 0 | M69: 0
B70: 0 | D70: 0 | I70: 0 | M70: 0
B71: 0 | D71: =B29 -> 0 | I71: 0 | M71: 0
M72: =SUM(M56:M71) -> 10.3

Sheet 12 PATE FEUILLETEE
A1: PATE A TARTE | F1: : | G1: FEUILLETEE | N1: 0.38
A3: RECETTE PREVUE POUR : | C3: 1 | E3: Vous la dupliquez pour : | H3: 2
A5: Prix de revient unitaire : | C5: =K12 -> 1.529166667
A7: avec emballage : | C7: =C5+C9 -> 1.529166667 | D7: =C5+C11 -> 1.529166667
F11: Prix kg/l / unité | G11: Poids brut recette | H11: Unité | I11: % perte | J11: brut 1 part | K11: Cout 1 part | L11: prix de revient | M11: brut à faire | N11: prix de revient
A12: 0 | B12: Produits | F12: ht | K12: =SUM(K14:K29) -> 1.529166667 | L12: =K12*H3 -> 3.058333333 | N12: =SUM(N14:O29) -> 3.1 | P12: FOURNISSEUR
A14: Farine t55 | F14: =VLOOKUP(A14,PRIXINGRE,3,0) -> 5 | G14: 0.125 | H14: =IFERROR(VLOOKUP(A14,UNITINGRE,2,0),"") -> kg | I14: =IFERROR(VLOOKUP(A14,UNITINGRE,10,0),"") -> 0 | J14: =G14/$C$3 -> 0.125 | K14: =J14*F14 -> 0.625 | M14: =ROUNDUP((J14*$H$3),2) -> 0.25 | N14: =M14*F14 -> 1.25 | P14: =VLOOKUP(A14,GDEBASE,8,0) -> METRO
A15: Beurre | F15: 5 | G15: 0.095 | H15: kg | I15: 0 | J15: =G15/$C$3 -> 0.095 | K15: =J15*F15 -> 0.475 | M15: 0.19 | N15: 0.95 | P15: LOBET
A16: Sel fin (kg) 5 kg | F16: 5 | G16: 0.0025 | H16: kg | I16: 0 | J16: 0.0025 | K16: 0.0125 | M16: 0.01 | N16: 0.05 | P16: METRO
A17: MDO cuisine | F17: 5 | G17: 0.08333333333 | H17: h | I17: 0 | J17: 0.08333333333 | K17: 0.4166666667 | M17: 0.17 | N17: 0.85 | P17: CIABATTA MANIA
F18: 0 | J18: 0 | K18: 0 | M18: 0 | N18: 0 | P18: 0
F19: 0 | J19: 0 | K19: 0 | M19: 0 | N19: 0 | P19: 0
F20: 0 | J20: 0 | K20: 0 | M20: 0 | N20: 0 | P20: 0
F21: 0 | J21: 0 | K21: 0 | M21: 0 | N21: 0 | P21: 0
F22: 0 | J22: 0 | K22: 0 | M22: 0 | N22: 0 | P22: 0
F23: 0 | J23: 0 | K23: 0 | M23: 0 | N23: 0 | P23: 0
F24: 0 | J24: 0 | K24: 0 | M24: 0 | N24: 0 | P24: 0
F25: 0 | J25: 0 | K25: 0 | M25: 0 | N25: 0 | P25: 0
F26: 0 | J26: 0 | K26: 0 | M26: 0 | N26: 0 | P26: 0
F27: 0 | J27: 0 | K27: 0 | M27: 0 | N27: 0 | P27: 0
F28: 0 | J28: 0 | K28: 0 | M28: 0 | N28: 0 | P28: 0
F29: 0 | J29: 0 | K29: 0 | M29: 0 | N29: 0 | P29: 0
B30: Emballage | E30: Qte | F30: price | G30: prix U | H30: Emballage | M30: Qte | N30: price | O30: prix U
A31: 1 | B31: 0 | E31: 1 | F31: =VLOOKUP(B31,PRIXE,2,0) -> 0 | G31: =E31*F31 -> 0 | H31: 3 | I31: 0 | N31: =VLOOKUP(J31,PRIXE,2,0) -> 0 | O31: =M31*N31 -> 0
A32: 2 | B32: 0 | E32: 1 | F32: =VLOOKUP(B32,PRIXE,2,0) -> 0 | G32: =E32*F32 -> 0 | H32: 4 | I32: 0 | N32: =VLOOKUP(J32,PRIXE,2,0) -> 0 | O32: =M32*N32 -> 0
A33: Etape de la recette
A34: 1 | G34: 11
A35: 2 | G35: 12
A36: 3 | G36: 13
A37: 4 | G37: 14
A38: 5 | G38: 15
A39: 6 | G39: 16
A40: 7 | G40: CALORIES (kcal) | J40: =K41+K42+K43+O41 -> 0
A41: 8 | G41: Protéines (g) | K41: =J41*4 -> 0 | L41: Fibres (g) | O41: =N41*2 -> 0
A42: 9 | G42: Lipides (g) | K42: =J42*9 -> 0 | L42: AGSaturés (g)
A43: 10 | G43: Glucides (g) | K43: =J43*4 -> 0
A44: Forme & Dimension :
A46: Cuisson & dressage :
A50: Liste des allergènes :
B53: COMMANDE | D53: pour | F53: =H3 -> 2 | G53: =CONCATENATE(A1, F1,G1) -> PATE A TARTE : FEUILLETEE
B55: qte | C55: unité | D55: liste | I55: price | M55: Total
B56: =M14 -> 0.25 | C56: =H14 -> kg | D56: =A14 -> Farine t55 | I56: =F14 -> 5 | M56: =N14 -> 1.25
B57: 0.19 | C57: kg | D57: =A15 -> Beurre | I57: =F15 -> 5 | M57: 0.95
B58: 0.01 | C58: kg | D58: Sel fin (kg) 5 kg | I58: 5 | M58: 0.05
B59: 0.17 | C59: h | D59: MDO cuisine | I59: 5 | M59: 0.85
B60: 0 | D60: 0 | I60: 0 | M60: 0
B61: 0 | D61: 0 | I61: 0 | M61: 0
B62: 0 | D62: 0 | I62: 0 | M62: 0
B63: 0 | D63: 0 | I63: 0 | M63: 0
B64: 0 | D64: 0 | I64: 0 | M64: 0
B65: 0 | D65: 0 | I65: 0 | M65: 0
B66: 0 | D66: 0 | I66: 0 | M66: 0
B67: 0 | D67: 0 | I67: 0 | M67: 0
B68: 0 | D68: 0 | I68: 0 | M68: 0
B69: 0 | D69: 0 | I69: 0 | M69: 0
B70: 0 | D70: 0 | I70: 0 | M70: 0
B71: 0 | D71: =B29 -> 0 | I71: 0 | M71: 0
M72: =SUM(M56:M71) -> 3.1

Sheet 15 SF 2 fromages
A1: summer BAGUETTE | F1: : | G1: 2 FROMAGES | P1: 150 grs
A3: RECETTE PREVUE POUR : | C3: 1 | E3: Vous la dupliquez pour : | H3: 2
A5: Prix de revient unitaire : | C5: =K12 -> 15.415 | F5: marge | G5: coef | H5: tva | I5: ht | K5: ttc
K6: 3.127
A7: avec emballage : | C7: =C5+C9 -> 15.425 | F7: =I7-C7 -> -12.475 | G7: =I7/C7 -> 0.1912479741 | H7: ES 6 | I7: =K6/1.06 -> 2.95 | J7: ToGo
A9: Emballage ToGo : | C9: =G31+G32 -> 0.01 | D9: =C9/C7 -> 0.0006482982172
F11: Prix kg/l / unité | G11: Poids brut recette | H11: Unité | I11: % perte | J11: brut 1 part | K11: Cout 1 part | L11: prix de revient | M11: brut à faire | N11: prix de revient
A12: 0 | B12: Produits | F12: ht | K12: =SUM(K14:K29) -> 15.415 | L12: =K12*H3 -> 30.83 | N12: =SUM(N14:O29) -> 30.85
A14: SF FDP BAG GRISE SUMMER 1/2 | F14: =VLOOKUP(A14,PRIXINGRE,3,0) -> 5 | G14: 1 | H14: =IFERROR(VLOOKUP(A14,UNITINGRE,2,0),"") -> pièce | I14: =IFERROR(VLOOKUP(A14,UNITINGRE,10,0),"") -> 0 | J14: =IFERROR((G14/$C$3)+(((G14/$C$3)*I14)),"") -> 1 | K14: =IFERROR((J14*F14),"") -> 5 | M14: =IFERROR((ROUNDUP((J14*$H$3),2)),"") -> 2 | N14: =IFERROR((M14*F14),"") -> 10 | P14: =VLOOKUP(A14,GDEBASE,8,0) -> LOBET
A15: SF Philadelphia original (1,65K) | F15: 5 | G15: 0.02 | H15: kg | I15: 0 | J15: 0.02 | K15: =IFERROR((J15*F15),"") -> 0.1 | M15: =IFERROR((ROUNDUP((J15*$H$3),2)),"") -> 0.04 | N15: =IFERROR((M15*F15),"") -> 0.2 | P15: LOBET
A16: SF Cheddar tranché (dose : 3 demi T =30g) | F16: 5 | G16: 1 | H16: pièce | I16: 0 | J16: 1 | K16: =IFERROR((J16*F16),"") -> 5 | M16: 2 | N16: 10 | P16: LOBET
A17: Tomates confites SELECTION | E17: 4 | F17: 5 | G17: 0.01 | H17: kg | I17: 0.3 | J17: 0.013 | K17: =IFERROR((J17*F17),"") -> 0.065 | M17: 0.03 | N17: 0.15 | P17: DAVIGEL
A18: salade iceberg 1 dose dwich 20g | F18: 5 | G18: 1 | H18: pièce | I18: 0.05 | J18: 1.05 | K18: 5.25 | M18: 2.1 | N18: 10.5 | P18: JOSA
F19: 0 | K19: =IFERROR((J19*F19),"") ->  | P19: 0
F20: 0 | P20: 0
F21: 0 | P21: 0
F22: 0 | P22: 0
F23: 0 | P23: 0
F24: 0 | P24: 0
F25: 0 | P25: 0
F26: 0 | P26: 0
F27: 0 | P27: 0
F28: 0 | P28: 0
F29: 0 | P29: 0
B30: Emballage | E30: Qte | F30: price | G30: prix U
A31: 1 | B31: #pack DWICH ToGo | E31: 1 | F31: =VLOOKUP(B31,PRIXE,2,0) -> 0.01 | G31: =E31*F31 -> 0.01
A32: 2 | B32: 0 | E32: 1 | F32: =VLOOKUP(B32,PRIXE,2,0) -> 0 | G32: =E32*F32 -> 0
